﻿Directorate,Sub Directorate,Accounting Date,COST CENTRE,Supplier Name,Net Amount,Type,Minority Group
DIRECT LEARNING AND SKILLS,ACHIEVEMENT FOR ALL,01-Jun-18,102801,CJ Contract Travel Services Limited,826.2,Revenue,Companies
DIRECT LEARNING AND SKILLS,STRATEGY COMMUNITY LEARNING & RESOURCES,01-Jun-18,120080,Askews & Holts Library Services Limited,568.04,Revenue,Companies
DIRECT LEARNING AND SKILLS,ACHIEVEMENT FOR ALL,01-Jun-18,130271,Wheadon Group Travel Limited,550,Revenue,Companies
DIRECT LEARNING AND SKILLS,GF CATERING,01-Jun-18,154401,ABM Catering for Leisure Limited,4082.9,Revenue,Companies
DIRECT LEARNING AND SKILLS,GF CATERING,01-Jun-18,154401,ABM Catering for Leisure Limited,1028,Revenue,Companies
DIRECT LEARNING AND SKILLS,GF CATERING,01-Jun-18,154401,ABM Catering for Leisure Limited,700,Revenue,Companies
DIRECT ENVIRONMENT AND HOUSING,GF ENV AND VISIBLE,01-Jun-18,300600,Eliesha Training Limited,746.2,Revenue,Companies
DIRECT ENVIRONMENT AND HOUSING,BUILDING SERVICES,01-Jun-18,303900,Vellacine Limited,675,Revenue,Companies
DIRECT ENVIRONMENT AND HOUSING,BUILDING SERVICES,01-Jun-18,303931,G.P.H.I.T (Integrated Services) Limited,1260,Revenue,Companies
DIRECT ENVIRONMENT AND HOUSING,BUILDING SERVICES,01-Jun-18,303931,Hi Tech Industrial Roofing Limited,785,Revenue,Companies
DIRECT ENVIRONMENT AND HOUSING,BUILDING SERVICES,01-Jun-18,303950,MSS Consulting Limited,536.27,Revenue,Companies
DIRECT ENVIRONMENT AND HOUSING,BUILDING SERVICES,01-Jun-18,303950,MSS Consulting Limited,981.55,Revenue,Companies
DIRECT ENVIRONMENT AND HOUSING,BUILDING SERVICES,01-Jun-18,303950,MSS Consulting Limited,2715,Revenue,Companies
DIRECT ENVIRONMENT AND HOUSING,BUILDING SERVICES,01-Jun-18,303950,MSS Consulting Limited,1546,Revenue,Companies
DIRECT ENVIRONMENT AND HOUSING,BUILDING SERVICES,01-Jun-18,305720,G.P.H.I.T (Integrated Services) Limited,8890,Revenue,Companies
DIRECT ENVIRONMENT AND HOUSING,GF PARKS AND GROUNDS,01-Jun-18,333013,Ace Site Services (UK) Limited,909,Revenue,Companies
DIRECT ENVIRONMENT AND HOUSING,GF ENV AND VISIBLE,01-Jun-18,341182,FCC Recycling (UK) Limited,101343.91,Revenue,Companies
DIRECT ENVIRONMENT AND HOUSING,GF ENV AND VISIBLE,01-Jun-18,341220,G.A.E. Smith (Holdings) Limited t/a Casepak,11150.25,Revenue,Companies
DIRECT ENVIRONMENT AND HOUSING,REGENERATION & PLANNING,01-Jun-18,354727,Secure-a-Field Limited,12155,Revenue,Companies
DIRECT ENVIRONMENT AND HOUSING,VISIBLE SERVICES,01-Jun-18,359330,Newydd Housing Association (1974) Limited,800,Revenue,Companies
DIRECT ENVIRONMENT AND HOUSING,REGENERATION & PLANNING,01-Jun-18,365763,Glamorgan Gem Limited,990,Revenue,Companies
DIRECT ENVIRONMENT AND HOUSING,VISIBLE SERVICES,01-Jun-18,365803,CJ Contract Travel Services Limited,25695.18,Revenue,Companies
DIRECT ENVIRONMENT AND HOUSING,VISIBLE SERVICES,01-Jun-18,365803,CJ Contract Travel Services Limited,12910.86,Revenue,Companies
DIRECT ENVIRONMENT AND HOUSING,VISIBLE SERVICES,01-Jun-18,365803,K-Tax Limited,4806,Revenue,Companies
DIRECT ENVIRONMENT AND HOUSING,HOUSING,01-Jun-18,407111,Civica UK Limited,11476.13,Revenue,Companies
DIRECT ENVIRONMENT AND HOUSING,HOUSING,01-Jun-18,407114,Masons Moving Group Limited,920,Revenue,Companies
DIRECT ENVIRONMENT AND HOUSING,HOUSING,01-Jun-18,407118,Geraint John Planning Limited,1250,Revenue,Companies
DIRECT ENVIRONMENT AND HOUSING,HOUSING,01-Jun-18,407400,Glamorgan Gem Limited,500,Revenue,Companies
DIRECT MANAGING DIRECTOR AND RESOURCES,GF RESOURCES,01-Jun-18,421230,Pervasive Networks Limited,30785.06,Revenue,Companies
DIRECT MANAGING DIRECTOR AND RESOURCES,GF CORPORATE AND CUSTOMER SERVICES,01-Jun-18,440530,Sabio Limited,1815,Revenue,Companies
DIRECT CAPITAL VISIBLE AND HOUSING SERVICES,CAPITAL HRA,01-Jun-18,842127,SMK Building & Maintenance Limited,88666.49,Capital,Companies
DIRECT CAPITAL VISIBLE AND HOUSING SERVICES,CAPITAL HRA,01-Jun-18,842145,SMK Building & Maintenance Limited,244565.99,Capital,Companies
DIRECT CAPITAL VISIBLE AND HOUSING SERVICES,CAPITAL HRA,01-Jun-18,842177,Ian Williams Limited,338066.51,Capital,Companies
DIRECT LEARNING AND SKILLS,SCHOOLS NON DELEGATED,01-Jun-18,103134,Glenda Jones,800,Revenue,Professional Services
DIRECT LEARNING AND SKILLS,STRATEGY COMMUNITY LEARNING & RESOURCES,01-Jun-18,100130,Disclosure and Barring Service,973,Revenue,Public Bodies
DIRECT SOCIAL SERVICES,GF CHILDREN SERVICES,01-Jun-18,260020,Disclosure and Barring Service,1584,Revenue,Public Bodies
DIRECT LEARNING AND SKILLS,SCHOOLS NON DELEGATED,01-Jun-18,103030,Millennium Personnel Services (Education) Limited,625,Revenue,recy
DIRECT MANAGING DIRECTOR AND RESOURCES,GF HUMAN RESOURCES,01-Jun-18,140131,Randstad Solutions Limited,113094.58,Revenue,recy
DIRECT SOCIAL SERVICES,GF ADULT SERVICES,01-Jun-18,215489,Susan Heffernan T/A Baruc Guest House,980,Revenue,Sole Traders
DIRECT SOCIAL SERVICES,GF ADULT SERVICES,01-Jun-18,217909,Susan Heffernan T/A Baruc Guest House,656.2,Revenue,Sole Traders
DIRECT SOCIAL SERVICES,GF CHILDREN SERVICES,01-Jun-18,260160,Jenny Haylock T/A Mobile Play Therapy,640,Revenue,Sole Traders
DIRECT SOCIAL SERVICES,GF CHILDREN SERVICES,01-Jun-18,260160,Jenny Haylock T/A Mobile Play Therapy,960,Revenue,Sole Traders
DIRECT CAPITAL POLICY,CAPITAL POLICY,01-Jun-18,852513,Mark Parry t/a N.A.C. Property Clearance,720,Capital,Sole Traders
DIRECT SOCIAL SERVICES,GF ADULT SERVICES,04-Jun-18,215489,1st Grade Care Limited,532.7,Revenue,agen
DIRECT SOCIAL SERVICES,GF ADULT SERVICES,04-Jun-18,215489,1st Grade Care Limited,613.9,Revenue,agen
DIRECT SOCIAL SERVICES,GF ADULT SERVICES,04-Jun-18,215489,1st Grade Care Limited,582.4,Revenue,agen
DIRECT SOCIAL SERVICES,GF ADULT SERVICES,04-Jun-18,215489,1st Grade Care Limited,621.6,Revenue,agen
DIRECT SOCIAL SERVICES,GF ADULT SERVICES,04-Jun-18,215489,1st Grade Care Limited,597.15,Revenue,agen
DIRECT SOCIAL SERVICES,GF ADULT SERVICES,04-Jun-18,215489,1st Grade Care Limited,532.7,Revenue,agen
DIRECT SOCIAL SERVICES,GF ADULT SERVICES,04-Jun-18,215489,1st Grade Care Limited,532.7,Revenue,agen
DIRECT SOCIAL SERVICES,GF ADULT SERVICES,04-Jun-18,215489,1st Grade Care Limited,613.9,Revenue,agen
DIRECT SOCIAL SERVICES,GF ADULT SERVICES,04-Jun-18,215489,1st Grade Care Limited,582.4,Revenue,agen
DIRECT SOCIAL SERVICES,GF ADULT SERVICES,04-Jun-18,215489,1st Grade Care Limited,621.6,Revenue,agen
DIRECT SOCIAL SERVICES,GF ADULT SERVICES,04-Jun-18,215489,1st Grade Care Limited,597.15,Revenue,agen
DIRECT SOCIAL SERVICES,GF ADULT SERVICES,04-Jun-18,215489,1st Grade Care Limited,532.7,Revenue,agen
DIRECT SOCIAL SERVICES,GF ADULT SERVICES,04-Jun-18,215489,Caring Companions Limited,857.92,Revenue,agen
DIRECT SOCIAL SERVICES,GF ADULT SERVICES,04-Jun-18,215489,Caring Companions Limited,653.2,Revenue,agen
DIRECT SOCIAL SERVICES,GF ADULT SERVICES,04-Jun-18,215489,Caring Companions Limited,621.92,Revenue,agen
DIRECT SOCIAL SERVICES,GF ADULT SERVICES,04-Jun-18,215489,Caring Companions Limited,598.4,Revenue,agen
DIRECT SOCIAL SERVICES,GF ADULT SERVICES,04-Jun-18,215489,Caring Companions Limited,848.45,Revenue,agen
DIRECT SOCIAL SERVICES,GF ADULT SERVICES,04-Jun-18,215489,Caring Companions Limited,755.36,Revenue,agen
DIRECT SOCIAL SERVICES,GF ADULT SERVICES,04-Jun-18,215489,Caring Companions Limited,576.3,Revenue,agen
DIRECT SOCIAL SERVICES,GF ADULT SERVICES,04-Jun-18,215489,Caring Companions Limited,684.8,Revenue,agen
DIRECT SOCIAL SERVICES,GF ADULT SERVICES,04-Jun-18,215489,Caring Companions Limited,729.04,Revenue,agen
DIRECT SOCIAL SERVICES,GF ADULT SERVICES,04-Jun-18,215489,Caring Companions Limited,571.55,Revenue,agen
DIRECT SOCIAL SERVICES,GF ADULT SERVICES,04-Jun-18,215489,Caring Companions Limited,544.18,Revenue,agen
DIRECT SOCIAL SERVICES,GF ADULT SERVICES,04-Jun-18,215489,Caring Companions Limited,523.6,Revenue,agen
DIRECT SOCIAL SERVICES,GF ADULT SERVICES,04-Jun-18,215489,Caring Companions Limited,660.94,Revenue,agen
DIRECT SOCIAL SERVICES,GF ADULT SERVICES,04-Jun-18,215489,Caring Companions Limited,599.2,Revenue,agen
DIRECT SOCIAL SERVICES,GF ADULT SERVICES,04-Jun-18,215489,Caring Companions Limited,750.68,Revenue,agen
DIRECT SOCIAL SERVICES,GF ADULT SERVICES,04-Jun-18,215489,Caring Companions Limited,571.55,Revenue,agen
DIRECT SOCIAL SERVICES,GF ADULT SERVICES,04-Jun-18,215489,Caring Companions Limited,544.18,Revenue,agen
DIRECT SOCIAL SERVICES,GF ADULT SERVICES,04-Jun-18,215489,Caring Companions Limited,523.6,Revenue,agen
DIRECT SOCIAL SERVICES,GF ADULT SERVICES,04-Jun-18,215489,Caring Companions Limited,660.94,Revenue,agen
DIRECT SOCIAL SERVICES,GF ADULT SERVICES,04-Jun-18,215489,Caring Companions Limited,599.2,Revenue,agen
DIRECT SOCIAL SERVICES,GF ADULT SERVICES,04-Jun-18,215489,Hallows Care Limited T/A Hallows Care,690.95,Revenue,agen
DIRECT SOCIAL SERVICES,GF ADULT SERVICES,04-Jun-18,215489,Hallows Care Limited T/A Hallows Care,597.76,Revenue,agen
DIRECT SOCIAL SERVICES,GF ADULT SERVICES,04-Jun-18,215489,Hallows Care Limited T/A Hallows Care,635.32,Revenue,agen
DIRECT SOCIAL SERVICES,GF ADULT SERVICES,04-Jun-18,215489,Hallows Care Limited T/A Hallows Care,608.35,Revenue,agen
DIRECT SOCIAL SERVICES,GF ADULT SERVICES,04-Jun-18,215489,Hallows Care Limited T/A Hallows Care,690.95,Revenue,agen
DIRECT SOCIAL SERVICES,GF ADULT SERVICES,04-Jun-18,215489,Hallows Care Limited T/A Hallows Care,597.76,Revenue,agen
DIRECT SOCIAL SERVICES,GF ADULT SERVICES,04-Jun-18,215489,Hallows Care Limited T/A Hallows Care,635.32,Revenue,agen
DIRECT SOCIAL SERVICES,GF ADULT SERVICES,04-Jun-18,215489,Hallows Care Limited T/A Hallows Care,608.35,Revenue,agen
DIRECT SOCIAL SERVICES,GF ADULT SERVICES,04-Jun-18,216179,Hallows Care Limited T/A Hallows Care,597.79,Revenue,agen
DIRECT SOCIAL SERVICES,GF ADULT SERVICES,04-Jun-18,216179,Hallows Care Limited T/A Hallows Care,597.79,Revenue,agen
DIRECT SOCIAL SERVICES,GF ADULT SERVICES,04-Jun-18,216179,Recovery Care Limited,2472.2,Revenue,agen
DIRECT SOCIAL SERVICES,GF ADULT SERVICES,04-Jun-18,216179,Recovery Care Limited,2472.2,Revenue,agen
DIRECT SOCIAL SERVICES,GF ADULT SERVICES,04-Jun-18,217909,1st Grade Care Limited,676.7,Revenue,agen
DIRECT SOCIAL SERVICES,GF ADULT SERVICES,04-Jun-18,217909,1st Grade Care Limited,676.7,Revenue,agen
DIRECT SOCIAL SERVICES,GF ADULT SERVICES,04-Jun-18,217909,Caring Companions Limited,716.8,Revenue,agen
DIRECT SOCIAL SERVICES,GF ADULT SERVICES,04-Jun-18,217909,Caring Companions Limited,627.2,Revenue,agen
DIRECT SOCIAL SERVICES,GF ADULT SERVICES,04-Jun-18,217909,Caring Companions Limited,627.2,Revenue,agen
DIRECT LEARNING AND SKILLS,STRATEGY COMMUNITY LEARNING & RESOURCES,04-Jun-18,100121,CoveyTRC Limited,990,Revenue,Companies
DIRECT LEARNING AND SKILLS,STRATEGY COMMUNITY LEARNING & RESOURCES,04-Jun-18,100121,CoveyTRC Limited,-990,Revenue,Companies
DIRECT LEARNING AND SKILLS,ACHIEVEMENT FOR ALL,04-Jun-18,130280,Lyreco UK Limited,554.65,Revenue,Companies
DIRECT MANAGING DIRECTOR AND RESOURCES,GF HUMAN RESOURCES,04-Jun-18,140112,Quanta Training Limited,585,Revenue,Companies
DIRECT MANAGING DIRECTOR AND RESOURCES,GF HUMAN RESOURCES,04-Jun-18,140117,Partnerships In Care Limited T/A Care First,665.93,Revenue,Companies
DIRECT MANAGING DIRECTOR AND RESOURCES,GF HUMAN RESOURCES,04-Jun-18,140120,Quanta Training Limited,585,Revenue,Companies
DIRECT MANAGING DIRECTOR AND RESOURCES,GF HUMAN RESOURCES,04-Jun-18,140122,Childcare Vouchers Limited,29786.98,Revenue,Companies
DIRECT SOCIAL SERVICES,GF ADULT SERVICES,04-Jun-18,212781,Castell Howell Foods Limited,564.13,Revenue,Companies
DIRECT SOCIAL SERVICES,GF ADULT SERVICES,04-Jun-18,216181,Handicare Accessibility Limited,2016.13,Revenue,Companies
DIRECT SOCIAL SERVICES,GF ADULT SERVICES,04-Jun-18,216181,Handicare Accessibility Limited,599,Revenue,Companies
DIRECT SOCIAL SERVICES,GF ADULT SERVICES,04-Jun-18,217909,Everycare (Cardiff) Limited,813.96,Revenue,Companies
DIRECT SOCIAL SERVICES,GF ADULT SERVICES,04-Jun-18,217909,Everycare (Cardiff) Limited,651.9,Revenue,Companies
DIRECT SOCIAL SERVICES,GF ADULT SERVICES,04-Jun-18,217909,Everycare (Cardiff) Limited,813.96,Revenue,Companies
DIRECT SOCIAL SERVICES,GF ADULT SERVICES,04-Jun-18,217909,Everycare (Cardiff) Limited,651.9,Revenue,Companies
DIRECT SOCIAL SERVICES,GF ADULT SERVICES,04-Jun-18,217909,Merricks Private Transport Contractors Limited,512,Revenue,Companies
DIRECT SOCIAL SERVICES,GF ADULT SERVICES,04-Jun-18,217909,Merricks Private Transport Contractors Limited,506,Revenue,Companies
DIRECT SOCIAL SERVICES,GF ADULT SERVICES,04-Jun-18,217909,Merricks Private Transport Contractors Limited,920,Revenue,Companies
DIRECT ENVIRONMENT AND HOUSING,GF ENV AND VISIBLE,04-Jun-18,300600,Eliesha Training Limited,2238.6,Revenue,Companies
DIRECT ENVIRONMENT AND HOUSING,BUILDING SERVICES,04-Jun-18,303930,Burner Efficiency Services Limited,1624,Revenue,Companies
DIRECT ENVIRONMENT AND HOUSING,BUILDING SERVICES,04-Jun-18,303930,Burner Efficiency Services Limited,571.16,Revenue,Companies
DIRECT ENVIRONMENT AND HOUSING,BUILDING SERVICES,04-Jun-18,303931,Hi Tech Industrial Roofing Limited,995,Revenue,Companies
DIRECT ENVIRONMENT AND HOUSING,VEHICLES,04-Jun-18,319010,Euro Commercials (South Wales) Limited,1153.38,Revenue,Companies
DIRECT ENVIRONMENT AND HOUSING,VEHICLES,04-Jun-18,319010,Fleetwheel Limited,1070,Revenue,Companies
DIRECT ENVIRONMENT AND HOUSING,VEHICLES,04-Jun-18,319010,NTM - GB Limited,2327.15,Revenue,Companies
DIRECT ENVIRONMENT AND HOUSING,GF ENV AND VISIBLE,04-Jun-18,325338,Calibre Contracting Limited,820.08,Revenue,Companies
DIRECT ENVIRONMENT AND HOUSING,GF ENV AND VISIBLE,04-Jun-18,325338,Calibre Contracting Limited,583.27,Revenue,Companies
DIRECT ENVIRONMENT AND HOUSING,GF ENV AND VISIBLE,04-Jun-18,325340,Calibre Contracting Limited,1335.69,Revenue,Companies
DIRECT ENVIRONMENT AND HOUSING,GF ENV AND VISIBLE,04-Jun-18,325340,Calibre Contracting Limited,738.88,Revenue,Companies
DIRECT ENVIRONMENT AND HOUSING,GF ENV AND VISIBLE,04-Jun-18,325340,Calibre Contracting Limited,874.9,Revenue,Companies
DIRECT ENVIRONMENT AND HOUSING,GF ENV AND VISIBLE,04-Jun-18,325340,Calibre Contracting Limited,1230.12,Revenue,Companies
DIRECT ENVIRONMENT AND HOUSING,GF ENV AND VISIBLE,04-Jun-18,325340,Calibre Contracting Limited,874.91,Revenue,Companies
DIRECT ENVIRONMENT AND HOUSING,GF ENV AND VISIBLE,04-Jun-18,325342,Calibre Contracting Limited,1108.34,Revenue,Companies
DIRECT ENVIRONMENT AND HOUSING,GF ENV AND VISIBLE,04-Jun-18,325600,Calibre Contracting Limited,1052.7,Revenue,Companies
DIRECT ENVIRONMENT AND HOUSING,GF ENV AND VISIBLE,04-Jun-18,325790,Calibre Contracting Limited,985.21,Revenue,Companies
DIRECT ENVIRONMENT AND HOUSING,GF ENV AND VISIBLE,04-Jun-18,325894,Calibre Contracting Limited,1640.16,Revenue,Companies
DIRECT ENVIRONMENT AND HOUSING,GF PARKS AND GROUNDS,04-Jun-18,333154,The Firewood Company (UK) Limited T/A Esa Tree Care,2100,Revenue,Companies
DIRECT ENVIRONMENT AND HOUSING,REGENERATION & PLANNING,04-Jun-18,350714,Experian Limited,-1000,Revenue,Companies
DIRECT ENVIRONMENT AND HOUSING,REGENERATION & PLANNING,04-Jun-18,350714,Experian Limited,1000,Revenue,Companies
DIRECT ENVIRONMENT AND HOUSING,VISIBLE SERVICES,04-Jun-18,365786,Cardiff City Transport Services Limited,116919.74,Revenue,Companies
DIRECT ENVIRONMENT AND HOUSING,VISIBLE SERVICES,04-Jun-18,365787,New Adventure Travel Limited,19809,Revenue,Companies
DIRECT ENVIRONMENT AND HOUSING,VISIBLE SERVICES,04-Jun-18,365789,New Adventure Travel Limited,6049.08,Revenue,Companies
DIRECT ENVIRONMENT AND HOUSING,VISIBLE SERVICES,04-Jun-18,365791,Easyway Minicoach Hire Limited,9575,Revenue,Companies
DIRECT ENVIRONMENT AND HOUSING,VISIBLE SERVICES,04-Jun-18,365791,New Adventure Travel Limited,12059,Revenue,Companies
DIRECT ENVIRONMENT AND HOUSING,VISIBLE SERVICES,04-Jun-18,365791,New Adventure Travel Limited,21237.5,Revenue,Companies
DIRECT ENVIRONMENT AND HOUSING,VISIBLE SERVICES,04-Jun-18,365794,New Adventure Travel Limited,2266.92,Revenue,Companies
DIRECT ENVIRONMENT AND HOUSING,VISIBLE SERVICES,04-Jun-18,365796,New Adventure Travel Limited,47461,Revenue,Companies
DIRECT ENVIRONMENT AND HOUSING,VISIBLE SERVICES,04-Jun-18,365796,New Adventure Travel Limited,13142.5,Revenue,Companies
DIRECT ENVIRONMENT AND HOUSING,GF HOUSING SERVICES,04-Jun-18,405113,Interlet Residential Limited,650,Revenue,Companies
DIRECT ENVIRONMENT AND HOUSING,GF HOUSING SERVICES,04-Jun-18,405113,Knights Lettings Limited T/A Knights Estate Agents,635,Revenue,Companies
DIRECT ENVIRONMENT AND HOUSING,GF HOUSING SERVICES,04-Jun-18,405113,Knights Lettings Limited T/A Knights Estate Agents,675,Revenue,Companies
DIRECT ENVIRONMENT AND HOUSING,HOUSING,04-Jun-18,407108,Trade & DIY Products Limited,1042,Revenue,Companies
DIRECT ENVIRONMENT AND HOUSING,HOUSING,04-Jun-18,407120,AFT Group (Wales) Limited T/A Advanced Fire Technologies Limited,2918.5,Revenue,Companies
DIRECT MANAGING DIRECTOR AND RESOURCES,GF RESOURCES,04-Jun-18,420202,Better Mobility Limited,12893.5,Revenue,Companies
DIRECT MANAGING DIRECTOR AND RESOURCES,GF RESOURCES,04-Jun-18,420220,CIPFA Business Limited,500,Revenue,Companies
DIRECT MANAGING DIRECTOR AND RESOURCES,GF RESOURCES,04-Jun-18,421230,Quanta Training Limited,1755,Revenue,Companies
DIRECT MANAGING DIRECTOR AND RESOURCES,GF CORPORATE AND CUSTOMER SERVICES,04-Jun-18,440010,Quanta Training Limited,1170,Revenue,Companies
DIRECT MANAGING DIRECTOR AND RESOURCES,GF CORPORATE AND CUSTOMER SERVICES,04-Jun-18,440536,Quanta Training Limited,1170,Revenue,Companies
DIRECT CAPITAL LEARN AND SKILLS,AR CAPITAL SCHOOLS,04-Jun-18,812194,Pinit Building & Civil Engineering Limited,596,Capital,Companies
DIRECT CAPITAL VISIBLE AND HOUSING SERVICES,AR CAPITAL ENGINEER,04-Jun-18,831210,Philips Lighting UK Limited,2545.48,Capital,Companies
DIRECT CAPITAL DEVELOPMENT,CAPITAL PLANNING,04-Jun-18,837115,Geo Pollution Technologies UK Limited T/A GEM,2430.6,Capital,Companies
DIRECT CAPITAL VISIBLE AND HOUSING SERVICES,CAPITAL HRA,04-Jun-18,842116,AFT Group (Wales) Limited T/A Advanced Fire Technologies Limited,1351.09,Capital,Companies
DIRECT CAPITAL VISIBLE AND HOUSING SERVICES,CAPITAL HRA,04-Jun-18,842116,AFT Group (Wales) Limited T/A Advanced Fire Technologies Limited,1724.21,Capital,Companies
DIRECT CAPITAL VISIBLE AND HOUSING SERVICES,CAPITAL HRA,04-Jun-18,842116,AFT Group (Wales) Limited T/A Advanced Fire Technologies Limited,1724.21,Capital,Companies
DIRECT CAPITAL VISIBLE AND HOUSING SERVICES,CAPITAL HRA,04-Jun-18,842116,AFT Group (Wales) Limited T/A Advanced Fire Technologies Limited,1724.21,Capital,Companies
DIRECT CAPITAL VISIBLE AND HOUSING SERVICES,CAPITAL HRA,04-Jun-18,842116,AFT Group (Wales) Limited T/A Advanced Fire Technologies Limited,1695.34,Capital,Companies
DIRECT CAPITAL VISIBLE AND HOUSING SERVICES,CAPITAL HRA,04-Jun-18,842116,AFT Group (Wales) Limited T/A Advanced Fire Technologies Limited,1324.84,Capital,Companies
DIRECT CAPITAL VISIBLE AND HOUSING SERVICES,CAPITAL HRA,04-Jun-18,842116,AFT Group (Wales) Limited T/A Advanced Fire Technologies Limited,1377.84,Capital,Companies
DIRECT CAPITAL VISIBLE AND HOUSING SERVICES,CAPITAL HRA,04-Jun-18,842116,AFT Group (Wales) Limited T/A Advanced Fire Technologies Limited,1730.96,Capital,Companies
DIRECT CAPITAL VISIBLE AND HOUSING SERVICES,CAPITAL HRA,04-Jun-18,842116,AFT Group (Wales) Limited T/A Advanced Fire Technologies Limited,1704.96,Capital,Companies
DIRECT CAPITAL VISIBLE AND HOUSING SERVICES,CAPITAL HRA,04-Jun-18,842116,AFT Group (Wales) Limited T/A Advanced Fire Technologies Limited,1724.96,Capital,Companies
DIRECT CAPITAL VISIBLE AND HOUSING SERVICES,CAPITAL HRA,04-Jun-18,842116,AFT Group (Wales) Limited T/A Advanced Fire Technologies Limited,1704.96,Capital,Companies
DIRECT CAPITAL VISIBLE AND HOUSING SERVICES,CAPITAL HRA,04-Jun-18,842116,AFT Group (Wales) Limited T/A Advanced Fire Technologies Limited,1411.59,Capital,Companies
DIRECT ENVIRONMENT AND HOUSING,GF HOUSING SERVICES,04-Jun-18,405113,Ian & Jackie Rogers,675,Revenue,Professional Services
DIRECT ENVIRONMENT AND HOUSING,GF HOUSING SERVICES,04-Jun-18,405113,Salvatore Cannatella,650,Revenue,Professional Services
DIRECT MANAGING DIRECTOR AND RESOURCES,GF GENERAL EXPENDITURE POLICY,04-Jun-18,471901,Swansea Bay Port Health Authority,2734,Revenue,Professional Services
DIRECT MANAGING DIRECTOR AND RESOURCES,GF GENERAL EXPENDITURE POLICY,04-Jun-18,471901,South Wales Fire and Rescue Service,500508,Revenue,Public Bodies
DIRECT MANAGING DIRECTOR AND RESOURCES,GF SWPA PRECEPTS,04-Jun-18,475970,The Police and Crime Commissioner for South Wales,1140674,Revenue,Public Bodies
DIRECT SOCIAL SERVICES,GF ADULT SERVICES,04-Jun-18,215489,April Complete Care Solutions Limited,584,Revenue,recy
DIRECT SOCIAL SERVICES,GF ADULT SERVICES,04-Jun-18,215489,April Complete Care Solutions Limited,548.1,Revenue,recy
DIRECT SOCIAL SERVICES,GF ADULT SERVICES,04-Jun-18,216179,April Complete Care Solutions Limited,605.48,Revenue,recy
DIRECT SOCIAL SERVICES,GF ADULT SERVICES,04-Jun-18,216179,April Complete Care Solutions Limited,922.66,Revenue,recy
DIRECT SOCIAL SERVICES,GF ADULT SERVICES,04-Jun-18,217909,April Complete Care Solutions Limited,866.9,Revenue,recy
DIRECT ENVIRONMENT AND HOUSING,GF ENV AND VISIBLE,04-Jun-18,325681,Hays Specialist Recruitment Limited,1143.99,Revenue,recy
DIRECT ENVIRONMENT AND HOUSING,GF ENV AND VISIBLE,04-Jun-18,325681,Hays Specialist Recruitment Limited,1505.26,Revenue,recy
DIRECT ENVIRONMENT AND HOUSING,HOUSING,04-Jun-18,407118,James Andrews Recruitment Solutions Limited,940,Revenue,recy
DIRECT ENVIRONMENT AND HOUSING,VEHICLES,04-Jun-18,319010,Ceri Williams t/a Mobile Tyre Services,2055.84,Revenue,Sole Traders
DIRECT SOCIAL SERVICES,GF ADULT SERVICES,05-Jun-18,215489,Cherish Cymru Limited,617.9,Revenue,agen
DIRECT SOCIAL SERVICES,GF ADULT SERVICES,05-Jun-18,215489,Cherish Cymru Limited,603.59,Revenue,agen
DIRECT SOCIAL SERVICES,GF ADULT SERVICES,05-Jun-18,215489,Cherish Cymru Limited,535.64,Revenue,agen
DIRECT SOCIAL SERVICES,GF ADULT SERVICES,05-Jun-18,215489,Cherish Cymru Limited,538.54,Revenue,agen
DIRECT SOCIAL SERVICES,GF ADULT SERVICES,05-Jun-18,215489,Cherish Cymru Limited,533.74,Revenue,agen
DIRECT SOCIAL SERVICES,GF ADULT SERVICES,05-Jun-18,215489,Cherish Cymru Limited,617.9,Revenue,agen
DIRECT SOCIAL SERVICES,GF ADULT SERVICES,05-Jun-18,215489,Cherish Cymru Limited,603.59,Revenue,agen
DIRECT SOCIAL SERVICES,GF ADULT SERVICES,05-Jun-18,215489,Cherish Cymru Limited,535.64,Revenue,agen
DIRECT SOCIAL SERVICES,GF ADULT SERVICES,05-Jun-18,215489,Cherish Cymru Limited,538.54,Revenue,agen
DIRECT SOCIAL SERVICES,GF ADULT SERVICES,05-Jun-18,215489,Cherish Cymru Limited,533.74,Revenue,agen
DIRECT LEARNING AND SKILLS,SCHOOL IMPROVEMENT,05-Jun-18,100107,ParentPay Limited,3807,Revenue,Companies
DIRECT LEARNING AND SKILLS,STRATEGY COMMUNITY LEARNING & RESOURCES,05-Jun-18,100121,ParentPay Limited,3100.5,Revenue,Companies
DIRECT LEARNING AND SKILLS,SCHOOLS DELEGATED,05-Jun-18,101065,Upbeat Music and Arts Service Limited,1000,Revenue,Companies
DIRECT LEARNING AND SKILLS,STRATEGY COMMUNITY LEARNING & RESOURCES,05-Jun-18,130045,EDF Energy Plc,679.11,Revenue,Companies
DIRECT LEARNING AND SKILLS,ACHIEVEMENT FOR ALL,05-Jun-18,130280,Portal Training Limited t/a Portal Educational Training Providers,694,Revenue,Companies
DIRECT LEARNING AND SKILLS,GF CATERING,05-Jun-18,154401,ABM Catering for Leisure Limited,1248,Revenue,Companies
DIRECT SOCIAL SERVICES,GF CHILDREN SERVICES,05-Jun-18,201721,EDF Energy Plc,518.11,Revenue,Companies
DIRECT SOCIAL SERVICES,GF CHILDREN SERVICES,05-Jun-18,209151,Little Inspirations Limited,2992,Revenue,Companies
DIRECT SOCIAL SERVICES,GF ADULT SERVICES,05-Jun-18,212731,Castell Howell Foods Limited,537.1,Revenue,Companies
DIRECT SOCIAL SERVICES,GF ADULT SERVICES,05-Jun-18,215489,Cardiff Homecare Limited,708.18,Revenue,Companies
DIRECT SOCIAL SERVICES,GF ADULT SERVICES,05-Jun-18,215489,Cardiff Homecare Limited,708.18,Revenue,Companies
DIRECT SOCIAL SERVICES,GF ADULT SERVICES,05-Jun-18,215489,Cardiff Homecare Limited,708.18,Revenue,Companies
DIRECT SOCIAL SERVICES,GF ADULT SERVICES,05-Jun-18,215489,Grangelodge Residential Home Limited t/a Grangelodge,513.66,Revenue,Companies
DIRECT SOCIAL SERVICES,GF ADULT SERVICES,05-Jun-18,216731,CJ Contract Travel Services Limited,570,Revenue,Companies
DIRECT SOCIAL SERVICES,GF ADULT SERVICES,05-Jun-18,217909,Consensus Support Services Limited t/a Ty Machen,2163.85,Revenue,Companies
DIRECT SOCIAL SERVICES,GF ADULT SERVICES,05-Jun-18,218419,Cardiff Homecare Limited,590.24,Revenue,Companies
DIRECT SOCIAL SERVICES,GF ADULT SERVICES,05-Jun-18,218419,Cardiff Homecare Limited,589.4,Revenue,Companies
DIRECT SOCIAL SERVICES,GF ADULT SERVICES,05-Jun-18,218419,Cardiff Homecare Limited,589.4,Revenue,Companies
DIRECT SOCIAL SERVICES,GF CHILDREN SERVICES,05-Jun-18,260130,Llamau Limited,560,Revenue,Companies
DIRECT SOCIAL SERVICES,REGIONAL ADOPTION SERVICE,05-Jun-18,260500,Pervasive Networks Limited,1671.74,Revenue,Companies
DIRECT ENVIRONMENT AND HOUSING,GF ENV AND VISIBLE,05-Jun-18,325852,Glamorgan White Lining Limited,2745.6,Revenue,Companies
DIRECT ENVIRONMENT AND HOUSING,GF ENV AND VISIBLE,05-Jun-18,325852,Glamorgan White Lining Limited,533.64,Revenue,Companies
DIRECT ENVIRONMENT AND HOUSING,GF ENV AND VISIBLE,05-Jun-18,325852,Glamorgan White Lining Limited,1066.43,Revenue,Companies
DIRECT ENVIRONMENT AND HOUSING,GF ENV AND VISIBLE,05-Jun-18,325852,Glamorgan White Lining Limited,516.18,Revenue,Companies
DIRECT ENVIRONMENT AND HOUSING,GF PARKS AND GROUNDS,05-Jun-18,333154,The Firewood Company (UK) Limited T/A Esa Tree Care,1680,Revenue,Companies
DIRECT ENVIRONMENT AND HOUSING,GF ENV AND VISIBLE,05-Jun-18,341182,Bruton Knowles LLP - client account R Thomas Investments RENT,900,Revenue,Companies
DIRECT ENVIRONMENT AND HOUSING,REGENERATION & PLANNING,05-Jun-18,350736,Business Gas Limited / Electricity,2715.99,Revenue,Companies
DIRECT ENVIRONMENT AND HOUSING,VISIBLE SERVICES,05-Jun-18,365789,Travellink Solutions Limited,1332,Revenue,Companies
DIRECT ENVIRONMENT AND HOUSING,VISIBLE SERVICES,05-Jun-18,365790,Travellink Solutions Limited,2862,Revenue,Companies
DIRECT ENVIRONMENT AND HOUSING,VISIBLE SERVICES,05-Jun-18,365793,Creigiau Travel Limited,9594,Revenue,Companies
DIRECT ENVIRONMENT AND HOUSING,GF LEGAL AND DEMOCRATIC,05-Jun-18,400050,Glamorgan Gem Limited,507,Revenue,Companies
DIRECT ENVIRONMENT AND HOUSING,GF LEGAL AND DEMOCRATIC,05-Jun-18,400050,Glamorgan Gem Limited,507,Revenue,Companies
DIRECT ENVIRONMENT AND HOUSING,GF LEGAL AND DEMOCRATIC,05-Jun-18,400050,Glamorgan Gem Limited,819,Revenue,Companies
DIRECT MANAGING DIRECTOR AND RESOURCES,GF RESOURCES,05-Jun-18,422100,PTSG Electrical Services Limited,522,Revenue,Companies
DIRECT MANAGING DIRECTOR AND RESOURCES,GF CORPORATE AND CUSTOMER SERVICES,05-Jun-18,440011,Office Depot International (UK) Limited t/a Viking Direct,767,Revenue,Companies
DIRECT MANAGING DIRECTOR AND RESOURCES,GF CORPORATE AND CUSTOMER SERVICES,05-Jun-18,440530,Northgate Public Services (UK) Limited,1266.6,Revenue,Companies
DIRECT MANAGING DIRECTOR AND RESOURCES,GF PROPERTY,05-Jun-18,467402,Cooke and Arkwright Limited,2750,Revenue,Companies
DIRECT CAPITAL POLICY,CAPITAL POLICY,05-Jun-18,852513,Tugbury Electrical Services Limited,1455,Capital,Companies
DIRECT LEARNING AND SKILLS,SCHOOL IMPROVEMENT,05-Jun-18,100111,Rhondda Cynon Taff County Borough Council,287026.5,Revenue,Other Local Authorites
DIRECT LEARNING AND SKILLS,SCHOOLS NON DELEGATED,05-Jun-18,100401,Cardiff County Council,3568.67,Revenue,Other Local Authorites
DIRECT LEARNING AND SKILLS,SCHOOLS NON DELEGATED,05-Jun-18,100401,Cardiff County Council,3647.17,Revenue,Other Local Authorites
DIRECT LEARNING AND SKILLS,SCHOOLS NON DELEGATED,05-Jun-18,100402,Cardiff County Council,6873,Revenue,Other Local Authorites
DIRECT LEARNING AND SKILLS,SCHOOLS NON DELEGATED,05-Jun-18,100402,Cardiff County Council,7024.19,Revenue,Other Local Authorites
DIRECT LEARNING AND SKILLS,SCHOOLS NON DELEGATED,05-Jun-18,100403,Cardiff County Council,660.87,Revenue,Other Local Authorites
DIRECT LEARNING AND SKILLS,SCHOOLS NON DELEGATED,05-Jun-18,100403,Cardiff County Council,675.4,Revenue,Other Local Authorites
DIRECT LEARNING AND SKILLS,SCHOOLS NON DELEGATED,05-Jun-18,100405,Cardiff County Council,1321.73,Revenue,Other Local Authorites
DIRECT LEARNING AND SKILLS,SCHOOLS NON DELEGATED,05-Jun-18,100405,Cardiff County Council,1350.81,Revenue,Other Local Authorites
DIRECT CAPITAL LEARN AND SKILLS,CAPITAL SCHOOLS,05-Jun-18,810114,Llantwit Major Comprehensive School,9475.51,Capital,Other Local Authorites
DIRECT LEARNING AND SKILLS,ACHIEVEMENT FOR ALL,05-Jun-18,102652,Mark Harries & Ptn T/A Seirrah Occupational Therapy,549.36,Revenue,Partnerships
DIRECT SOCIAL SERVICES,GF CHILDREN SERVICES,05-Jun-18,209151,Nicola Varney & Ptn t/a Nifty Kids After School Club,1920,Revenue,Partnerships
DIRECT SOCIAL SERVICES,GF CHILDREN SERVICES,05-Jun-18,260190,Sally-Anne Hemmingway,1600,Revenue,Professional Services
DIRECT LEARNING AND SKILLS,SCHOOLS NON DELEGATED,05-Jun-18,100401,Teachers Pensions,3311.98,Revenue,Public Bodies
DIRECT LEARNING AND SKILLS,SCHOOLS NON DELEGATED,05-Jun-18,100402,Teachers Pensions,2382.28,Revenue,Public Bodies
DIRECT LEARNING AND SKILLS,SCHOOLS NON DELEGATED,05-Jun-18,100403,Teachers Pensions,1059.74,Revenue,Public Bodies
DIRECT SOCIAL SERVICES,REGIONAL ADOPTION SERVICE,05-Jun-18,260500,Cardiff Met Company Limited,1107,Revenue,Public Bodies
DIRECT LEARNING AND SKILLS,SCHOOLS NON DELEGATED,05-Jun-18,103065,New Directions (Education) Limited,657.5,Revenue,recy
DIRECT MANAGING DIRECTOR AND RESOURCES,GF HUMAN RESOURCES,05-Jun-18,140119,Acorn Recruitment Limited,1432.6,Revenue,recy
DIRECT ENVIRONMENT AND HOUSING,GF ENV AND VISIBLE,05-Jun-18,323686,Hays Specialist Recruitment Limited,640.64,Revenue,recy
DIRECT ENVIRONMENT AND HOUSING,GF ENV AND VISIBLE,05-Jun-18,325681,Hays Specialist Recruitment Limited,1505.26,Revenue,recy
DIRECT ENVIRONMENT AND HOUSING,HOUSING,05-Jun-18,407106,Building Recruitment Company Limited,750.08,Revenue,recy
DIRECT ENVIRONMENT AND HOUSING,HOUSING,05-Jun-18,407106,James Andrews Recruitment Solutions Limited,787.5,Revenue,recy
DIRECT ENVIRONMENT AND HOUSING,HOUSING,05-Jun-18,407106,James Andrews Recruitment Solutions Limited,825.5,Revenue,recy
DIRECT ENVIRONMENT AND HOUSING,HOUSING,05-Jun-18,407119,Hays Specialist Recruitment Limited,1172.87,Revenue,recy
DIRECT ENVIRONMENT AND HOUSING,HOUSING,05-Jun-18,407119,Hays Specialist Recruitment Limited,1518.81,Revenue,recy
DIRECT MANAGING DIRECTOR AND RESOURCES,GF RESOURCES,05-Jun-18,422160,Anderselite Limited,825,Revenue,recy
DIRECT MANAGING DIRECTOR AND RESOURCES,GF RESOURCES,05-Jun-18,422160,Hays Specialist Recruitment Limited,930.75,Revenue,recy
DIRECT MANAGING DIRECTOR AND RESOURCES,GF RESOURCES,05-Jun-18,422160,Hays Specialist Recruitment Limited,932.03,Revenue,recy
DIRECT SOCIAL SERVICES,GF ADULT SERVICES,05-Jun-18,215486,Bellavista Care (Cardiff) Limited T/A Bellavista Nursing Home Cardiff,684.2,Revenue,Residential Homes
DIRECT SOCIAL SERVICES,GF ADULT SERVICES,05-Jun-18,215486,Bellavista Nursing Homes (Wales) Limited t/a Bellavista Care Home,662.82,Revenue,Residential Homes
DIRECT SOCIAL SERVICES,GF ADULT SERVICES,05-Jun-18,215486,Bellavista Nursing Homes (Wales) Limited t/a Bellavista Care Home,1539.47,Revenue,Residential Homes
DIRECT SOCIAL SERVICES,GF ADULT SERVICES,05-Jun-18,215486,Waverley Care Centre Limited,1945.71,Revenue,Residential Homes
DIRECT SOCIAL SERVICES,GF ADULT SERVICES,05-Jun-18,215486,Waverley Care Centre Limited,1304.27,Revenue,Residential Homes
DIRECT SOCIAL SERVICES,GF ADULT SERVICES,05-Jun-18,215486,Waverley Care Centre Limited,2501.63,Revenue,Residential Homes
DIRECT SOCIAL SERVICES,GF ADULT SERVICES,05-Jun-18,215489,Baltimore Care Limited,516.38,Revenue,Residential Homes
DIRECT SOCIAL SERVICES,GF ADULT SERVICES,05-Jun-18,215489,Baltimore Care Limited,516.38,Revenue,Residential Homes
DIRECT SOCIAL SERVICES,GF ADULT SERVICES,05-Jun-18,215489,Baltimore Care Limited,5613.66,Revenue,Residential Homes
DIRECT SOCIAL SERVICES,GF ADULT SERVICES,05-Jun-18,215489,Baltimore Care Limited,526.38,Revenue,Residential Homes
DIRECT SOCIAL SERVICES,GF ADULT SERVICES,05-Jun-18,215489,Bellavista Care (Cardiff) Limited T/A Bellavista Nursing Home Cardiff,506.04,Revenue,Residential Homes
DIRECT SOCIAL SERVICES,GF ADULT SERVICES,05-Jun-18,215489,Bellavista Care (Cardiff) Limited T/A Bellavista Nursing Home Cardiff,2061.4,Revenue,Residential Homes
DIRECT SOCIAL SERVICES,GF ADULT SERVICES,05-Jun-18,215489,Bellavista Nursing Homes (Wales) Limited t/a Bellavista Care Home,1232.33,Revenue,Residential Homes
DIRECT SOCIAL SERVICES,GF ADULT SERVICES,05-Jun-18,215489,Bellavista Nursing Homes (Wales) Limited t/a Bellavista Care Home,4439.91,Revenue,Residential Homes
DIRECT SOCIAL SERVICES,GF ADULT SERVICES,05-Jun-18,215489,Bellavista Nursing Homes (Wales) Limited t/a Bellavista Care Home,645.84,Revenue,Residential Homes
DIRECT SOCIAL SERVICES,GF ADULT SERVICES,05-Jun-18,215489,Broadway Care Centre Limited T/A Hazelhurst Nursing Home,516.38,Revenue,Residential Homes
DIRECT SOCIAL SERVICES,GF ADULT SERVICES,05-Jun-18,215489,Broadway Care Centre Limited T/A Hazelhurst Nursing Home,538.41,Revenue,Residential Homes
DIRECT SOCIAL SERVICES,GF ADULT SERVICES,05-Jun-18,215489,Duffryn Ffrwd Manor Limited,549.49,Revenue,Residential Homes
DIRECT SOCIAL SERVICES,GF ADULT SERVICES,05-Jun-18,215489,Forge Care Homes Limited t/a The Forge Care Centre,925,Revenue,Residential Homes
DIRECT SOCIAL SERVICES,GF ADULT SERVICES,05-Jun-18,215489,Forge Care Homes Limited t/a The Forge Care Centre,671.32,Revenue,Residential Homes
DIRECT SOCIAL SERVICES,GF ADULT SERVICES,05-Jun-18,215489,Harrison Care Enterprises Barry Limited t/a Island View,516.38,Revenue,Residential Homes
DIRECT SOCIAL SERVICES,GF ADULT SERVICES,05-Jun-18,215489,Hebron Hall Limited,588.35,Revenue,Residential Homes
DIRECT SOCIAL SERVICES,GF ADULT SERVICES,05-Jun-18,215489,Hebron Hall Limited,756.47,Revenue,Residential Homes
DIRECT SOCIAL SERVICES,GF ADULT SERVICES,05-Jun-18,215489,June Zehetmayr t/a Tower Hill Residential Home,538.12,Revenue,Residential Homes
DIRECT SOCIAL SERVICES,GF ADULT SERVICES,05-Jun-18,215489,Lakeside Homes Limited T/A Lakeside House,518.82,Revenue,Residential Homes
DIRECT SOCIAL SERVICES,GF ADULT SERVICES,05-Jun-18,215489,Llangoedmor Properties Limited T/A Parkside Residential Home,516.38,Revenue,Residential Homes
DIRECT SOCIAL SERVICES,GF ADULT SERVICES,05-Jun-18,215489,Llangoedmor Properties Limited T/A Parkside Residential Home,517.8,Revenue,Residential Homes
DIRECT SOCIAL SERVICES,GF ADULT SERVICES,05-Jun-18,215489,Llangoedmor Properties Limited T/A Parkside Residential Home,502.23,Revenue,Residential Homes
DIRECT SOCIAL SERVICES,GF ADULT SERVICES,05-Jun-18,215489,Llangoedmor Properties Limited T/A Parkside Residential Home,3409.04,Revenue,Residential Homes
DIRECT SOCIAL SERVICES,GF ADULT SERVICES,05-Jun-18,215489,Llangoedmor Properties Limited T/A Parkside Residential Home,533.5,Revenue,Residential Homes
DIRECT SOCIAL SERVICES,GF ADULT SERVICES,05-Jun-18,215489,MHA Care Group t/a Morel Court,531.09,Revenue,Residential Homes
DIRECT SOCIAL SERVICES,GF ADULT SERVICES,05-Jun-18,215489,MHA Care Group t/a Ty Gwyn Private Nursing Home,599.54,Revenue,Residential Homes
DIRECT SOCIAL SERVICES,GF ADULT SERVICES,05-Jun-18,215489,MHA Care Group t/a Ty Gwyn Private Nursing Home,552.58,Revenue,Residential Homes
DIRECT SOCIAL SERVICES,GF ADULT SERVICES,05-Jun-18,215489,Middlepatch Limited T/A College Fields Nursing Home,574.12,Revenue,Residential Homes
DIRECT SOCIAL SERVICES,GF ADULT SERVICES,05-Jun-18,215489,Middlepatch Limited T/A College Fields Nursing Home,590.99,Revenue,Residential Homes
DIRECT SOCIAL SERVICES,GF ADULT SERVICES,05-Jun-18,215489,Middlepatch Limited T/A College Fields Nursing Home,572.59,Revenue,Residential Homes
DIRECT SOCIAL SERVICES,GF ADULT SERVICES,05-Jun-18,215489,Middlepatch Limited T/A College Fields Nursing Home,576.54,Revenue,Residential Homes
DIRECT SOCIAL SERVICES,GF ADULT SERVICES,05-Jun-18,215489,Middlepatch Limited T/A College Fields Nursing Home,514.35,Revenue,Residential Homes
DIRECT SOCIAL SERVICES,GF ADULT SERVICES,05-Jun-18,215489,Middlepatch Limited T/A College Fields Nursing Home,567.84,Revenue,Residential Homes
DIRECT SOCIAL SERVICES,GF ADULT SERVICES,05-Jun-18,215489,Middlepatch Limited T/A College Fields Nursing Home,612.02,Revenue,Residential Homes
DIRECT SOCIAL SERVICES,GF ADULT SERVICES,05-Jun-18,215489,Middlepatch Limited T/A College Fields Nursing Home,512.87,Revenue,Residential Homes
DIRECT SOCIAL SERVICES,GF ADULT SERVICES,05-Jun-18,215489,Middlepatch Limited T/A College Fields Nursing Home,614.52,Revenue,Residential Homes
DIRECT SOCIAL SERVICES,GF ADULT SERVICES,05-Jun-18,215489,Middlepatch Limited T/A College Fields Nursing Home,559.95,Revenue,Residential Homes
DIRECT SOCIAL SERVICES,GF ADULT SERVICES,05-Jun-18,215489,Middlepatch Limited T/A College Fields Nursing Home,567.84,Revenue,Residential Homes
DIRECT SOCIAL SERVICES,GF ADULT SERVICES,05-Jun-18,215489,Middlepatch Limited T/A College Fields Nursing Home,589.85,Revenue,Residential Homes
DIRECT SOCIAL SERVICES,GF ADULT SERVICES,05-Jun-18,215489,Northcote Developments Limited,4263.55,Revenue,Residential Homes
DIRECT SOCIAL SERVICES,GF ADULT SERVICES,05-Jun-18,215489,Northcote Developments Limited,513.38,Revenue,Residential Homes
DIRECT SOCIAL SERVICES,GF ADULT SERVICES,05-Jun-18,215489,Northcote Developments Limited,508.15,Revenue,Residential Homes
DIRECT SOCIAL SERVICES,GF ADULT SERVICES,05-Jun-18,215489,Northcote Developments Limited,515.73,Revenue,Residential Homes
DIRECT SOCIAL SERVICES,GF ADULT SERVICES,05-Jun-18,215489,Oakville Care Limited t/a Romilly Nursing Home,900,Revenue,Residential Homes
DIRECT SOCIAL SERVICES,GF ADULT SERVICES,05-Jun-18,215489,Springbank Care Home Limited T/A Springbank Nursing Home,1864.45,Revenue,Residential Homes
DIRECT SOCIAL SERVICES,GF ADULT SERVICES,05-Jun-18,215489,Springbank Care Home Limited T/A Springbank Nursing Home,567.44,Revenue,Residential Homes
DIRECT SOCIAL SERVICES,GF ADULT SERVICES,05-Jun-18,215489,Springbank Care Home Limited T/A Springbank Nursing Home,563.34,Revenue,Residential Homes
DIRECT SOCIAL SERVICES,GF ADULT SERVICES,05-Jun-18,215489,Springbank Care Home Limited T/A Springbank Nursing Home,612.02,Revenue,Residential Homes
DIRECT SOCIAL SERVICES,GF ADULT SERVICES,05-Jun-18,215489,Springbank Care Home Limited T/A Springbank Nursing Home,575.79,Revenue,Residential Homes
DIRECT SOCIAL SERVICES,GF ADULT SERVICES,05-Jun-18,215489,Springbank Care Home Limited T/A Springbank Nursing Home,626.5,Revenue,Residential Homes
DIRECT SOCIAL SERVICES,GF ADULT SERVICES,05-Jun-18,215489,The Manor House St Hilary Limited T/A Milsom House,642.99,Revenue,Residential Homes
DIRECT SOCIAL SERVICES,GF ADULT SERVICES,05-Jun-18,215489,The Manor House St Hilary Limited T/A Milsom House,1176.71,Revenue,Residential Homes
DIRECT SOCIAL SERVICES,GF ADULT SERVICES,05-Jun-18,215489,The Manor House St Hilary Limited T/A Milsom House,504.17,Revenue,Residential Homes
DIRECT SOCIAL SERVICES,GF ADULT SERVICES,05-Jun-18,215489,The Manor House St Hilary Limited T/A Milsom House,1559.94,Revenue,Residential Homes
DIRECT SOCIAL SERVICES,GF ADULT SERVICES,05-Jun-18,215489,Waverley Care Centre Limited,500.74,Revenue,Residential Homes
DIRECT SOCIAL SERVICES,GF ADULT SERVICES,05-Jun-18,215489,Waverley Care Centre Limited,4337.59,Revenue,Residential Homes
DIRECT SOCIAL SERVICES,GF ADULT SERVICES,05-Jun-18,215489,Waverley Care Centre Limited,4109.05,Revenue,Residential Homes
DIRECT SOCIAL SERVICES,GF ADULT SERVICES,05-Jun-18,215489,Waverley Care Centre Limited,585.1,Revenue,Residential Homes
DIRECT SOCIAL SERVICES,GF ADULT SERVICES,05-Jun-18,215489,Waverley Care Centre Limited,11287.66,Revenue,Residential Homes
DIRECT SOCIAL SERVICES,GF ADULT SERVICES,05-Jun-18,215489,Waverley Care Centre Limited,675.33,Revenue,Residential Homes
DIRECT SOCIAL SERVICES,GF ADULT SERVICES,05-Jun-18,215489,Waverley Care Centre Limited,596.49,Revenue,Residential Homes
DIRECT SOCIAL SERVICES,GF ADULT SERVICES,05-Jun-18,216176,Forge Care Homes Limited t/a The Forge Care Centre,534.54,Revenue,Residential Homes
DIRECT SOCIAL SERVICES,GF ADULT SERVICES,05-Jun-18,216179,Accomplish Group Limited t/a Cedar House,1380.73,Revenue,Residential Homes
DIRECT SOCIAL SERVICES,GF ADULT SERVICES,05-Jun-18,216179,Amethyst Healthcare Limited t/a Hillstone House,1770.23,Revenue,Residential Homes
DIRECT SOCIAL SERVICES,GF ADULT SERVICES,05-Jun-18,216179,Bellavista Nursing Homes (Wales) Limited t/a Bellavista Care Home,552.23,Revenue,Residential Homes
DIRECT SOCIAL SERVICES,GF ADULT SERVICES,05-Jun-18,216179,Care 4 U (Neath) Limited,1754.28,Revenue,Residential Homes
DIRECT SOCIAL SERVICES,GF ADULT SERVICES,05-Jun-18,216179,Crusader Medical Care Limited T/A St Saviours Nursing Home,551.35,Revenue,Residential Homes
DIRECT SOCIAL SERVICES,GF ADULT SERVICES,05-Jun-18,216179,Forge Care Homes Limited t/a The Forge Care Centre,3303.57,Revenue,Residential Homes
DIRECT SOCIAL SERVICES,GF ADULT SERVICES,05-Jun-18,216179,Leonard Cheshire Disability,970.38,Revenue,Residential Homes
DIRECT SOCIAL SERVICES,GF ADULT SERVICES,05-Jun-18,216179,Middlepatch Limited T/A College Fields Nursing Home,621.55,Revenue,Residential Homes
DIRECT SOCIAL SERVICES,GF ADULT SERVICES,05-Jun-18,216179,Middlepatch Limited T/A College Fields Nursing Home,618.34,Revenue,Residential Homes
DIRECT SOCIAL SERVICES,GF ADULT SERVICES,05-Jun-18,216179,Springbank Care Home Limited T/A Springbank Nursing Home,572.38,Revenue,Residential Homes
DIRECT SOCIAL SERVICES,GF ADULT SERVICES,05-Jun-18,216179,Springbank Care Home Limited T/A Springbank Nursing Home,740,Revenue,Residential Homes
DIRECT SOCIAL SERVICES,GF ADULT SERVICES,05-Jun-18,216179,Valebrook Care Homes Limited,1851.35,Revenue,Residential Homes
DIRECT SOCIAL SERVICES,GF ADULT SERVICES,05-Jun-18,216179,Voyage 1 Limited t/a Brook Lodge,2528.8,Revenue,Residential Homes
DIRECT SOCIAL SERVICES,GF ADULT SERVICES,05-Jun-18,216179,Voyage 1 Limited t/a Falcons Rest & Poachers Cottage,1729.64,Revenue,Residential Homes
DIRECT SOCIAL SERVICES,GF ADULT SERVICES,05-Jun-18,217909,Accomplish Group Limited,1821.48,Revenue,Residential Homes
DIRECT SOCIAL SERVICES,GF ADULT SERVICES,05-Jun-18,217909,Accomplish Group Limited,2146.47,Revenue,Residential Homes
DIRECT SOCIAL SERVICES,GF ADULT SERVICES,05-Jun-18,217909,Accomplish Group Limited t/a Cedar House,1582.7,Revenue,Residential Homes
DIRECT SOCIAL SERVICES,GF ADULT SERVICES,05-Jun-18,217909,Amethyst Healthcare Limited t/a Hillstone House,1680.86,Revenue,Residential Homes
DIRECT SOCIAL SERVICES,GF ADULT SERVICES,05-Jun-18,217909,Amethyst Healthcare Limited t/a Hillstone House,1462.13,Revenue,Residential Homes
DIRECT SOCIAL SERVICES,GF ADULT SERVICES,05-Jun-18,217909,Glasallt Fawr Camphill Centre,995.72,Revenue,Residential Homes
DIRECT SOCIAL SERVICES,GF ADULT SERVICES,05-Jun-18,217909,Glasallt Fawr Camphill Centre,1544.9,Revenue,Residential Homes
DIRECT SOCIAL SERVICES,GF ADULT SERVICES,05-Jun-18,217909,Heatherleigh Care Limited t/a 106 Splott Road,1563.71,Revenue,Residential Homes
DIRECT SOCIAL SERVICES,GF ADULT SERVICES,05-Jun-18,217909,Heatherleigh Care Limited t/a 106 Splott Road,1223.14,Revenue,Residential Homes
DIRECT SOCIAL SERVICES,GF ADULT SERVICES,05-Jun-18,217909,Llysywaun Limited t/a Bayview Lodge Nursing Home,1724.9,Revenue,Residential Homes
DIRECT SOCIAL SERVICES,GF ADULT SERVICES,05-Jun-18,217909,Ocean Community Services Limited t/a Westminster Court Care Home,1116.27,Revenue,Residential Homes
DIRECT SOCIAL SERVICES,GF ADULT SERVICES,05-Jun-18,217909,The Cedars Care Services Limited T/A Ashgrove Care Home,2112.35,Revenue,Residential Homes
DIRECT SOCIAL SERVICES,GF ADULT SERVICES,05-Jun-18,217909,The Cedars Care Services Limited T/A Ashgrove Care Home,995.35,Revenue,Residential Homes
DIRECT SOCIAL SERVICES,GF ADULT SERVICES,05-Jun-18,217909,The Cedars Care Services Limited T/A Oaklands,1030.35,Revenue,Residential Homes
DIRECT SOCIAL SERVICES,GF ADULT SERVICES,05-Jun-18,217909,The Cedars Care Services Limited t/a Sycamore House,2026.35,Revenue,Residential Homes
DIRECT SOCIAL SERVICES,GF ADULT SERVICES,05-Jun-18,217909,The Cedars Care Services Limited t/a Sycamore House,1809.35,Revenue,Residential Homes
DIRECT SOCIAL SERVICES,GF ADULT SERVICES,05-Jun-18,217909,The Cedars Care Services Limited t/a The Cedars,1576.06,Revenue,Residential Homes
DIRECT SOCIAL SERVICES,GF ADULT SERVICES,05-Jun-18,217909,The Cedars Care Services Limited t/a The Cedars,1365.05,Revenue,Residential Homes
DIRECT SOCIAL SERVICES,GF ADULT SERVICES,05-Jun-18,217909,The Cedars Care Services Limited t/a The Hollies,1864.35,Revenue,Residential Homes
DIRECT SOCIAL SERVICES,GF ADULT SERVICES,05-Jun-18,217909,Vale Phoenix Limited,1079.73,Revenue,Residential Homes
DIRECT SOCIAL SERVICES,GF ADULT SERVICES,05-Jun-18,217909,Vale Phoenix Limited,1116.94,Revenue,Residential Homes
DIRECT SOCIAL SERVICES,GF ADULT SERVICES,05-Jun-18,217909,Valebrook Care Homes Limited,1654.39,Revenue,Residential Homes
DIRECT SOCIAL SERVICES,GF ADULT SERVICES,05-Jun-18,217909,Valebrook Care Homes Limited,1999.5,Revenue,Residential Homes
DIRECT SOCIAL SERVICES,GF ADULT SERVICES,05-Jun-18,217909,Valebrook Care Homes Limited,1420.24,Revenue,Residential Homes
DIRECT SOCIAL SERVICES,GF ADULT SERVICES,05-Jun-18,217909,Valebrook Care Homes Limited,1767.35,Revenue,Residential Homes
DIRECT SOCIAL SERVICES,GF ADULT SERVICES,05-Jun-18,217909,Valebrook Care Homes Limited,1861.95,Revenue,Residential Homes
DIRECT SOCIAL SERVICES,GF ADULT SERVICES,05-Jun-18,217909,Valebrook Care Homes Limited,1390.24,Revenue,Residential Homes
DIRECT SOCIAL SERVICES,GF ADULT SERVICES,05-Jun-18,218321,Adriana Limited T/A The Priory Nursing Home,536,Revenue,Residential Homes
DIRECT SOCIAL SERVICES,GF ADULT SERVICES,05-Jun-18,218321,Hafod Care Association Limited,635.5,Revenue,Residential Homes
DIRECT SOCIAL SERVICES,GF ADULT SERVICES,05-Jun-18,218321,Harrison Care Enterprises Barry Limited t/a Island View,520.91,Revenue,Residential Homes
DIRECT SOCIAL SERVICES,GF ADULT SERVICES,05-Jun-18,218321,Isman & Kinze Nessa T/A Haven House,516.38,Revenue,Residential Homes
DIRECT SOCIAL SERVICES,GF ADULT SERVICES,05-Jun-18,218321,J and P Residential Homes Limited T/A Monkstone House,600,Revenue,Residential Homes
DIRECT SOCIAL SERVICES,GF ADULT SERVICES,05-Jun-18,218321,Northcote Developments Limited,559,Revenue,Residential Homes
DIRECT SOCIAL SERVICES,GF ADULT SERVICES,05-Jun-18,218321,Sanda Mitchel & Ptn t/a Canola House Residential Home,578,Revenue,Residential Homes
DIRECT SOCIAL SERVICES,GF ADULT SERVICES,05-Jun-18,218321,Waverley Care Centre Limited,909.98,Revenue,Residential Homes
DIRECT SOCIAL SERVICES,GF ADULT SERVICES,05-Jun-18,218419,Anwen Care Limited t/a Anwen Care Home,664,Revenue,Residential Homes
DIRECT SOCIAL SERVICES,GF ADULT SERVICES,05-Jun-18,218419,Baltimore Care Limited,527.38,Revenue,Residential Homes
DIRECT SOCIAL SERVICES,GF ADULT SERVICES,05-Jun-18,218419,Baltimore Care Limited,505.31,Revenue,Residential Homes
DIRECT SOCIAL SERVICES,GF ADULT SERVICES,05-Jun-18,218419,Barchester Healthcare Homes Limited T/A Bushey House Beaumont Care Home,1400,Revenue,Residential Homes
DIRECT SOCIAL SERVICES,GF ADULT SERVICES,05-Jun-18,218419,Bellavista Care (Cardiff) Limited T/A Bellavista Nursing Home Cardiff,696.38,Revenue,Residential Homes
DIRECT SOCIAL SERVICES,GF ADULT SERVICES,05-Jun-18,218419,Bellavista Care (Cardiff) Limited T/A Bellavista Nursing Home Cardiff,516.38,Revenue,Residential Homes
DIRECT SOCIAL SERVICES,GF ADULT SERVICES,05-Jun-18,218419,David Austin t/a Silverdale,663.68,Revenue,Residential Homes
DIRECT SOCIAL SERVICES,GF ADULT SERVICES,05-Jun-18,218419,E & E Homes Limited T/A Cliffhaven Residential Home,501.05,Revenue,Residential Homes
DIRECT SOCIAL SERVICES,GF ADULT SERVICES,05-Jun-18,218419,E & E Homes Limited T/A Cliffhaven Residential Home,516.38,Revenue,Residential Homes
DIRECT SOCIAL SERVICES,GF ADULT SERVICES,05-Jun-18,218419,E & E Homes Limited T/A Cliffhaven Residential Home,503.15,Revenue,Residential Homes
DIRECT SOCIAL SERVICES,GF ADULT SERVICES,05-Jun-18,218419,E & E Homes Limited T/A Cliffhaven Residential Home,505.2,Revenue,Residential Homes
DIRECT SOCIAL SERVICES,GF ADULT SERVICES,05-Jun-18,218419,Forge Care Homes Limited t/a The Forge Care Centre,699.25,Revenue,Residential Homes
DIRECT SOCIAL SERVICES,GF ADULT SERVICES,05-Jun-18,218419,Hallmark Care Homes (Bute Town) Limited t/a Shire Hall Care Home,1215.5,Revenue,Residential Homes
DIRECT SOCIAL SERVICES,GF ADULT SERVICES,05-Jun-18,218419,Harrison Care Enterprises Barry Limited t/a Island View,516.38,Revenue,Residential Homes
DIRECT SOCIAL SERVICES,GF ADULT SERVICES,05-Jun-18,218419,Harrison Care Enterprises Barry Limited t/a Island View,501.96,Revenue,Residential Homes
DIRECT SOCIAL SERVICES,GF ADULT SERVICES,05-Jun-18,218419,Harrison Care Enterprises Barry Limited t/a Island View,618,Revenue,Residential Homes
DIRECT SOCIAL SERVICES,GF ADULT SERVICES,05-Jun-18,218419,Harrison Care Enterprises Barry Limited t/a Island View,514.75,Revenue,Residential Homes
DIRECT SOCIAL SERVICES,GF ADULT SERVICES,05-Jun-18,218419,Harrison Care Enterprises Barry Limited t/a Island View,544.81,Revenue,Residential Homes
DIRECT SOCIAL SERVICES,GF ADULT SERVICES,05-Jun-18,218419,Harrison Care Enterprises Barry Limited t/a Island View,516.38,Revenue,Residential Homes
DIRECT SOCIAL SERVICES,GF ADULT SERVICES,05-Jun-18,218419,Harrison Care Enterprises Barry Limited t/a Island View,516.38,Revenue,Residential Homes
DIRECT SOCIAL SERVICES,GF ADULT SERVICES,05-Jun-18,218419,Harrison Care Enterprises Barry Limited t/a Island View,503.11,Revenue,Residential Homes
DIRECT SOCIAL SERVICES,GF ADULT SERVICES,05-Jun-18,218419,Harrison Care Enterprises Barry Limited t/a Island View,516.38,Revenue,Residential Homes
DIRECT SOCIAL SERVICES,GF ADULT SERVICES,05-Jun-18,218419,June Zehetmayr t/a Tower Hill Residential Home,650.88,Revenue,Residential Homes
DIRECT SOCIAL SERVICES,GF ADULT SERVICES,05-Jun-18,218419,June Zehetmayr t/a Tower Hill Residential Home,518.38,Revenue,Residential Homes
DIRECT SOCIAL SERVICES,GF ADULT SERVICES,05-Jun-18,218419,June Zehetmayr t/a Tower Hill Residential Home,516.56,Revenue,Residential Homes
DIRECT SOCIAL SERVICES,GF ADULT SERVICES,05-Jun-18,218419,Llangoedmor Properties Limited T/A Parkside Residential Home,700,Revenue,Residential Homes
DIRECT SOCIAL SERVICES,GF ADULT SERVICES,05-Jun-18,218419,Llangoedmor Properties Limited T/A Parkside Residential Home,700,Revenue,Residential Homes
DIRECT SOCIAL SERVICES,GF ADULT SERVICES,05-Jun-18,218419,Llangoedmor Properties Limited T/A Parkside Residential Home,650.88,Revenue,Residential Homes
DIRECT SOCIAL SERVICES,GF ADULT SERVICES,05-Jun-18,218419,Shirwan Al-Mufti & Ptn t/a Pontcanna House,600,Revenue,Residential Homes
DIRECT SOCIAL SERVICES,GF ADULT SERVICES,05-Jun-18,218419,The Manor House St Hilary Limited T/A Milsom House,700.33,Revenue,Residential Homes
DIRECT SOCIAL SERVICES,GF ADULT SERVICES,05-Jun-18,218419,Waverley Care Centre Limited,629.59,Revenue,Residential Homes
DIRECT SOCIAL SERVICES,GF ADULT SERVICES,05-Jun-18,218419,Waverley Care Centre Limited,574,Revenue,Residential Homes
DIRECT SOCIAL SERVICES,GF ADULT SERVICES,05-Jun-18,218419,Waverley Care Centre Limited,576.56,Revenue,Residential Homes
DIRECT SOCIAL SERVICES,GF ADULT SERVICES,05-Jun-18,218419,Waverley Care Centre Limited,672.09,Revenue,Residential Homes
DIRECT SOCIAL SERVICES,GF ADULT SERVICES,05-Jun-18,218419,Waverley Care Centre Limited,514.18,Revenue,Residential Homes
DIRECT SOCIAL SERVICES,GF CHILDREN SERVICES,05-Jun-18,260130,Walter Standen T/A Standens Contract Hire,672,Revenue,Sole Traders
DIRECT SOCIAL SERVICES,GF CHILDREN SERVICES,05-Jun-18,260235,Walter Standen T/A Standens Contract Hire,1200,Revenue,Sole Traders
DIRECT SOCIAL SERVICES,GF CHILDREN SERVICES,05-Jun-18,260235,Walter Standen T/A Standens Contract Hire,690,Revenue,Sole Traders
DIRECT SOCIAL SERVICES,GF CHILDREN SERVICES,05-Jun-18,260235,Walter Standen T/A Standens Contract Hire,576,Revenue,Sole Traders
DIRECT SOCIAL SERVICES,GF ADULT SERVICES,06-Jun-18,215489,1st Grade Care Limited,532.7,Revenue,agen
DIRECT SOCIAL SERVICES,GF ADULT SERVICES,06-Jun-18,215489,1st Grade Care Limited,582.4,Revenue,agen
DIRECT SOCIAL SERVICES,GF ADULT SERVICES,06-Jun-18,215489,1st Grade Care Limited,621.6,Revenue,agen
DIRECT SOCIAL SERVICES,GF ADULT SERVICES,06-Jun-18,215489,1st Grade Care Limited,597.15,Revenue,agen
DIRECT SOCIAL SERVICES,GF ADULT SERVICES,06-Jun-18,215489,1st Grade Care Limited,532.7,Revenue,agen
DIRECT SOCIAL SERVICES,GF ADULT SERVICES,06-Jun-18,215489,1st Grade Care Limited,613.9,Revenue,agen
DIRECT SOCIAL SERVICES,GF ADULT SERVICES,06-Jun-18,215489,Cardiff & Vale Caring 4 U Limited T/A Caremark Cardiff & The Vale of Glamorgan,735.53,Revenue,agen
DIRECT SOCIAL SERVICES,GF ADULT SERVICES,06-Jun-18,215489,Cardiff & Vale Caring 4 U Limited T/A Caremark Cardiff & The Vale of Glamorgan,542.5,Revenue,agen
DIRECT SOCIAL SERVICES,GF ADULT SERVICES,06-Jun-18,215489,Cardiff & Vale Caring 4 U Limited T/A Caremark Cardiff & The Vale of Glamorgan,817.98,Revenue,agen
DIRECT SOCIAL SERVICES,GF ADULT SERVICES,06-Jun-18,215489,Cardiff & Vale Caring 4 U Limited T/A Caremark Cardiff & The Vale of Glamorgan,742.62,Revenue,agen
DIRECT SOCIAL SERVICES,GF ADULT SERVICES,06-Jun-18,215489,Cardiff & Vale Caring 4 U Limited T/A Caremark Cardiff & The Vale of Glamorgan,500.38,Revenue,agen
DIRECT SOCIAL SERVICES,GF ADULT SERVICES,06-Jun-18,215489,Cardiff & Vale Caring 4 U Limited T/A Caremark Cardiff & The Vale of Glamorgan,735.53,Revenue,agen
DIRECT SOCIAL SERVICES,GF ADULT SERVICES,06-Jun-18,215489,Cardiff & Vale Caring 4 U Limited T/A Caremark Cardiff & The Vale of Glamorgan,542.5,Revenue,agen
DIRECT SOCIAL SERVICES,GF ADULT SERVICES,06-Jun-18,215489,Cardiff & Vale Caring 4 U Limited T/A Caremark Cardiff & The Vale of Glamorgan,812.42,Revenue,agen
DIRECT SOCIAL SERVICES,GF ADULT SERVICES,06-Jun-18,215489,Cardiff & Vale Caring 4 U Limited T/A Caremark Cardiff & The Vale of Glamorgan,742.62,Revenue,agen
DIRECT SOCIAL SERVICES,GF ADULT SERVICES,06-Jun-18,215489,Cardiff & Vale Caring 4 U Limited T/A Caremark Cardiff & The Vale of Glamorgan,500.38,Revenue,agen
DIRECT SOCIAL SERVICES,GF ADULT SERVICES,06-Jun-18,217909,1st Grade Care Limited,676.7,Revenue,agen
DIRECT LEARNING AND SKILLS,STRATEGY COMMUNITY LEARNING & RESOURCES,06-Jun-18,100701,RPW Radon Wales Limited,550,Revenue,Companies
DIRECT LEARNING AND SKILLS,SCHOOLS DELEGATED,06-Jun-18,101013,YHA (England & Wales) t/a YHA Broad Haven,6040.3,Revenue,Companies
DIRECT SOCIAL SERVICES,GF ADULT SERVICES,06-Jun-18,213271,Castell Howell Foods Limited,664.18,Revenue,Companies
DIRECT SOCIAL SERVICES,GF ADULT SERVICES,06-Jun-18,217541,Innovate Trust Limited,268828.62,Revenue,Companies
DIRECT SOCIAL SERVICES,GF ADULT SERVICES,06-Jun-18,217541,Innovate Trust Limited,129716.14,Revenue,Companies
DIRECT SOCIAL SERVICES,GF ADULT SERVICES,06-Jun-18,217541,Innovate Trust Limited,266302.4,Revenue,Companies
DIRECT SOCIAL SERVICES,GF CHILDREN SERVICES,06-Jun-18,260140,PayPoint Payment Services Limited,513.98,Revenue,Companies
DIRECT ENVIRONMENT AND HOUSING,VEHICLES,06-Jun-18,316492,Unilink Finance Limited,4048.75,Revenue,Companies
DIRECT ENVIRONMENT AND HOUSING,VEHICLES,06-Jun-18,316493,Unilink Finance Limited,4048.75,Revenue,Companies
DIRECT ENVIRONMENT AND HOUSING,VEHICLES,06-Jun-18,316494,Unilink Finance Limited,4048.75,Revenue,Companies
DIRECT ENVIRONMENT AND HOUSING,VEHICLES,06-Jun-18,319010,Glenside Commercials Limited,1371.36,Revenue,Companies
DIRECT ENVIRONMENT AND HOUSING,VEHICLES,06-Jun-18,319010,Holt JCB Limited,602.72,Revenue,Companies
DIRECT ENVIRONMENT AND HOUSING,VEHICLES,06-Jun-18,319010,Holt JCB Limited,670,Revenue,Companies
DIRECT ENVIRONMENT AND HOUSING,VEHICLES,06-Jun-18,319010,Mitchell Diesel Limited,1277.37,Revenue,Companies
DIRECT ENVIRONMENT AND HOUSING,VEHICLES,06-Jun-18,319010,Renault Truck Commercials Limited T/A Renault Trucks Cardiff,4445.5,Revenue,Companies
DIRECT ENVIRONMENT AND HOUSING,GF ENV AND VISIBLE,06-Jun-18,325510,Calibre Contracting Limited,526.35,Revenue,Companies
DIRECT ENVIRONMENT AND HOUSING,GF ENV AND VISIBLE,06-Jun-18,325600,Calibre Contracting Limited,1016.4,Revenue,Companies
DIRECT ENVIRONMENT AND HOUSING,GF ENV AND VISIBLE,06-Jun-18,325644,Centregreat Limited,42234.14,Revenue,Companies
DIRECT ENVIRONMENT AND HOUSING,GF ENV AND VISIBLE,06-Jun-18,325854,Bus Shelters Limited,4836.34,Revenue,Companies
DIRECT ENVIRONMENT AND HOUSING,GF PARKS AND GROUNDS,06-Jun-18,333036,Total Ground Care Limited,1500,Revenue,Companies
DIRECT ENVIRONMENT AND HOUSING,GF PARKS AND GROUNDS,06-Jun-18,333036,Total Ground Care Limited,9494.9,Revenue,Companies
DIRECT ENVIRONMENT AND HOUSING,GF PARKS AND GROUNDS,06-Jun-18,333530,Askfrank Limited,820,Revenue,Companies
DIRECT ENVIRONMENT AND HOUSING,GF ENV AND VISIBLE,06-Jun-18,341182,FCC Recycling (UK) Limited,101343.91,Revenue,Companies
DIRECT ENVIRONMENT AND HOUSING,VISIBLE SERVICES,06-Jun-18,365803,Travellink Solutions Limited,1242,Revenue,Companies
DIRECT ENVIRONMENT AND HOUSING,GF HOUSING SERVICES,06-Jun-18,405113,Knights Lettings Limited T/A Knights Estate Agents,750,Revenue,Companies
DIRECT ENVIRONMENT AND HOUSING,HOUSING,06-Jun-18,409103,Heatforce (Wales) Limited,15978.33,Revenue,Companies
DIRECT ENVIRONMENT AND HOUSING,HOUSING,06-Jun-18,409103,Heatforce (Wales) Limited,17524.6,Revenue,Companies
DIRECT ENVIRONMENT AND HOUSING,HOUSING,06-Jun-18,409103,Heatforce (Wales) Limited,1388.57,Revenue,Companies
DIRECT MANAGING DIRECTOR AND RESOURCES,GF PROPERTY,06-Jun-18,467100,Pinit Building & Civil Engineering Limited,13600,Revenue,Companies
DIRECT CAPITAL LEARN AND SKILLS,AR CAPITAL SCHOOLS,06-Jun-18,812251,BECT Building Contractors Limited,100524.79,Capital,Companies
DIRECT CAPITAL VISIBLE AND HOUSING SERVICES,AR CAPITAL ENGINEER,06-Jun-18,831216,Alpine Land Surveyors Limited,600,Capital,Companies
DIRECT CAPITAL VISIBLE AND HOUSING SERVICES,CAPITAL HIGHWAYS,06-Jun-18,831534,Capita Property and Infrastructure Limited,5273.3,Capital,Companies
DIRECT CAPITAL DEVELOPMENT,CAPITAL ECO DEV,06-Jun-18,834192,Tony G Harris & Sons Building Contractor Limited,5098.21,Capital,Companies
DIRECT CAPITAL DEVELOPMENT,AR CAPITAL LEISURE,06-Jun-18,835378,HAGS-SMP Limited,885,Capital,Companies
DIRECT CAPITAL VISIBLE AND HOUSING SERVICES,CAPITAL HRA,06-Jun-18,842068,Ian Williams Limited,17923.73,Capital,Companies
DIRECT CAPITAL VISIBLE AND HOUSING SERVICES,CAPITAL HRA,06-Jun-18,842068,Ian Williams Limited,5747.66,Capital,Companies
DIRECT CAPITAL VISIBLE AND HOUSING SERVICES,CAPITAL HRA,06-Jun-18,842127,Ian Williams Limited,5679.82,Capital,Companies
DIRECT CAPITAL VISIBLE AND HOUSING SERVICES,CAPITAL HRA,06-Jun-18,842145,Ian Williams Limited,10526.64,Capital,Companies
DIRECT CAPITAL VISIBLE AND HOUSING SERVICES,CAPITAL HRA,06-Jun-18,842145,Ian Williams Limited,4801.73,Capital,Companies
DIRECT CAPITAL DEVELOPMENT,CAPITAL PRIV HSG,06-Jun-18,845003,R & M Williams Limited,5126.4,Capital,Companies
DIRECT CAPITAL DEVELOPMENT,CAPITAL PRIV HSG,06-Jun-18,845003,Snowdrop Care & Mobility Limited t/a Snowdrop Independent Living,1895,Capital,Companies
DIRECT CAPITAL POLICY,CAPITAL POLICY,06-Jun-18,852234,Pervasive Networks Limited,47262.93,Capital,Companies
DIRECT CAPITAL POLICY,CAPITAL POLICY,06-Jun-18,852235,Risual Limited,21800,Capital,Companies
DIRECT ENVIRONMENT AND HOUSING,GF HOUSING SERVICES,06-Jun-18,405113,Elaine Hulbert & Ptn t/a Hulbert's Property Services,550,Revenue,Partnerships
DIRECT ENVIRONMENT AND HOUSING,GF HOUSING SERVICES,06-Jun-18,405113,Elaine Hulbert & Ptn t/a Hulbert's Property Services,550,Revenue,Partnerships
DIRECT SOCIAL SERVICES,GF CHILDREN SERVICES,06-Jun-18,260210,Helena Jones,553.5,Revenue,Professional Services
DIRECT SOCIAL SERVICES,GF CHILDREN SERVICES,06-Jun-18,260210,Helena Jones,621,Revenue,Professional Services
DIRECT ENVIRONMENT AND HOUSING,VISIBLE SERVICES,06-Jun-18,365803,Andrew Maker,1260,Revenue,Professional Services
DIRECT ENVIRONMENT AND HOUSING,GF HOUSING SERVICES,06-Jun-18,405113,Sharon Metson,650,Revenue,Professional Services
DIRECT MANAGING DIRECTOR AND RESOURCES,GF GENERAL EXPENDITURE POLICY,06-Jun-18,471900,Wales Audit Office,13666.67,Revenue,Public Bodies
DIRECT MANAGING DIRECTOR AND RESOURCES,GF GENERAL EXPENDITURE POLICY,06-Jun-18,471900,Wales Audit Office,8113,Revenue,Public Bodies
DIRECT MANAGING DIRECTOR AND RESOURCES,GF GENERAL EXPENDITURE POLICY,06-Jun-18,471900,Wales Audit Office,13666.67,Revenue,Public Bodies
DIRECT ENVIRONMENT AND HOUSING,HOUSING,06-Jun-18,407118,James Andrews Recruitment Solutions Limited,940,Revenue,recy
DIRECT SOCIAL SERVICES,GF ADULT SERVICES,06-Jun-18,215489,Willowmere Home Care Agency Limited,540.64,Revenue,Residential Homes
DIRECT SOCIAL SERVICES,GF ADULT SERVICES,06-Jun-18,215489,Willowmere Home Care Agency Limited,750.4,Revenue,Residential Homes
DIRECT SOCIAL SERVICES,GF ADULT SERVICES,06-Jun-18,215489,Willowmere Home Care Agency Limited,845.4,Revenue,Residential Homes
DIRECT SOCIAL SERVICES,GF ADULT SERVICES,06-Jun-18,215489,Willowmere Home Care Agency Limited,707.52,Revenue,Residential Homes
DIRECT SOCIAL SERVICES,GF ADULT SERVICES,06-Jun-18,215489,Willowmere Home Care Agency Limited,685.16,Revenue,Residential Homes
DIRECT SOCIAL SERVICES,GF ADULT SERVICES,06-Jun-18,215489,Willowmere Home Care Agency Limited,618,Revenue,Residential Homes
DIRECT SOCIAL SERVICES,GF ADULT SERVICES,06-Jun-18,215489,Willowmere Home Care Agency Limited,745.76,Revenue,Residential Homes
DIRECT SOCIAL SERVICES,GF ADULT SERVICES,06-Jun-18,215489,Willowmere Home Care Agency Limited,525.86,Revenue,Residential Homes
DIRECT SOCIAL SERVICES,GF ADULT SERVICES,06-Jun-18,215489,Willowmere Home Care Agency Limited,920.58,Revenue,Residential Homes
DIRECT SOCIAL SERVICES,GF ADULT SERVICES,06-Jun-18,215489,Willowmere Home Care Agency Limited,744.12,Revenue,Residential Homes
DIRECT SOCIAL SERVICES,GF ADULT SERVICES,06-Jun-18,215489,Willowmere Home Care Agency Limited,566,Revenue,Residential Homes
DIRECT SOCIAL SERVICES,GF ADULT SERVICES,06-Jun-18,215489,Willowmere Home Care Agency Limited,510.76,Revenue,Residential Homes
DIRECT SOCIAL SERVICES,GF ADULT SERVICES,06-Jun-18,215489,Willowmere Home Care Agency Limited,667.52,Revenue,Residential Homes
DIRECT SOCIAL SERVICES,GF ADULT SERVICES,06-Jun-18,215489,Willowmere Home Care Agency Limited,707.52,Revenue,Residential Homes
DIRECT SOCIAL SERVICES,GF ADULT SERVICES,06-Jun-18,215489,Willowmere Home Care Agency Limited,761.08,Revenue,Residential Homes
DIRECT SOCIAL SERVICES,GF ADULT SERVICES,06-Jun-18,215489,Willowmere Home Care Agency Limited,784.12,Revenue,Residential Homes
DIRECT ENVIRONMENT AND HOUSING,VEHICLES,06-Jun-18,319010,Paul R Curtis t/a PRC Plant Cleaning,690,Revenue,Sole Traders
DIRECT ENVIRONMENT AND HOUSING,REGENERATION & PLANNING,06-Jun-18,359750,Darren Witts t/a Treganna Design,1206,Revenue,Sole Traders
DIRECT ENVIRONMENT AND HOUSING,REGENERATION & PLANNING,06-Jun-18,402501,Gareth Jones T/A GR Jones - Chartered Quantity Surveyors,730,Revenue,Sole Traders
DIRECT LEARNING AND SKILLS,ACHIEVEMENT FOR ALL,06-Jun-18,130244,Rhoose & District Community Association,2584.35,Revenue,Voluntary Organisations
DIRECT SOCIAL SERVICES,GF BUSINESS MANAGEMENT & INOVATION,06-Jun-18,239021,Age Concern Cardiff & Vale of Glamorgan t/a Age Connects Cardiff and the Vale,10928.75,Revenue,Voluntary Organisations
DIRECT CAPITAL DEVELOPMENT,CAPITAL PRIV HSG,06-Jun-18,845003,Care & Repair Cardiff and the Vale,1397.72,Capital,Voluntary Organisations
DIRECT SOCIAL SERVICES,GF ADULT SERVICES,07-Jun-18,215489,All Care (South Wales) Limited,810.41,Revenue,agen
DIRECT SOCIAL SERVICES,GF ADULT SERVICES,07-Jun-18,215489,All Care (South Wales) Limited,530.96,Revenue,agen
DIRECT SOCIAL SERVICES,GF ADULT SERVICES,07-Jun-18,215489,All Care (South Wales) Limited,950.13,Revenue,agen
DIRECT SOCIAL SERVICES,GF ADULT SERVICES,07-Jun-18,215489,Heidi Christoforato t/a Churchfields Home Care,549.05,Revenue,agen
DIRECT SOCIAL SERVICES,GF ADULT SERVICES,07-Jun-18,215489,Heidi Christoforato t/a Churchfields Home Care,500.08,Revenue,agen
DIRECT SOCIAL SERVICES,GF ADULT SERVICES,07-Jun-18,215489,Parkrow Care Limited,600.48,Revenue,agen
DIRECT SOCIAL SERVICES,GF ADULT SERVICES,07-Jun-18,215489,Parkrow Care Limited,685.36,Revenue,agen
DIRECT SOCIAL SERVICES,GF ADULT SERVICES,07-Jun-18,216179,All Care (South Wales) Limited,894.24,Revenue,agen
DIRECT SOCIAL SERVICES,GF ADULT SERVICES,07-Jun-18,216179,Heidi Christoforato t/a Churchfields Home Care,654.86,Revenue,agen
DIRECT SOCIAL SERVICES,GF ADULT SERVICES,07-Jun-18,216179,Heidi Christoforato t/a Churchfields Home Care,534.21,Revenue,agen
DIRECT SOCIAL SERVICES,GF ADULT SERVICES,07-Jun-18,218419,Parkrow Care Limited,625.72,Revenue,agen
DIRECT SOCIAL SERVICES,GF ADULT SERVICES,07-Jun-18,218419,Parkrow Care Limited,736.18,Revenue,agen
DIRECT LEARNING AND SKILLS,STRATEGY COMMUNITY LEARNING & RESOURCES,07-Jun-18,100121,Phoenix Software Limited,12189.45,Revenue,Companies
DIRECT LEARNING AND SKILLS,SCHOOLS DELEGATED,07-Jun-18,101047,eBuyer UK Limited,1177.32,Revenue,Companies
DIRECT LEARNING AND SKILLS,SCHOOLS DELEGATED,07-Jun-18,101195,Superstars School Services Limited,1880.92,Revenue,Companies
DIRECT LEARNING AND SKILLS,SCHOOLS DELEGATED,07-Jun-18,101195,The Consortium for Purchasing and Distribution Limited,545.45,Revenue,Companies
DIRECT LEARNING AND SKILLS,SCHOOLS DELEGATED,07-Jun-18,101195,Travel Class Limited,6708,Revenue,Companies
DIRECT LEARNING AND SKILLS,ACHIEVEMENT FOR ALL,07-Jun-18,102635,eBuyer UK Limited,2630.6,Revenue,Companies
DIRECT ENVIRONMENT AND HOUSING,REGENERATION & PLANNING,07-Jun-18,130511,Pinit Building & Civil Engineering Limited,6010,Revenue,Companies
DIRECT SOCIAL SERVICES,GF CHILDREN SERVICES,07-Jun-18,209151,Business Gas Limited / Electricity,-539.49,Revenue,Companies
DIRECT SOCIAL SERVICES,GF CHILDREN SERVICES,07-Jun-18,209157,Business Gas Limited / Electricity,539.49,Revenue,Companies
DIRECT SOCIAL SERVICES,GF CHILDREN SERVICES,07-Jun-18,209157,Tugbury Electrical Services Limited,585,Revenue,Companies
DIRECT SOCIAL SERVICES,GF ADULT SERVICES,07-Jun-18,217909,Everycare (Cardiff) Limited,813.96,Revenue,Companies
DIRECT SOCIAL SERVICES,GF CHILDREN SERVICES,07-Jun-18,260060,Compass Fostering Wales Limited,2882.4,Revenue,Companies
DIRECT SOCIAL SERVICES,GF CHILDREN SERVICES,07-Jun-18,260060,Foster Care Associates Limited,8100,Revenue,Companies
DIRECT SOCIAL SERVICES,GF CHILDREN SERVICES,07-Jun-18,260060,Foster Care Associates Limited,3735.5,Revenue,Companies
DIRECT SOCIAL SERVICES,GF CHILDREN SERVICES,07-Jun-18,260060,Foster Care Associates Limited,8370,Revenue,Companies
DIRECT SOCIAL SERVICES,GF CHILDREN SERVICES,07-Jun-18,260060,Foster Care Group Wales Cyf,5828,Revenue,Companies
DIRECT SOCIAL SERVICES,GF CHILDREN SERVICES,07-Jun-18,260060,Horizon Care & Education Group Limited,3828.56,Revenue,Companies
DIRECT SOCIAL SERVICES,GF CHILDREN SERVICES,07-Jun-18,260060,Horizon Care & Education Group Limited,14357.1,Revenue,Companies
DIRECT SOCIAL SERVICES,GF CHILDREN SERVICES,07-Jun-18,260060,Landsker Child Care Limited,17502.86,Revenue,Companies
DIRECT SOCIAL SERVICES,GF CHILDREN SERVICES,07-Jun-18,260060,Landsker Child Care Limited,17527.68,Revenue,Companies
DIRECT SOCIAL SERVICES,GF CHILDREN SERVICES,07-Jun-18,260060,Landsker Child Care Limited,17527.68,Revenue,Companies
DIRECT SOCIAL SERVICES,GF CHILDREN SERVICES,07-Jun-18,260060,Orbis Education and Care Limited,22746.5,Revenue,Companies
DIRECT SOCIAL SERVICES,GF CHILDREN SERVICES,07-Jun-18,260060,Pathway Care Limited T/A Calon Cymru Fostering,1727.68,Revenue,Companies
DIRECT SOCIAL SERVICES,GF CHILDREN SERVICES,07-Jun-18,260060,Pathway Care Limited T/A Calon Cymru Fostering,1555.26,Revenue,Companies
DIRECT SOCIAL SERVICES,GF CHILDREN SERVICES,07-Jun-18,260060,Priory Healthcare Limited t/a Eastwood Grange Priory,792.08,Revenue,Companies
DIRECT SOCIAL SERVICES,GF CHILDREN SERVICES,07-Jun-18,260060,Shared Services Connected Limited,17370,Revenue,Companies
DIRECT SOCIAL SERVICES,GF CHILDREN SERVICES,07-Jun-18,260140,PayPoint Payment Services Limited,559.9,Revenue,Companies
DIRECT SOCIAL SERVICES,GF CHILDREN SERVICES,07-Jun-18,260160,Coram Academy Limited,2088.58,Revenue,Companies
DIRECT ENVIRONMENT AND HOUSING,VEHICLES,07-Jun-18,319010,Flogas Britain Limited,893.91,Revenue,Companies
DIRECT ENVIRONMENT AND HOUSING,GF ENV AND VISIBLE,07-Jun-18,325340,Cemex UK Materials Limited,579.86,Revenue,Companies
DIRECT ENVIRONMENT AND HOUSING,GF PARKS AND GROUNDS,07-Jun-18,333102,Askfrank Limited,660,Revenue,Companies
DIRECT ENVIRONMENT AND HOUSING,GF PARKS AND GROUNDS,07-Jun-18,333218,Dwr Cymru Cyf,675.04,Revenue,Companies
DIRECT ENVIRONMENT AND HOUSING,GF PARKS AND GROUNDS,07-Jun-18,333550,Maxwell Amenity Limited T/A Amenity Land Solutions,1071.63,Revenue,Companies
DIRECT ENVIRONMENT AND HOUSING,REGENERATION & PLANNING,07-Jun-18,354727,C & J Barrett Limited,3932,Revenue,Companies
DIRECT ENVIRONMENT AND HOUSING,REGENERATION & PLANNING,07-Jun-18,354727,Centrewire Limited,6303.04,Revenue,Companies
DIRECT ENVIRONMENT AND HOUSING,REGENERATION & PLANNING,07-Jun-18,356020,PHS Group Plc,683.18,Revenue,Companies
DIRECT ENVIRONMENT AND HOUSING,VISIBLE SERVICES,07-Jun-18,365784,Cycle Solutions Limited,969.95,Revenue,Companies
DIRECT ENVIRONMENT AND HOUSING,VISIBLE SERVICES,07-Jun-18,365786,New Adventure Travel Limited,24942.15,Revenue,Companies
DIRECT ENVIRONMENT AND HOUSING,VISIBLE SERVICES,07-Jun-18,365787,First Cymru Buses Limited,3474.24,Revenue,Companies
DIRECT ENVIRONMENT AND HOUSING,VISIBLE SERVICES,07-Jun-18,365787,First Cymru Buses Limited,3591.24,Revenue,Companies
DIRECT ENVIRONMENT AND HOUSING,REGULATORY SHARED SERVICES,07-Jun-18,403207,Minton Treharne & Davies Limited,2170,Revenue,Companies
DIRECT ENVIRONMENT AND HOUSING,HOUSING,07-Jun-18,407119,Health and Safety Executive,554.7,Revenue,Companies
DIRECT ENVIRONMENT AND HOUSING,HOUSING,07-Jun-18,407200,EDF Energy Plc,1135.15,Revenue,Companies
DIRECT MANAGING DIRECTOR AND RESOURCES,GF RESOURCES,07-Jun-18,420211,MISL Limited,6022.86,Revenue,Companies
DIRECT MANAGING DIRECTOR AND RESOURCES,GF RESOURCES,07-Jun-18,421230,Computacenter (UK) Limited,1486.8,Revenue,Companies
DIRECT MANAGING DIRECTOR AND RESOURCES,GF RESOURCES,07-Jun-18,422100,UK Gutter Maintenance Limited,596.25,Revenue,Companies
DIRECT MANAGING DIRECTOR AND RESOURCES,GF RESOURCES,07-Jun-18,422120,UK Gutter Maintenance Limited,596.25,Revenue,Companies
DIRECT MANAGING DIRECTOR AND RESOURCES,GF RESOURCES,07-Jun-18,422150,UK Gutter Maintenance Limited,596.25,Revenue,Companies
DIRECT MANAGING DIRECTOR AND RESOURCES,GF RESOURCES,07-Jun-18,422201,UK Gutter Maintenance Limited,596.25,Revenue,Companies
DIRECT CAPITAL VISIBLE AND HOUSING SERVICES,CAPITAL HRA,07-Jun-18,842067,Securus Property Compliance Limited,599,Capital,Companies
DIRECT CAPITAL DEVELOPMENT,CAPITAL PRIV HSG,07-Jun-18,845003,Horizon Disabled Adaptations Limited,7060.45,Capital,Companies
DIRECT CAPITAL POLICY,CAPITAL POLICY,07-Jun-18,852231,A & GP Trading Limited T/A Cablenet Trackmaster,650,Capital,Companies
DIRECT CAPITAL POLICY,CAPITAL POLICY,07-Jun-18,852234,Phonelink Installations Limited,10159.29,Capital,Companies
DIRECT CAPITAL POLICY,CAPITAL POLICY,07-Jun-18,852515,TEC Property Services Limited,31817.04,Capital,Companies
DIRECT SOCIAL SERVICES,GF BUSINESS MANAGEMENT & INOVATION,07-Jun-18,239043,Flintshire County Council,40000,Revenue,Other Local Authorites
DIRECT SOCIAL SERVICES,GF CHILDREN SERVICES,07-Jun-18,260060,Durham County Council,38850,Revenue,Other Local Authorites
DIRECT ENVIRONMENT AND HOUSING,REGULATORY SHARED SERVICES,07-Jun-18,403211,Cardiff County Council,736.54,Revenue,Other Local Authorites
DIRECT ENVIRONMENT AND HOUSING,REGULATORY SHARED SERVICES,07-Jun-18,403211,Cardiff County Council,4185.27,Revenue,Other Local Authorites
DIRECT SOCIAL SERVICES,GF CHILDREN SERVICES,07-Jun-18,260050,Angela Ricciardi,1000,Revenue,Professional Services
DIRECT MANAGING DIRECTOR AND RESOURCES,GF MISCELLANEOUS POLICY,07-Jun-18,479050,Owain James,750,Revenue,Professional Services
DIRECT SOCIAL SERVICES,GF CHILDREN SERVICES,07-Jun-18,260160,The Fostering Network - London office,1275.68,Revenue,Public Bodies
DIRECT MANAGING DIRECTOR AND RESOURCES,GF CORPORATE POLICY MAKING,07-Jun-18,460500,Information Commissioners Office,2900,Revenue,Public Bodies
DIRECT LEARNING AND SKILLS,SCHOOLS DELEGATED,07-Jun-18,101195,Millennium Personnel Services (Education) Limited,1008,Revenue,recy
DIRECT SOCIAL SERVICES,GF CHILDREN SERVICES,07-Jun-18,260150,Sanctuary Personnel Limited,1276.5,Revenue,recy
DIRECT SOCIAL SERVICES,GF CHILDREN SERVICES,07-Jun-18,260150,Sanctuary Personnel Limited,1276.5,Revenue,recy
DIRECT SOCIAL SERVICES,GF CHILDREN SERVICES,07-Jun-18,260150,Sanctuary Personnel Limited,1104,Revenue,recy
DIRECT SOCIAL SERVICES,GF CHILDREN SERVICES,07-Jun-18,260150,Sanctuary Personnel Limited,1276.5,Revenue,recy
DIRECT SOCIAL SERVICES,GF CHILDREN SERVICES,07-Jun-18,260150,Sanctuary Personnel Limited,1276.5,Revenue,recy
DIRECT SOCIAL SERVICES,GF CHILDREN SERVICES,07-Jun-18,260060,Five Oaks Care Limited,20645.1,Revenue,Residential Homes
DIRECT SOCIAL SERVICES,GF ADULT SERVICES,07-Jun-18,217909,Walter Standen T/A Standens Contract Hire,840,Revenue,Sole Traders
DIRECT ENVIRONMENT AND HOUSING,GF PARKS AND GROUNDS,07-Jun-18,333600,Jeffrey Ball T/A Gates 'N' Railings,1600,Revenue,Sole Traders
DIRECT ENVIRONMENT AND HOUSING,REGENERATION & PLANNING,07-Jun-18,130501,Cadoxton Youth Project,500,Revenue,Voluntary Organisations
DIRECT SOCIAL SERVICES,GF CHILDREN SERVICES,07-Jun-18,260060,Barnardos Cymru,3077.86,Revenue,Voluntary Organisations
DIRECT SOCIAL SERVICES,GF CHILDREN SERVICES,07-Jun-18,260235,The Lucy Faithfull Foundation,1076.5,Revenue,Voluntary Organisations
DIRECT SOCIAL SERVICES,GF CHILDREN SERVICES,07-Jun-18,260235,The Lucy Faithfull Foundation,3234,Revenue,Voluntary Organisations
DIRECT SOCIAL SERVICES,GF CHILDREN SERVICES,07-Jun-18,260235,The Lucy Faithfull Foundation,3202.5,Revenue,Voluntary Organisations
DIRECT SOCIAL SERVICES,GF ADULT SERVICES,08-Jun-18,215489,All Care (South Wales) Limited,593.34,Revenue,agen
DIRECT SOCIAL SERVICES,GF ADULT SERVICES,08-Jun-18,215489,All Care (South Wales) Limited,553.79,Revenue,agen
DIRECT SOCIAL SERVICES,GF ADULT SERVICES,08-Jun-18,215489,All Care (South Wales) Limited,618.94,Revenue,agen
DIRECT SOCIAL SERVICES,GF ADULT SERVICES,08-Jun-18,215489,All Care (South Wales) Limited,658.84,Revenue,agen
DIRECT SOCIAL SERVICES,GF ADULT SERVICES,08-Jun-18,215489,All Care (South Wales) Limited,664.2,Revenue,agen
DIRECT SOCIAL SERVICES,GF ADULT SERVICES,08-Jun-18,215489,All Care (South Wales) Limited,759.98,Revenue,agen
DIRECT SOCIAL SERVICES,GF ADULT SERVICES,08-Jun-18,215489,All Care (South Wales) Limited,707.36,Revenue,agen
DIRECT SOCIAL SERVICES,GF ADULT SERVICES,08-Jun-18,215489,All Care (South Wales) Limited,752.96,Revenue,agen
DIRECT SOCIAL SERVICES,GF ADULT SERVICES,08-Jun-18,215489,Caring Companions Limited,653.2,Revenue,agen
DIRECT SOCIAL SERVICES,GF ADULT SERVICES,08-Jun-18,215489,Caring Companions Limited,621.92,Revenue,agen
DIRECT SOCIAL SERVICES,GF ADULT SERVICES,08-Jun-18,215489,Caring Companions Limited,598.4,Revenue,agen
DIRECT SOCIAL SERVICES,GF ADULT SERVICES,08-Jun-18,215489,Caring Companions Limited,755.36,Revenue,agen
DIRECT SOCIAL SERVICES,GF ADULT SERVICES,08-Jun-18,215489,Caring Companions Limited,684.8,Revenue,agen
DIRECT SOCIAL SERVICES,GF ADULT SERVICES,08-Jun-18,215489,GJ Care & Training Limited,634.76,Revenue,agen
DIRECT SOCIAL SERVICES,GF ADULT SERVICES,08-Jun-18,215489,GJ Care & Training Limited,701.11,Revenue,agen
DIRECT SOCIAL SERVICES,GF ADULT SERVICES,08-Jun-18,215489,GJ Care & Training Limited,617.94,Revenue,agen
DIRECT SOCIAL SERVICES,GF ADULT SERVICES,08-Jun-18,215489,Nestor Primecare Services Limited t/a Allied Healthcare,538.1,Revenue,agen
DIRECT SOCIAL SERVICES,GF ADULT SERVICES,08-Jun-18,215489,Nestor Primecare Services Limited t/a Allied Healthcare,508.59,Revenue,agen
DIRECT SOCIAL SERVICES,GF ADULT SERVICES,08-Jun-18,215489,Nestor Primecare Services Limited t/a Allied Healthcare,564.61,Revenue,agen
DIRECT SOCIAL SERVICES,GF ADULT SERVICES,08-Jun-18,215489,Nestor Primecare Services Limited t/a Allied Healthcare,569.52,Revenue,agen
DIRECT SOCIAL SERVICES,GF ADULT SERVICES,08-Jun-18,215489,Nestor Primecare Services Limited t/a Allied Healthcare,549.27,Revenue,agen
DIRECT SOCIAL SERVICES,GF ADULT SERVICES,08-Jun-18,215489,Nestor Primecare Services Limited t/a Allied Healthcare,555.72,Revenue,agen
DIRECT SOCIAL SERVICES,GF ADULT SERVICES,08-Jun-18,215489,Nestor Primecare Services Limited t/a Allied Healthcare,517.4,Revenue,agen
DIRECT SOCIAL SERVICES,GF ADULT SERVICES,08-Jun-18,215489,Nestor Primecare Services Limited t/a Allied Healthcare,564.61,Revenue,agen
DIRECT SOCIAL SERVICES,GF ADULT SERVICES,08-Jun-18,215489,Nestor Primecare Services Limited t/a Allied Healthcare,569.52,Revenue,agen
DIRECT SOCIAL SERVICES,GF ADULT SERVICES,08-Jun-18,215489,Nestor Primecare Services Limited t/a Allied Healthcare,514.03,Revenue,agen
DIRECT SOCIAL SERVICES,GF ADULT SERVICES,08-Jun-18,216179,All Care (South Wales) Limited,730.06,Revenue,agen
DIRECT SOCIAL SERVICES,GF ADULT SERVICES,08-Jun-18,216179,All Care (South Wales) Limited,553.13,Revenue,agen
DIRECT SOCIAL SERVICES,GF ADULT SERVICES,08-Jun-18,216179,All Care (South Wales) Limited,834.35,Revenue,agen
DIRECT SOCIAL SERVICES,GF ADULT SERVICES,08-Jun-18,216179,All Care (South Wales) Limited,619.5,Revenue,agen
DIRECT SOCIAL SERVICES,GF ADULT SERVICES,08-Jun-18,216179,Nestor Primecare Services Limited t/a Allied Healthcare,699.33,Revenue,agen
DIRECT SOCIAL SERVICES,GF ADULT SERVICES,08-Jun-18,216179,Nestor Primecare Services Limited t/a Allied Healthcare,699.33,Revenue,agen
DIRECT SOCIAL SERVICES,GF ADULT SERVICES,08-Jun-18,217909,All Care (South Wales) Limited,534.79,Revenue,agen
DIRECT SOCIAL SERVICES,GF ADULT SERVICES,08-Jun-18,217909,Caring Companions Limited,716.8,Revenue,agen
DIRECT SOCIAL SERVICES,GF ADULT SERVICES,08-Jun-18,217909,GJ Care & Training Limited,750.69,Revenue,agen
DIRECT SOCIAL SERVICES,GF ADULT SERVICES,08-Jun-18,218321,GJ Care & Training Limited,651.92,Revenue,agen
DIRECT SOCIAL SERVICES,GF ADULT SERVICES,08-Jun-18,218419,All Care (South Wales) Limited,680.68,Revenue,agen
DIRECT SOCIAL SERVICES,GF ADULT SERVICES,08-Jun-18,218419,All Care (South Wales) Limited,777.92,Revenue,agen
DIRECT LEARNING AND SKILLS,STRATEGY AND REGULATION,08-Jun-18,100131,Computacenter (UK) Limited,833.59,Revenue,Companies
DIRECT LEARNING AND SKILLS,SCHOOLS DELEGATED,08-Jun-18,102593,Omlet Limited,1919.51,Revenue,Companies
DIRECT LEARNING AND SKILLS,GF CATERING,08-Jun-18,154401,ABM Catering for Leisure Limited,1980,Revenue,Companies
DIRECT SOCIAL SERVICES,GF ADULT SERVICES,08-Jun-18,216731,CJ Contract Travel Services Limited,570,Revenue,Companies
DIRECT ENVIRONMENT AND HOUSING,BUILDING SERVICES,08-Jun-18,301062,Biffa Waste Services Limited,1760.84,Revenue,Companies
DIRECT ENVIRONMENT AND HOUSING,BUILDING SERVICES,08-Jun-18,301062,Biffa Waste Services Limited,531.44,Revenue,Companies
DIRECT ENVIRONMENT AND HOUSING,BUILDING SERVICES,08-Jun-18,301062,Biffa Waste Services Limited,2346.5,Revenue,Companies
DIRECT ENVIRONMENT AND HOUSING,BUILDING CLEANING,08-Jun-18,312160,Chubb Fire & Security Limited,513.21,Revenue,Companies
DIRECT ENVIRONMENT AND HOUSING,VEHICLES,08-Jun-18,319010,Dawsonrentals Materials Handling Equipment Limited t/a Dawsonrentals Sweepers,2300,Revenue,Companies
DIRECT ENVIRONMENT AND HOUSING,VEHICLES,08-Jun-18,319010,Leeds Commercial Limited T/A LC Vehicle Hire,2550,Revenue,Companies
DIRECT ENVIRONMENT AND HOUSING,VEHICLES,08-Jun-18,319010,Riverside Truck Rental LImited,4255,Revenue,Companies
DIRECT ENVIRONMENT AND HOUSING,GF ENV AND VISIBLE,08-Jun-18,325340,Garth Plant Hire Limited,663.75,Revenue,Companies
DIRECT ENVIRONMENT AND HOUSING,GF ENV AND VISIBLE,08-Jun-18,325340,Garth Plant Hire Limited,715.25,Revenue,Companies
DIRECT ENVIRONMENT AND HOUSING,GF ENV AND VISIBLE,08-Jun-18,325894,Garth Plant Hire Limited,885,Revenue,Companies
DIRECT ENVIRONMENT AND HOUSING,GF PARKS AND GROUNDS,08-Jun-18,333218,Business Gas Limited / Electricity,567.09,Revenue,Companies
DIRECT ENVIRONMENT AND HOUSING,VISIBLE SERVICES,08-Jun-18,365789,Merricks Private Transport Contractors Limited,1044,Revenue,Companies
DIRECT ENVIRONMENT AND HOUSING,VISIBLE SERVICES,08-Jun-18,365789,Premier Cars (Cardiff) Limited,756,Revenue,Companies
DIRECT ENVIRONMENT AND HOUSING,VISIBLE SERVICES,08-Jun-18,365790,Premier Cars (Cardiff) Limited,2770,Revenue,Companies
DIRECT ENVIRONMENT AND HOUSING,VISIBLE SERVICES,08-Jun-18,365790,Premier Cars (Cardiff) Limited,714,Revenue,Companies
DIRECT ENVIRONMENT AND HOUSING,GF LEGAL AND DEMOCRATIC,08-Jun-18,400050,E4Law Limited t/a Lextox,574.25,Revenue,Companies
DIRECT ENVIRONMENT AND HOUSING,GF LEGAL AND DEMOCRATIC,08-Jun-18,400050,Lingotech Limited,680.3,Revenue,Companies
DIRECT LEARNING AND SKILLS,ACHIEVEMENT FOR ALL,08-Jun-18,440611,Vale People First Limited,20000,Revenue,Companies
DIRECT CAPITAL LEARN AND SKILLS,AR CAPITAL SCHOOLS,08-Jun-18,812279,D & M Mechanical Engineers Limited,28090.72,Capital,Companies
DIRECT CAPITAL VISIBLE AND HOUSING SERVICES,CAPITAL HIGHWAYS,08-Jun-18,831528,Urbis Schreder Limited,576.4,Capital,Companies
DIRECT CAPITAL VISIBLE AND HOUSING SERVICES,CAPITAL HIGHWAYS,08-Jun-18,831534,Alun Griffiths (Contractors) Limited,35880,Capital,Companies
DIRECT CAPITAL DEVELOPMENT,CAPITAL ECO DEV,08-Jun-18,834231,Bruton Knowles LLP,1692,Capital,Companies
DIRECT CAPITAL DEVELOPMENT,CAPITAL ECO DEV,08-Jun-18,834231,Capita Property and Infrastructure Limited,45381.19,Capital,Companies
DIRECT CAPITAL VISIBLE AND HOUSING SERVICES,CAPITAL HRA,08-Jun-18,842068,Willis Construction Limited,15259.82,Capital,Companies
DIRECT CAPITAL VISIBLE AND HOUSING SERVICES,CAPITAL HRA,08-Jun-18,842068,Willis Construction Limited,10796.92,Capital,Companies
DIRECT CAPITAL VISIBLE AND HOUSING SERVICES,CAPITAL HRA,08-Jun-18,842068,Willis Construction Limited,5085.8,Capital,Companies
DIRECT CAPITAL VISIBLE AND HOUSING SERVICES,CAPITAL HRA,08-Jun-18,842164,Pendragon Design and Build Limited,28633.66,Capital,Companies
DIRECT CAPITAL VISIBLE AND HOUSING SERVICES,CAPITAL HRA,08-Jun-18,842181,Acstro Limited,2300,Capital,Companies
DIRECT ENVIRONMENT AND HOUSING,GF ENV AND VISIBLE,08-Jun-18,341123,Cardiff County Council,21384.47,Revenue,Other Local Authorites
DIRECT ENVIRONMENT AND HOUSING,GF ENV AND VISIBLE,08-Jun-18,341123,Cardiff County Council,21015.3,Revenue,Other Local Authorites
DIRECT ENVIRONMENT AND HOUSING,GF ENV AND VISIBLE,08-Jun-18,341500,Cardiff County Council,19689.29,Revenue,Other Local Authorites
DIRECT ENVIRONMENT AND HOUSING,GF ENV AND VISIBLE,08-Jun-18,341500,Cardiff County Council,21075.17,Revenue,Other Local Authorites
DIRECT ENVIRONMENT AND HOUSING,VISIBLE SERVICES,08-Jun-18,365789,Ceri Slade,2664,Revenue,Professional Services
DIRECT ENVIRONMENT AND HOUSING,GF LEGAL AND DEMOCRATIC,08-Jun-18,400050,Matthew Barry,800,Revenue,Professional Services
DIRECT ENVIRONMENT AND HOUSING,GF HOUSING SERVICES,08-Jun-18,405100,Duncan M Evans,3115.8,Revenue,Professional Services
DIRECT ENVIRONMENT AND HOUSING,REGENERATION & PLANNING,08-Jun-18,365763,Valuation Office Agency,1400,Revenue,Public Bodies
DIRECT SOCIAL SERVICES,GF BUSINESS MANAGEMENT & INOVATION,08-Jun-18,239291,Acorn Recruitment Limited,510.23,Revenue,recy
DIRECT ENVIRONMENT AND HOUSING,HOUSING,08-Jun-18,407106,James Andrews Recruitment Solutions Limited,651,Revenue,recy
DIRECT ENVIRONMENT AND HOUSING,HOUSING,08-Jun-18,407106,James Andrews Recruitment Solutions Limited,510.6,Revenue,recy
DIRECT ENVIRONMENT AND HOUSING,GF ENV AND VISIBLE,08-Jun-18,325894,Jeffrey Ball T/A Gates 'N' Railings,1450,Revenue,Sole Traders
DIRECT ENVIRONMENT AND HOUSING,REGENERATION & PLANNING,08-Jun-18,350740,Darren Mortimore t/a Great House Farm,3355.52,Revenue,Sole Traders
DIRECT MANAGING DIRECTOR AND RESOURCES,GF GRANTS,08-Jun-18,465200,Menter Iaith Bro Morgannwg,17050,Revenue,Voluntary Organisations
DIRECT MANAGING DIRECTOR AND RESOURCES,GF GRANTS,08-Jun-18,465201,Castleland Community Association,1812.71,Revenue,Voluntary Organisations
DIRECT SOCIAL SERVICES,GF ADULT SERVICES,11-Jun-18,215489,Bespoke Senior Care Limited T/A Home Instead Senior Care,595.97,Revenue,agen
DIRECT SOCIAL SERVICES,GF ADULT SERVICES,11-Jun-18,215489,Bespoke Senior Care Limited T/A Home Instead Senior Care,669.12,Revenue,agen
DIRECT SOCIAL SERVICES,GF ADULT SERVICES,11-Jun-18,215489,Bespoke Senior Care Limited T/A Home Instead Senior Care,595.97,Revenue,agen
DIRECT SOCIAL SERVICES,GF ADULT SERVICES,11-Jun-18,215489,Bespoke Senior Care Limited T/A Home Instead Senior Care,595.97,Revenue,agen
DIRECT SOCIAL SERVICES,GF ADULT SERVICES,11-Jun-18,215489,Bespoke Senior Care Limited T/A Home Instead Senior Care,669.12,Revenue,agen
DIRECT SOCIAL SERVICES,GF ADULT SERVICES,11-Jun-18,215489,Caring Companions Limited,857.92,Revenue,agen
DIRECT LEARNING AND SKILLS,SCHOOLS DELEGATED,11-Jun-18,101005,Achievement for All (3As) Limited,4150,Revenue,Companies
DIRECT LEARNING AND SKILLS,SCHOOLS DELEGATED,11-Jun-18,101005,Biffa Waste Services Limited,674.96,Revenue,Companies
DIRECT LEARNING AND SKILLS,SCHOOLS DELEGATED,11-Jun-18,101007,Office Depot International (UK) Limited t/a Viking Direct,534.92,Revenue,Companies
DIRECT LEARNING AND SKILLS,SCHOOLS DELEGATED,11-Jun-18,101025,Argos Business Solutions Limited,685.96,Revenue,Companies
DIRECT LEARNING AND SKILLS,SCHOOLS DELEGATED,11-Jun-18,101094,A & R Contract Cleaning Specialist Limited,2079.29,Revenue,Companies
DIRECT LEARNING AND SKILLS,SCHOOLS DELEGATED,11-Jun-18,101094,EDF Energy Plc,910.44,Revenue,Companies
DIRECT LEARNING AND SKILLS,SCHOOLS DELEGATED,11-Jun-18,101094,The Learning Partnership (Wales) Limited,702.2,Revenue,Companies
DIRECT LEARNING AND SKILLS,SCHOOLS DELEGATED,11-Jun-18,101095,Biffa Waste Services Limited,541.8,Revenue,Companies
DIRECT LEARNING AND SKILLS,SCHOOLS DELEGATED,11-Jun-18,101095,One Team Logic Limited,760,Revenue,Companies
DIRECT LEARNING AND SKILLS,SCHOOLS DELEGATED,11-Jun-18,101145,A & R Contract Cleaning Specialist Limited,951.47,Revenue,Companies
DIRECT LEARNING AND SKILLS,SCHOOLS DELEGATED,11-Jun-18,101145,EDF Energy Plc,770.82,Revenue,Companies
DIRECT LEARNING AND SKILLS,SCHOOLS DELEGATED,11-Jun-18,101145,EDF Energy Plc,580.48,Revenue,Companies
DIRECT LEARNING AND SKILLS,SCHOOLS DELEGATED,11-Jun-18,101145,EDF Energy Plc,649.43,Revenue,Companies
DIRECT LEARNING AND SKILLS,SCHOOLS DELEGATED,11-Jun-18,101145,Towergate Underwriting Group Limited t/a Towergate Insurance,5469.11,Revenue,Companies
DIRECT LEARNING AND SKILLS,SCHOOLS DELEGATED,11-Jun-18,101202,EDF Energy Plc,936.94,Revenue,Companies
DIRECT LEARNING AND SKILLS,SCHOOLS DELEGATED,11-Jun-18,101202,EDF Energy Plc,747.24,Revenue,Companies
DIRECT LEARNING AND SKILLS,SCHOOLS DELEGATED,11-Jun-18,101202,EDF Energy Plc,556.38,Revenue,Companies
DIRECT LEARNING AND SKILLS,SCHOOLS DELEGATED,11-Jun-18,101202,EDF Energy Plc,682.38,Revenue,Companies
DIRECT LEARNING AND SKILLS,SCHOOLS DELEGATED,11-Jun-18,101202,EDF Energy Plc,716.91,Revenue,Companies
DIRECT LEARNING AND SKILLS,SCHOOLS DELEGATED,11-Jun-18,101202,PHS Group Plc,701.34,Revenue,Companies
DIRECT LEARNING AND SKILLS,SCHOOLS DELEGATED,11-Jun-18,101202,Ruth Miskin Literacy Limited,500,Revenue,Companies
DIRECT LEARNING AND SKILLS,SCHOOLS DELEGATED,11-Jun-18,101261,Cleveland Containers Limited,4300,Revenue,Companies
DIRECT LEARNING AND SKILLS,SCHOOLS DELEGATED,11-Jun-18,101261,EDF Energy Plc,1376.03,Revenue,Companies
DIRECT LEARNING AND SKILLS,SCHOOLS DELEGATED,11-Jun-18,101261,EDF Energy Plc,790.06,Revenue,Companies
DIRECT LEARNING AND SKILLS,SCHOOLS DELEGATED,11-Jun-18,101261,EDF Energy Plc,825.69,Revenue,Companies
DIRECT LEARNING AND SKILLS,SCHOOLS DELEGATED,11-Jun-18,101300,Frank Sutton Limited,1344,Revenue,Companies
DIRECT LEARNING AND SKILLS,SCHOOLS DELEGATED,11-Jun-18,101315,The Learning Partnership (Wales) Limited,801.3,Revenue,Companies
DIRECT LEARNING AND SKILLS,SCHOOLS DELEGATED,11-Jun-18,102593,Welsh Dance Theatre Trust Limited,1262.25,Revenue,Companies
DIRECT LEARNING AND SKILLS,SCHOOLS DELEGATED,11-Jun-18,102593,Worldline IT Services UK Limited t/a FuelGenie,621.68,Revenue,Companies
DIRECT LEARNING AND SKILLS,ACHIEVEMENT FOR ALL,11-Jun-18,102702,Focal Point (Vision) Limited T/A Focal Point UK,1114.02,Revenue,Companies
DIRECT LEARNING AND SKILLS,SCHOOLS NON DELEGATED,11-Jun-18,103285,Cooke and Arkwright Limited,22552.45,Revenue,Companies
DIRECT LEARNING AND SKILLS,SCHOOLS DELEGATED,11-Jun-18,104381,A & R Contract Cleaning Specialist Limited,1147.3,Revenue,Companies
DIRECT LEARNING AND SKILLS,STRATEGY COMMUNITY LEARNING & RESOURCES,11-Jun-18,130041,Adapt Business Services Limited,859.85,Revenue,Companies
DIRECT LEARNING AND SKILLS,CATERING,11-Jun-18,150401,Brake Bros Limited,5931.11,Revenue,Companies
DIRECT LEARNING AND SKILLS,CATERING,11-Jun-18,150401,Castell Howell Foods Limited,10053.55,Revenue,Companies
DIRECT LEARNING AND SKILLS,CATERING,11-Jun-18,150671,Brake Bros Limited,3072.62,Revenue,Companies
DIRECT LEARNING AND SKILLS,CATERING,11-Jun-18,150671,Castell Howell Foods Limited,2935.21,Revenue,Companies
DIRECT LEARNING AND SKILLS,CATERING,11-Jun-18,150671,Chapple & Jenkins Limited,2080.44,Revenue,Companies
DIRECT LEARNING AND SKILLS,CATERING,11-Jun-18,150671,Phil-a-Cup Limited T/A Argies Coffee,875.39,Revenue,Companies
DIRECT LEARNING AND SKILLS,CATERING,11-Jun-18,150671,The Real Wrap Co. Limited,786.36,Revenue,Companies
DIRECT LEARNING AND SKILLS,GF CATERING,11-Jun-18,154401,DairyLink UK Limited,10011.2,Revenue,Companies
DIRECT SOCIAL SERVICES,GF ADULT SERVICES,11-Jun-18,215121,Turun UK Limited,1112.89,Revenue,Companies
DIRECT SOCIAL SERVICES,GF ADULT SERVICES,11-Jun-18,217909,Ategi Limited,1583.64,Revenue,Companies
DIRECT ENVIRONMENT AND HOUSING,GF ENV AND VISIBLE,11-Jun-18,300600,Resilience Planning Solutions Limited,1340,Revenue,Companies
DIRECT ENVIRONMENT AND HOUSING,GF ENV AND VISIBLE,11-Jun-18,300606,Pillar Software Limited,1522.8,Revenue,Companies
DIRECT ENVIRONMENT AND HOUSING,GF PARKS AND GROUNDS,11-Jun-18,333013,Complete Weed Control (South Wales) Limited,2360,Revenue,Companies
DIRECT ENVIRONMENT AND HOUSING,GF PARKS AND GROUNDS,11-Jun-18,333013,The Firewood Company (UK) Limited T/A Esa Tree Care,2040.04,Revenue,Companies
DIRECT ENVIRONMENT AND HOUSING,GF PARKS AND GROUNDS,11-Jun-18,333154,The Firewood Company (UK) Limited T/A Esa Tree Care,2100,Revenue,Companies
DIRECT ENVIRONMENT AND HOUSING,GF ENV AND VISIBLE,11-Jun-18,341156,Newsquest Media (Southern) Limited T/A Newsquest Midlands Wales & South West,576,Revenue,Companies
DIRECT ENVIRONMENT AND HOUSING,REGENERATION & PLANNING,11-Jun-18,349605,Pillar Software Limited,705,Revenue,Companies
DIRECT ENVIRONMENT AND HOUSING,VISIBLE SERVICES,11-Jun-18,365803,A2B (South Wales) Limited,2160,Revenue,Companies
DIRECT ENVIRONMENT AND HOUSING,GF HOUSING SERVICES,11-Jun-18,405100,L Mustoe Limited,2259.1,Revenue,Companies
DIRECT ENVIRONMENT AND HOUSING,GF HOUSING SERVICES,11-Jun-18,405108,Pegasus Maintenance Services Limited,652,Revenue,Companies
DIRECT ENVIRONMENT AND HOUSING,GF HOUSING SERVICES,11-Jun-18,405108,Unique Flooring (Wales) Limited,1200,Revenue,Companies
DIRECT ENVIRONMENT AND HOUSING,GF HOUSING SERVICES,11-Jun-18,405301,Gofal A Chymorth Gwalia Cyf,7801.36,Revenue,Companies
DIRECT ENVIRONMENT AND HOUSING,GF HOUSING SERVICES,11-Jun-18,405301,Gofal A Chymorth Gwalia Cyf,2799.54,Revenue,Companies
DIRECT ENVIRONMENT AND HOUSING,GF HOUSING SERVICES,11-Jun-18,405301,Gofal A Chymorth Gwalia Cyf,1566.51,Revenue,Companies
DIRECT ENVIRONMENT AND HOUSING,GF HOUSING SERVICES,11-Jun-18,405301,Gofal A Chymorth Gwalia Cyf,1566.51,Revenue,Companies
DIRECT ENVIRONMENT AND HOUSING,GF HOUSING SERVICES,11-Jun-18,405301,Gofal A Chymorth Gwalia Cyf,22739.74,Revenue,Companies
DIRECT ENVIRONMENT AND HOUSING,GF HOUSING SERVICES,11-Jun-18,405301,Gofal A Chymorth Gwalia Cyf,10731.2,Revenue,Companies
DIRECT ENVIRONMENT AND HOUSING,GF HOUSING SERVICES,11-Jun-18,405301,Llamau Limited,9903.72,Revenue,Companies
DIRECT ENVIRONMENT AND HOUSING,GF HOUSING SERVICES,11-Jun-18,405301,Llamau Limited,4248.24,Revenue,Companies
DIRECT ENVIRONMENT AND HOUSING,GF HOUSING SERVICES,11-Jun-18,405301,Llamau Limited,9781.98,Revenue,Companies
DIRECT ENVIRONMENT AND HOUSING,GF HOUSING SERVICES,11-Jun-18,405301,Llamau Limited,6844.8,Revenue,Companies
DIRECT ENVIRONMENT AND HOUSING,GF HOUSING SERVICES,11-Jun-18,405301,Llamau Limited,6844.8,Revenue,Companies
DIRECT ENVIRONMENT AND HOUSING,GF HOUSING SERVICES,11-Jun-18,405301,Llamau Limited,10761.42,Revenue,Companies
DIRECT ENVIRONMENT AND HOUSING,GF HOUSING SERVICES,11-Jun-18,405301,Pobl Group Limited T/A Reach Supported Living,17764.24,Revenue,Companies
DIRECT MANAGING DIRECTOR AND RESOURCES,GF RESOURCES,11-Jun-18,422002,Pillar Software Limited,592.2,Revenue,Companies
DIRECT MANAGING DIRECTOR AND RESOURCES,GF RESOURCES,11-Jun-18,422130,Fire Safety Direct Limited,526,Revenue,Companies
DIRECT MANAGING DIRECTOR AND RESOURCES,GF CORPORATE AND CUSTOMER SERVICES,11-Jun-18,440530,Northgate Public Services (UK) Limited,803.72,Revenue,Companies
DIRECT MANAGING DIRECTOR AND RESOURCES,GF CORPORATE AND CUSTOMER SERVICES,11-Jun-18,440530,Northgate Public Services (UK) Limited,535.82,Revenue,Companies
DIRECT LEARNING AND SKILLS,SCHOOLS DELEGATED,11-Jun-18,102593,Cardiff & Vale College,1993.8,Revenue,Other Local Authorites
DIRECT ENVIRONMENT AND HOUSING,GF HOUSING SERVICES,11-Jun-18,405301,Cardiff County Council,5580,Revenue,Other Local Authorites
DIRECT LEARNING AND SKILLS,SCHOOLS DELEGATED,11-Jun-18,101261,Peter Regan & Ptn t/a Sonic Alarm Systems,789,Revenue,Partnerships
DIRECT SOCIAL SERVICES,GF ADULT SERVICES,11-Jun-18,215489,E&G Senior Care Limited t/a Right at Home (Bridgend & Vale of Glamorgan),548.2,Revenue,Professional Services
DIRECT SOCIAL SERVICES,GF ADULT SERVICES,11-Jun-18,217909,E&G Senior Care Limited t/a Right at Home (Bridgend & Vale of Glamorgan),536.25,Revenue,Professional Services
DIRECT SOCIAL SERVICES,GF CHILDREN SERVICES,11-Jun-18,260160,Lorraine Williams,1744,Revenue,Professional Services
DIRECT ENVIRONMENT AND HOUSING,GF HOUSING SERVICES,11-Jun-18,405100,Lyndon Mustoe,806.64,Revenue,Professional Services
DIRECT LEARNING AND SKILLS,SCHOOLS DELEGATED,11-Jun-18,101213,Oxford University Press,924.19,Revenue,Public Bodies
DIRECT LEARNING AND SKILLS,SCHOOLS DELEGATED,11-Jun-18,100805,New Directions (Education) Limited,655,Revenue,recy
DIRECT LEARNING AND SKILLS,SCHOOLS DELEGATED,11-Jun-18,101005,Valley Education Services Limited,590.08,Revenue,recy
DIRECT LEARNING AND SKILLS,SCHOOLS DELEGATED,11-Jun-18,101007,New Directions (Education) Limited,526,Revenue,recy
DIRECT LEARNING AND SKILLS,SCHOOLS DELEGATED,11-Jun-18,101145,Celtic Teachers Limited,1704.56,Revenue,recy
DIRECT LEARNING AND SKILLS,SCHOOLS DELEGATED,11-Jun-18,101202,Valley Education Services Limited,610.38,Revenue,recy
DIRECT LEARNING AND SKILLS,SCHOOLS NON DELEGATED,11-Jun-18,103047,New Directions (Education) Limited,657.5,Revenue,recy
DIRECT LEARNING AND SKILLS,SCHOOLS NON DELEGATED,11-Jun-18,103065,New Directions (Education) Limited,526,Revenue,recy
DIRECT LEARNING AND SKILLS,SCHOOLS NON DELEGATED,11-Jun-18,103095,New Directions (Education) Limited,667.5,Revenue,recy
DIRECT LEARNING AND SKILLS,SCHOOLS NON DELEGATED,11-Jun-18,103213,New Directions (Education) Limited,652.5,Revenue,recy
DIRECT LEARNING AND SKILLS,SCHOOLS NON DELEGATED,11-Jun-18,103227,New Directions (Education) Limited,526,Revenue,recy
DIRECT LEARNING AND SKILLS,SCHOOLS NON DELEGATED,11-Jun-18,103412,Apollo Teaching Services Limited,520,Revenue,recy
DIRECT SOCIAL SERVICES,GF CHILDREN SERVICES,11-Jun-18,260150,Sanctuary Personnel Limited,1104,Revenue,recy
DIRECT ENVIRONMENT AND HOUSING,GF HOUSING SERVICES,11-Jun-18,405301,Hafod Care Association Limited,3024.88,Revenue,Residential Homes
DIRECT ENVIRONMENT AND HOUSING,GF HOUSING SERVICES,11-Jun-18,405301,Hafod Care Association Limited,5028,Revenue,Residential Homes
DIRECT ENVIRONMENT AND HOUSING,GF HOUSING SERVICES,11-Jun-18,405301,Hafod Care Association Limited,10543.8,Revenue,Residential Homes
DIRECT LEARNING AND SKILLS,SCHOOLS DELEGATED,11-Jun-18,101095,James Paget t/a Snappy Jack,962.8,Revenue,Sole Traders
DIRECT LEARNING AND SKILLS,SCHOOLS DELEGATED,11-Jun-18,104385,Steve Lewis t/a Play on Development,560,Revenue,Sole Traders
DIRECT LEARNING AND SKILLS,CATERING,11-Jun-18,150401,Russel Bishop t/a WR Bishop & Co,2525.23,Revenue,Sole Traders
DIRECT ENVIRONMENT AND HOUSING,VISIBLE SERVICES,11-Jun-18,359341,Terrance Pearson T/A TP Pearson & Son,646.4,Revenue,Sole Traders
DIRECT SOCIAL SERVICES,GF ADULT SERVICES,11-Jun-18,216181,Sight Cymru,3552.08,Revenue,Voluntary Organisations
DIRECT ENVIRONMENT AND HOUSING,GF HOUSING SERVICES,11-Jun-18,405301,Atal Y Fro,7032.6,Revenue,Voluntary Organisations
DIRECT ENVIRONMENT AND HOUSING,GF HOUSING SERVICES,11-Jun-18,405301,Atal Y Fro,7292.75,Revenue,Voluntary Organisations
DIRECT ENVIRONMENT AND HOUSING,GF HOUSING SERVICES,11-Jun-18,405301,Atal Y Fro,3101.7,Revenue,Voluntary Organisations
DIRECT ENVIRONMENT AND HOUSING,GF HOUSING SERVICES,11-Jun-18,405301,Gofal Cymru,3946.72,Revenue,Voluntary Organisations
DIRECT ENVIRONMENT AND HOUSING,GF HOUSING SERVICES,11-Jun-18,405301,Gofal Cymru,3052.85,Revenue,Voluntary Organisations
DIRECT ENVIRONMENT AND HOUSING,GF HOUSING SERVICES,11-Jun-18,405301,Gofal Cymru,2808.6,Revenue,Voluntary Organisations
DIRECT ENVIRONMENT AND HOUSING,GF HOUSING SERVICES,11-Jun-18,405301,Gofal Cymru,4381.6,Revenue,Voluntary Organisations
DIRECT ENVIRONMENT AND HOUSING,GF HOUSING SERVICES,11-Jun-18,405301,Gofal Cymru,4871.25,Revenue,Voluntary Organisations
DIRECT ENVIRONMENT AND HOUSING,GF HOUSING SERVICES,11-Jun-18,405301,Taff Housing Association,9933.65,Revenue,Voluntary Organisations
DIRECT ENVIRONMENT AND HOUSING,GF HOUSING SERVICES,11-Jun-18,405301,Taff Housing Association,11580.1,Revenue,Voluntary Organisations
DIRECT LEARNING AND SKILLS,SCHOOLS DELEGATED,12-Jun-18,101025,Academics Limited,669.1,Revenue,Companies
DIRECT LEARNING AND SKILLS,SCHOOLS DELEGATED,12-Jun-18,101025,First News (UK) Limited,510,Revenue,Companies
DIRECT LEARNING AND SKILLS,SCHOOLS DELEGATED,12-Jun-18,101025,Ikea Limited T/A Ikea Business,794.17,Revenue,Companies
DIRECT LEARNING AND SKILLS,SCHOOLS DELEGATED,12-Jun-18,101025,Screwfix Direct Limited t/a Trade UK,565.01,Revenue,Companies
DIRECT LEARNING AND SKILLS,SCHOOLS DELEGATED,12-Jun-18,101025,Timbermart UK Limited,877.51,Revenue,Companies
DIRECT LEARNING AND SKILLS,SCHOOLS DELEGATED,12-Jun-18,101032,The Consortium for Purchasing and Distribution Limited,526.67,Revenue,Companies
DIRECT LEARNING AND SKILLS,SCHOOLS DELEGATED,12-Jun-18,101055,Toshiba TEC UK Imaging Systems Limited,651.35,Revenue,Companies
DIRECT LEARNING AND SKILLS,SCHOOLS DELEGATED,12-Jun-18,101134,A & R Contract Cleaning Specialist Limited,1001.17,Revenue,Companies
DIRECT LEARNING AND SKILLS,SCHOOLS DELEGATED,12-Jun-18,101141,A & R Contract Cleaning Specialist Limited,1008.42,Revenue,Companies
DIRECT LEARNING AND SKILLS,SCHOOLS DELEGATED,12-Jun-18,101141,EDF Energy Plc,815.33,Revenue,Companies
DIRECT LEARNING AND SKILLS,SCHOOLS DELEGATED,12-Jun-18,101141,EDF Energy Plc,546.05,Revenue,Companies
DIRECT LEARNING AND SKILLS,SCHOOLS DELEGATED,12-Jun-18,101173,A & R Contract Cleaning Specialist Limited,1214.05,Revenue,Companies
DIRECT LEARNING AND SKILLS,SCHOOLS DELEGATED,12-Jun-18,101173,PHS Group Plc,1456.44,Revenue,Companies
DIRECT LEARNING AND SKILLS,SCHOOLS DELEGATED,12-Jun-18,101173,Pinnacle Office Equipment Limited,1403.62,Revenue,Companies
DIRECT LEARNING AND SKILLS,SCHOOLS DELEGATED,12-Jun-18,101180,EDF Energy Plc,551.36,Revenue,Companies
DIRECT LEARNING AND SKILLS,SCHOOLS DELEGATED,12-Jun-18,101213,DSG Retail Limited,569.85,Revenue,Companies
DIRECT LEARNING AND SKILLS,SCHOOLS DELEGATED,12-Jun-18,101216,CF Corporate Finance Limited,2499.98,Revenue,Companies
DIRECT LEARNING AND SKILLS,SCHOOLS DELEGATED,12-Jun-18,101221,A & R Contract Cleaning Specialist Limited,2125.35,Revenue,Companies
DIRECT LEARNING AND SKILLS,SCHOOLS DELEGATED,12-Jun-18,101221,Dwr Cymru Cyf,867.53,Revenue,Companies
DIRECT LEARNING AND SKILLS,SCHOOLS DELEGATED,12-Jun-18,101241,The Training Space Limited,2389.5,Revenue,Companies
DIRECT LEARNING AND SKILLS,SCHOOLS DELEGATED,12-Jun-18,101304,Chubb Fire & Security Limited,578.52,Revenue,Companies
DIRECT LEARNING AND SKILLS,SCHOOLS DELEGATED,12-Jun-18,101304,EDF Energy Plc,2750.26,Revenue,Companies
DIRECT LEARNING AND SKILLS,SCHOOLS DELEGATED,12-Jun-18,101304,Teachers2Parents Limited,1595,Revenue,Companies
DIRECT LEARNING AND SKILLS,SCHOOLS DELEGATED,12-Jun-18,101317,Glen Cleaning Company Limited,1010.35,Revenue,Companies
DIRECT LEARNING AND SKILLS,SCHOOLS DELEGATED,12-Jun-18,101317,Ministry of Furniture Limited,1046.9,Revenue,Companies
DIRECT LEARNING AND SKILLS,SCHOOLS DELEGATED,12-Jun-18,102593,Brotour Limited,680,Revenue,Companies
DIRECT LEARNING AND SKILLS,SCHOOLS DELEGATED,12-Jun-18,102593,Tower Leasing Limited,3290,Revenue,Companies
DIRECT LEARNING AND SKILLS,ACHIEVEMENT FOR ALL,12-Jun-18,102632,Inspired Learners Limited,740,Revenue,Companies
DIRECT LEARNING AND SKILLS,ACHIEVEMENT FOR ALL,12-Jun-18,102636,Empowering Learning Limited,1558.44,Revenue,Companies
DIRECT LEARNING AND SKILLS,ACHIEVEMENT FOR ALL,12-Jun-18,102636,Empowering Learning Limited,1660.38,Revenue,Companies
DIRECT LEARNING AND SKILLS,ACHIEVEMENT FOR ALL,12-Jun-18,102636,Merricks Private Transport Contractors Limited,5911.5,Revenue,Companies
DIRECT LEARNING AND SKILLS,ACHIEVEMENT FOR ALL,12-Jun-18,102636,Merricks Private Transport Contractors Limited,540,Revenue,Companies
DIRECT LEARNING AND SKILLS,ACHIEVEMENT FOR ALL,12-Jun-18,102652,Orbis Education and Care Limited,5552.08,Revenue,Companies
DIRECT LEARNING AND SKILLS,ACHIEVEMENT FOR ALL,12-Jun-18,102652,Orbis Education and Care Limited,5714.58,Revenue,Companies
DIRECT LEARNING AND SKILLS,ACHIEVEMENT FOR ALL,12-Jun-18,102701,Golley Slater Group Limited,730,Revenue,Companies
DIRECT LEARNING AND SKILLS,STRATEGY COMMUNITY LEARNING & RESOURCES,12-Jun-18,130064,Trinity College London,825,Revenue,Companies
DIRECT LEARNING AND SKILLS,STRATEGY COMMUNITY LEARNING & RESOURCES,12-Jun-18,130064,Trinity College London,825,Revenue,Companies
DIRECT LEARNING AND SKILLS,ACHIEVEMENT FOR ALL,12-Jun-18,190055,Gibbonsdown Childrens Centre Limited,750,Revenue,Companies
DIRECT SOCIAL SERVICES,GF ADULT SERVICES,12-Jun-18,215489,Grangelodge Residential Home Limited t/a Grangelodge,513.66,Revenue,Companies
DIRECT SOCIAL SERVICES,GF ADULT SERVICES,12-Jun-18,215489,Pobl Group Limited T/A Reach Supported Living,773.5,Revenue,Companies
DIRECT SOCIAL SERVICES,GF ADULT SERVICES,12-Jun-18,215489,Pobl Group Limited T/A Reach Supported Living,773.5,Revenue,Companies
DIRECT SOCIAL SERVICES,GF ADULT SERVICES,12-Jun-18,215489,Pobl Group Limited T/A Reach Supported Living,773.5,Revenue,Companies
DIRECT SOCIAL SERVICES,GF ADULT SERVICES,12-Jun-18,215489,Pobl Group Limited T/A Reach Supported Living,773.5,Revenue,Companies
DIRECT SOCIAL SERVICES,GF ADULT SERVICES,12-Jun-18,215489,Pobl Group Limited T/A Reach Supported Living,773.5,Revenue,Companies
DIRECT SOCIAL SERVICES,GF ADULT SERVICES,12-Jun-18,217541,Care Management Group Limited,94681.72,Revenue,Companies
DIRECT SOCIAL SERVICES,GF ADULT SERVICES,12-Jun-18,217909,Consensus Support Services Limited t/a Ty Machen,2163.85,Revenue,Companies
DIRECT ENVIRONMENT AND HOUSING,GF ENV AND VISIBLE,12-Jun-18,300640,Golley Slater Group Limited,574.47,Revenue,Companies
DIRECT ENVIRONMENT AND HOUSING,VEHICLES,12-Jun-18,319010,Golley Slater Group Limited,863.82,Revenue,Companies
DIRECT ENVIRONMENT AND HOUSING,GF ENV AND VISIBLE,12-Jun-18,323684,Golley Slater Group Limited,2083.46,Revenue,Companies
DIRECT ENVIRONMENT AND HOUSING,GF ENV AND VISIBLE,12-Jun-18,323685,Capita Property and Infrastructure Limited,2684.04,Revenue,Companies
DIRECT ENVIRONMENT AND HOUSING,GF ENV AND VISIBLE,12-Jun-18,325000,Garth Plant Hire Limited,885,Revenue,Companies
DIRECT ENVIRONMENT AND HOUSING,GF ENV AND VISIBLE,12-Jun-18,325000,Garth Plant Hire Limited,702.75,Revenue,Companies
DIRECT ENVIRONMENT AND HOUSING,GF ENV AND VISIBLE,12-Jun-18,325340,Calibre Contracting Limited,1077.89,Revenue,Companies
DIRECT ENVIRONMENT AND HOUSING,GF ENV AND VISIBLE,12-Jun-18,325340,Ran Hire and Sales Limited,559.2,Revenue,Companies
DIRECT ENVIRONMENT AND HOUSING,GF ENV AND VISIBLE,12-Jun-18,325345,Calibre Contracting Limited,769.33,Revenue,Companies
DIRECT ENVIRONMENT AND HOUSING,GF ENV AND VISIBLE,12-Jun-18,325894,Cemex UK Materials Limited,587.42,Revenue,Companies
DIRECT ENVIRONMENT AND HOUSING,GF PARKS AND GROUNDS,12-Jun-18,333013,Ace Site Services (UK) Limited,528,Revenue,Companies
DIRECT ENVIRONMENT AND HOUSING,REGENERATION & PLANNING,12-Jun-18,365763,Glamorgan Gem Limited,841.5,Revenue,Companies
DIRECT ENVIRONMENT AND HOUSING,GF LEGAL AND DEMOCRATIC,12-Jun-18,400050,Glamorgan Gem Limited,663,Revenue,Companies
DIRECT ENVIRONMENT AND HOUSING,GF HOUSING SERVICES,12-Jun-18,405305,Golley Slater Group Limited,863.81,Revenue,Companies
DIRECT ENVIRONMENT AND HOUSING,GF HOUSING SERVICES,12-Jun-18,405306,Golley Slater Group Limited,864.06,Revenue,Companies
DIRECT MANAGING DIRECTOR AND RESOURCES,GF RESOURCES,12-Jun-18,420211,Edson Print (Services) Limited,998,Revenue,Companies
DIRECT MANAGING DIRECTOR AND RESOURCES,GF RESOURCES,12-Jun-18,422003,Systemslink 2000 Limited,2245,Revenue,Companies
DIRECT MANAGING DIRECTOR AND RESOURCES,GF CORPORATE POLICY MAKING,12-Jun-18,460500,Tugbury Electrical Services Limited,2360,Revenue,Companies
DIRECT MANAGING DIRECTOR AND RESOURCES,GF GENERAL EXPENDITURE POLICY,12-Jun-18,471911,Ace Catering Services Limited,1490,Revenue,Companies
DIRECT CAPITAL VISIBLE AND HOUSING SERVICES,CAPITAL HIGHWAYS,12-Jun-18,831530,G.P.H.I.T (Integrated Services) Limited,19918.63,Capital,Companies
DIRECT CAPITAL DEVELOPMENT,CAPITAL PRIV HSG,12-Jun-18,845003,ASW Property Services Limited,744.53,Capital,Companies
DIRECT CAPITAL DEVELOPMENT,CAPITAL PRIV HSG,12-Jun-18,845003,ASW Property Services Limited,2482.7,Capital,Companies
DIRECT CAPITAL DEVELOPMENT,CAPITAL PRIV HSG,12-Jun-18,845003,GKR Maintenance & Building Co. Limited,8569.44,Capital,Companies
DIRECT LEARNING AND SKILLS,SCHOOLS DELEGATED,12-Jun-18,101241,Rhondda Cynon Taff County Borough Council,625,Revenue,Other Local Authorites
DIRECT LEARNING AND SKILLS,SCHOOLS DELEGATED,12-Jun-18,101304,Eastern Shires Purchasing Organisation,977,Revenue,Other Local Authorites
DIRECT SOCIAL SERVICES,GF CHILDREN SERVICES,12-Jun-18,260050,Dr Gerald McCarthy & Associates,4484.35,Revenue,Partnerships
DIRECT SOCIAL SERVICES,GF CHILDREN SERVICES,12-Jun-18,260020,Thomas Kibling,4083.5,Revenue,Professional Services
DIRECT LEARNING AND SKILLS,ACHIEVEMENT FOR ALL,12-Jun-18,102636,South Wales Association of Special School Headteachers,600,Revenue,Public Bodies
DIRECT SOCIAL SERVICES,GF CHILDREN SERVICES,12-Jun-18,260150,The Fostering Network - Wales Office,600,Revenue,Public Bodies
DIRECT SOCIAL SERVICES,GF CHILDREN SERVICES,12-Jun-18,260150,The Fostering Network - Wales Office,600,Revenue,Public Bodies
DIRECT LEARNING AND SKILLS,SCHOOLS DELEGATED,12-Jun-18,100802,New Directions (Education) Limited,510,Revenue,recy
DIRECT LEARNING AND SKILLS,SCHOOLS DELEGATED,12-Jun-18,100802,New Directions (Education) Limited,637.5,Revenue,recy
DIRECT LEARNING AND SKILLS,SCHOOLS DELEGATED,12-Jun-18,100805,New Directions (Education) Limited,655,Revenue,recy
DIRECT LEARNING AND SKILLS,SCHOOLS DELEGATED,12-Jun-18,101141,Apollo Teaching Services Limited,700,Revenue,recy
DIRECT MANAGING DIRECTOR AND RESOURCES,GF HUMAN RESOURCES,12-Jun-18,140119,Acorn Recruitment Limited,1432.6,Revenue,recy
DIRECT MANAGING DIRECTOR AND RESOURCES,GF HUMAN RESOURCES,12-Jun-18,140119,Acorn Recruitment Limited,1498.72,Revenue,recy
DIRECT MANAGING DIRECTOR AND RESOURCES,GF HUMAN RESOURCES,12-Jun-18,140131,Randstad Solutions Limited,104159.06,Revenue,recy
DIRECT ENVIRONMENT AND HOUSING,BUILDING SERVICES,12-Jun-18,303910,Hays Specialist Recruitment Limited,615.68,Revenue,recy
DIRECT ENVIRONMENT AND HOUSING,BUILDING SERVICES,12-Jun-18,303910,Hays Specialist Recruitment Limited,615.68,Revenue,recy
DIRECT ENVIRONMENT AND HOUSING,GF ENV AND VISIBLE,12-Jun-18,323686,Hays Specialist Recruitment Limited,640.64,Revenue,recy
DIRECT ENVIRONMENT AND HOUSING,GF ENV AND VISIBLE,12-Jun-18,325681,Hays Specialist Recruitment Limited,1154.03,Revenue,recy
DIRECT SOCIAL SERVICES,GF ADULT SERVICES,12-Jun-18,215486,Waverley Care Centre Limited,2052.62,Revenue,Residential Homes
DIRECT SOCIAL SERVICES,GF ADULT SERVICES,12-Jun-18,215489,Baltimore Care Limited,516.38,Revenue,Residential Homes
DIRECT SOCIAL SERVICES,GF ADULT SERVICES,12-Jun-18,215489,Baltimore Care Limited,516.38,Revenue,Residential Homes
DIRECT SOCIAL SERVICES,GF ADULT SERVICES,12-Jun-18,215489,Baltimore Care Limited,526.38,Revenue,Residential Homes
DIRECT SOCIAL SERVICES,GF ADULT SERVICES,12-Jun-18,215489,Bellavista Care (Cardiff) Limited T/A Bellavista Nursing Home Cardiff,506.04,Revenue,Residential Homes
DIRECT SOCIAL SERVICES,GF ADULT SERVICES,12-Jun-18,215489,Bellavista Nursing Homes (Wales) Limited t/a Bellavista Care Home,645.84,Revenue,Residential Homes
DIRECT SOCIAL SERVICES,GF ADULT SERVICES,12-Jun-18,215489,Broadway Care Centre Limited T/A Hazelhurst Nursing Home,516.38,Revenue,Residential Homes
DIRECT SOCIAL SERVICES,GF ADULT SERVICES,12-Jun-18,215489,Broadway Care Centre Limited T/A Hazelhurst Nursing Home,538.41,Revenue,Residential Homes
DIRECT SOCIAL SERVICES,GF ADULT SERVICES,12-Jun-18,215489,Duffryn Ffrwd Manor Limited,549.49,Revenue,Residential Homes
DIRECT SOCIAL SERVICES,GF ADULT SERVICES,12-Jun-18,215489,Forge Care Homes Limited t/a The Forge Care Centre,925,Revenue,Residential Homes
DIRECT SOCIAL SERVICES,GF ADULT SERVICES,12-Jun-18,215489,Forge Care Homes Limited t/a The Forge Care Centre,671.32,Revenue,Residential Homes
DIRECT SOCIAL SERVICES,GF ADULT SERVICES,12-Jun-18,215489,HC-One Limited t/a Glanffrwd Care Home,7931.45,Revenue,Residential Homes
DIRECT SOCIAL SERVICES,GF ADULT SERVICES,12-Jun-18,215489,Harrison Care Enterprises Barry Limited t/a Island View,516.38,Revenue,Residential Homes
DIRECT SOCIAL SERVICES,GF ADULT SERVICES,12-Jun-18,215489,June Zehetmayr t/a Tower Hill Residential Home,538.12,Revenue,Residential Homes
DIRECT SOCIAL SERVICES,GF ADULT SERVICES,12-Jun-18,215489,Lakeside Homes Limited T/A Lakeside House,518.82,Revenue,Residential Homes
DIRECT SOCIAL SERVICES,GF ADULT SERVICES,12-Jun-18,215489,Llangoedmor Properties Limited T/A Parkside Residential Home,516.38,Revenue,Residential Homes
DIRECT SOCIAL SERVICES,GF ADULT SERVICES,12-Jun-18,215489,Llangoedmor Properties Limited T/A Parkside Residential Home,517.8,Revenue,Residential Homes
DIRECT SOCIAL SERVICES,GF ADULT SERVICES,12-Jun-18,215489,Llangoedmor Properties Limited T/A Parkside Residential Home,502.23,Revenue,Residential Homes
DIRECT SOCIAL SERVICES,GF ADULT SERVICES,12-Jun-18,215489,Llangoedmor Properties Limited T/A Parkside Residential Home,533.5,Revenue,Residential Homes
DIRECT SOCIAL SERVICES,GF ADULT SERVICES,12-Jun-18,215489,MHA Care Group t/a Morel Court,531.09,Revenue,Residential Homes
DIRECT SOCIAL SERVICES,GF ADULT SERVICES,12-Jun-18,215489,MHA Care Group t/a Ty Gwyn Private Nursing Home,642.64,Revenue,Residential Homes
DIRECT SOCIAL SERVICES,GF ADULT SERVICES,12-Jun-18,215489,MHA Care Group t/a Ty Gwyn Private Nursing Home,599.54,Revenue,Residential Homes
DIRECT SOCIAL SERVICES,GF ADULT SERVICES,12-Jun-18,215489,MHA Care Group t/a Ty Gwyn Private Nursing Home,552.58,Revenue,Residential Homes
DIRECT SOCIAL SERVICES,GF ADULT SERVICES,12-Jun-18,215489,Middlepatch Limited T/A College Fields Nursing Home,574.12,Revenue,Residential Homes
DIRECT SOCIAL SERVICES,GF ADULT SERVICES,12-Jun-18,215489,Middlepatch Limited T/A College Fields Nursing Home,590.99,Revenue,Residential Homes
DIRECT SOCIAL SERVICES,GF ADULT SERVICES,12-Jun-18,215489,Middlepatch Limited T/A College Fields Nursing Home,572.59,Revenue,Residential Homes
DIRECT SOCIAL SERVICES,GF ADULT SERVICES,12-Jun-18,215489,Middlepatch Limited T/A College Fields Nursing Home,576.54,Revenue,Residential Homes
DIRECT SOCIAL SERVICES,GF ADULT SERVICES,12-Jun-18,215489,Middlepatch Limited T/A College Fields Nursing Home,514.35,Revenue,Residential Homes
DIRECT SOCIAL SERVICES,GF ADULT SERVICES,12-Jun-18,215489,Middlepatch Limited T/A College Fields Nursing Home,567.84,Revenue,Residential Homes
DIRECT SOCIAL SERVICES,GF ADULT SERVICES,12-Jun-18,215489,Middlepatch Limited T/A College Fields Nursing Home,612.02,Revenue,Residential Homes
DIRECT SOCIAL SERVICES,GF ADULT SERVICES,12-Jun-18,215489,Middlepatch Limited T/A College Fields Nursing Home,512.87,Revenue,Residential Homes
DIRECT SOCIAL SERVICES,GF ADULT SERVICES,12-Jun-18,215489,Middlepatch Limited T/A College Fields Nursing Home,614.52,Revenue,Residential Homes
DIRECT SOCIAL SERVICES,GF ADULT SERVICES,12-Jun-18,215489,Middlepatch Limited T/A College Fields Nursing Home,559.95,Revenue,Residential Homes
DIRECT SOCIAL SERVICES,GF ADULT SERVICES,12-Jun-18,215489,Middlepatch Limited T/A College Fields Nursing Home,567.84,Revenue,Residential Homes
DIRECT SOCIAL SERVICES,GF ADULT SERVICES,12-Jun-18,215489,Middlepatch Limited T/A College Fields Nursing Home,589.85,Revenue,Residential Homes
DIRECT SOCIAL SERVICES,GF ADULT SERVICES,12-Jun-18,215489,Northcote Developments Limited,513.38,Revenue,Residential Homes
DIRECT SOCIAL SERVICES,GF ADULT SERVICES,12-Jun-18,215489,Northcote Developments Limited,508.15,Revenue,Residential Homes
DIRECT SOCIAL SERVICES,GF ADULT SERVICES,12-Jun-18,215489,Northcote Developments Limited,515.73,Revenue,Residential Homes
DIRECT SOCIAL SERVICES,GF ADULT SERVICES,12-Jun-18,215489,Oakville Care Limited t/a Romilly Nursing Home,900,Revenue,Residential Homes
DIRECT SOCIAL SERVICES,GF ADULT SERVICES,12-Jun-18,215489,Springbank Care Home Limited T/A Springbank Nursing Home,567.44,Revenue,Residential Homes
DIRECT SOCIAL SERVICES,GF ADULT SERVICES,12-Jun-18,215489,Springbank Care Home Limited T/A Springbank Nursing Home,563.34,Revenue,Residential Homes
DIRECT SOCIAL SERVICES,GF ADULT SERVICES,12-Jun-18,215489,Springbank Care Home Limited T/A Springbank Nursing Home,612.02,Revenue,Residential Homes
DIRECT SOCIAL SERVICES,GF ADULT SERVICES,12-Jun-18,215489,Springbank Care Home Limited T/A Springbank Nursing Home,575.79,Revenue,Residential Homes
DIRECT SOCIAL SERVICES,GF ADULT SERVICES,12-Jun-18,215489,Springbank Care Home Limited T/A Springbank Nursing Home,626.5,Revenue,Residential Homes
DIRECT SOCIAL SERVICES,GF ADULT SERVICES,12-Jun-18,215489,The Manor House St Hilary Limited T/A Milsom House,642.99,Revenue,Residential Homes
DIRECT SOCIAL SERVICES,GF ADULT SERVICES,12-Jun-18,215489,The Manor House St Hilary Limited T/A Milsom House,504.17,Revenue,Residential Homes
DIRECT SOCIAL SERVICES,GF ADULT SERVICES,12-Jun-18,215489,The Manor House St Hilary Limited T/A Milsom House,1400.66,Revenue,Residential Homes
DIRECT SOCIAL SERVICES,GF ADULT SERVICES,12-Jun-18,215489,The Manor House St Hilary Limited T/A Milsom House,1559.94,Revenue,Residential Homes
DIRECT SOCIAL SERVICES,GF ADULT SERVICES,12-Jun-18,215489,Waverley Care Centre Limited,500.74,Revenue,Residential Homes
DIRECT SOCIAL SERVICES,GF ADULT SERVICES,12-Jun-18,215489,Waverley Care Centre Limited,585.1,Revenue,Residential Homes
DIRECT SOCIAL SERVICES,GF ADULT SERVICES,12-Jun-18,215489,Waverley Care Centre Limited,675.33,Revenue,Residential Homes
DIRECT SOCIAL SERVICES,GF ADULT SERVICES,12-Jun-18,215489,Waverley Care Centre Limited,7077.37,Revenue,Residential Homes
DIRECT SOCIAL SERVICES,GF ADULT SERVICES,12-Jun-18,215489,Waverley Care Centre Limited,519.4,Revenue,Residential Homes
DIRECT SOCIAL SERVICES,GF ADULT SERVICES,12-Jun-18,215489,Waverley Care Centre Limited,596.49,Revenue,Residential Homes
DIRECT SOCIAL SERVICES,GF ADULT SERVICES,12-Jun-18,216179,Accomplish Group Limited t/a Cedar House,1380.73,Revenue,Residential Homes
DIRECT SOCIAL SERVICES,GF ADULT SERVICES,12-Jun-18,216179,Amethyst Healthcare Limited t/a Hillstone House,1770.23,Revenue,Residential Homes
DIRECT SOCIAL SERVICES,GF ADULT SERVICES,12-Jun-18,216179,Bellavista Nursing Homes (Wales) Limited t/a Bellavista Care Home,552.23,Revenue,Residential Homes
DIRECT SOCIAL SERVICES,GF ADULT SERVICES,12-Jun-18,216179,Care 4 U (Neath) Limited,1754.28,Revenue,Residential Homes
DIRECT SOCIAL SERVICES,GF ADULT SERVICES,12-Jun-18,216179,Crusader Medical Care Limited T/A St Saviours Nursing Home,551.35,Revenue,Residential Homes
DIRECT SOCIAL SERVICES,GF ADULT SERVICES,12-Jun-18,216179,Leonard Cheshire Disability,970.38,Revenue,Residential Homes
DIRECT SOCIAL SERVICES,GF ADULT SERVICES,12-Jun-18,216179,Middlepatch Limited T/A College Fields Nursing Home,621.55,Revenue,Residential Homes
DIRECT SOCIAL SERVICES,GF ADULT SERVICES,12-Jun-18,216179,Middlepatch Limited T/A College Fields Nursing Home,618.34,Revenue,Residential Homes
DIRECT SOCIAL SERVICES,GF ADULT SERVICES,12-Jun-18,216179,Springbank Care Home Limited T/A Springbank Nursing Home,572.38,Revenue,Residential Homes
DIRECT SOCIAL SERVICES,GF ADULT SERVICES,12-Jun-18,216179,Springbank Care Home Limited T/A Springbank Nursing Home,740,Revenue,Residential Homes
DIRECT SOCIAL SERVICES,GF ADULT SERVICES,12-Jun-18,216179,Valebrook Care Homes Limited,1851.35,Revenue,Residential Homes
DIRECT SOCIAL SERVICES,GF ADULT SERVICES,12-Jun-18,216179,Voyage 1 Limited t/a Brook Lodge,2528.8,Revenue,Residential Homes
DIRECT SOCIAL SERVICES,GF ADULT SERVICES,12-Jun-18,216179,Voyage 1 Limited t/a Falcons Rest & Poachers Cottage,1729.64,Revenue,Residential Homes
DIRECT SOCIAL SERVICES,GF ADULT SERVICES,12-Jun-18,217909,Accomplish Group Limited,1821.48,Revenue,Residential Homes
DIRECT SOCIAL SERVICES,GF ADULT SERVICES,12-Jun-18,217909,Accomplish Group Limited,2146.47,Revenue,Residential Homes
DIRECT SOCIAL SERVICES,GF ADULT SERVICES,12-Jun-18,217909,Accomplish Group Limited t/a Cedar House,1582.7,Revenue,Residential Homes
DIRECT SOCIAL SERVICES,GF ADULT SERVICES,12-Jun-18,217909,Amethyst Healthcare Limited t/a Hillstone House,1680.86,Revenue,Residential Homes
DIRECT SOCIAL SERVICES,GF ADULT SERVICES,12-Jun-18,217909,Amethyst Healthcare Limited t/a Hillstone House,1462.13,Revenue,Residential Homes
DIRECT SOCIAL SERVICES,GF ADULT SERVICES,12-Jun-18,217909,Glasallt Fawr Camphill Centre,995.72,Revenue,Residential Homes
DIRECT SOCIAL SERVICES,GF ADULT SERVICES,12-Jun-18,217909,Glasallt Fawr Camphill Centre,1544.9,Revenue,Residential Homes
DIRECT SOCIAL SERVICES,GF ADULT SERVICES,12-Jun-18,217909,Heatherleigh Care Limited t/a 106 Splott Road,1563.71,Revenue,Residential Homes
DIRECT SOCIAL SERVICES,GF ADULT SERVICES,12-Jun-18,217909,Heatherleigh Care Limited t/a 106 Splott Road,1223.14,Revenue,Residential Homes
DIRECT SOCIAL SERVICES,GF ADULT SERVICES,12-Jun-18,217909,Llysywaun Limited t/a Bayview Lodge Nursing Home,1724.9,Revenue,Residential Homes
DIRECT SOCIAL SERVICES,GF ADULT SERVICES,12-Jun-18,217909,Ocean Community Services Limited t/a Westminster Court Care Home,1116.27,Revenue,Residential Homes
DIRECT SOCIAL SERVICES,GF ADULT SERVICES,12-Jun-18,217909,The Cedars Care Services Limited T/A Ashgrove Care Home,2112.35,Revenue,Residential Homes
DIRECT SOCIAL SERVICES,GF ADULT SERVICES,12-Jun-18,217909,The Cedars Care Services Limited T/A Ashgrove Care Home,995.35,Revenue,Residential Homes
DIRECT SOCIAL SERVICES,GF ADULT SERVICES,12-Jun-18,217909,The Cedars Care Services Limited T/A Oaklands,1030.35,Revenue,Residential Homes
DIRECT SOCIAL SERVICES,GF ADULT SERVICES,12-Jun-18,217909,The Cedars Care Services Limited t/a Sycamore House,2026.35,Revenue,Residential Homes
DIRECT SOCIAL SERVICES,GF ADULT SERVICES,12-Jun-18,217909,The Cedars Care Services Limited t/a Sycamore House,1809.35,Revenue,Residential Homes
DIRECT SOCIAL SERVICES,GF ADULT SERVICES,12-Jun-18,217909,The Cedars Care Services Limited t/a The Cedars,1576.06,Revenue,Residential Homes
DIRECT SOCIAL SERVICES,GF ADULT SERVICES,12-Jun-18,217909,The Cedars Care Services Limited t/a The Cedars,1365.05,Revenue,Residential Homes
DIRECT SOCIAL SERVICES,GF ADULT SERVICES,12-Jun-18,217909,The Cedars Care Services Limited t/a The Hollies,1864.35,Revenue,Residential Homes
DIRECT SOCIAL SERVICES,GF ADULT SERVICES,12-Jun-18,217909,Vale Phoenix Limited,1079.73,Revenue,Residential Homes
DIRECT SOCIAL SERVICES,GF ADULT SERVICES,12-Jun-18,217909,Vale Phoenix Limited,1116.94,Revenue,Residential Homes
DIRECT SOCIAL SERVICES,GF ADULT SERVICES,12-Jun-18,217909,Valebrook Care Homes Limited,1654.39,Revenue,Residential Homes
DIRECT SOCIAL SERVICES,GF ADULT SERVICES,12-Jun-18,217909,Valebrook Care Homes Limited,1999.5,Revenue,Residential Homes
DIRECT SOCIAL SERVICES,GF ADULT SERVICES,12-Jun-18,217909,Valebrook Care Homes Limited,1420.24,Revenue,Residential Homes
DIRECT SOCIAL SERVICES,GF ADULT SERVICES,12-Jun-18,217909,Valebrook Care Homes Limited,1767.35,Revenue,Residential Homes
DIRECT SOCIAL SERVICES,GF ADULT SERVICES,12-Jun-18,217909,Valebrook Care Homes Limited,1861.95,Revenue,Residential Homes
DIRECT SOCIAL SERVICES,GF ADULT SERVICES,12-Jun-18,217909,Valebrook Care Homes Limited,1390.24,Revenue,Residential Homes
DIRECT SOCIAL SERVICES,GF ADULT SERVICES,12-Jun-18,218321,Adriana Limited T/A The Priory Nursing Home,536,Revenue,Residential Homes
DIRECT SOCIAL SERVICES,GF ADULT SERVICES,12-Jun-18,218321,Hafod Care Association Limited,635.5,Revenue,Residential Homes
DIRECT SOCIAL SERVICES,GF ADULT SERVICES,12-Jun-18,218321,Harrison Care Enterprises Barry Limited t/a Island View,520.91,Revenue,Residential Homes
DIRECT SOCIAL SERVICES,GF ADULT SERVICES,12-Jun-18,218321,Isman & Kinze Nessa T/A Haven House,516.38,Revenue,Residential Homes
DIRECT SOCIAL SERVICES,GF ADULT SERVICES,12-Jun-18,218321,J and P Residential Homes Limited T/A Monkstone House,600,Revenue,Residential Homes
DIRECT SOCIAL SERVICES,GF ADULT SERVICES,12-Jun-18,218321,Northcote Developments Limited,559,Revenue,Residential Homes
DIRECT SOCIAL SERVICES,GF ADULT SERVICES,12-Jun-18,218321,Sanda Mitchel & Ptn t/a Canola House Residential Home,578,Revenue,Residential Homes
DIRECT SOCIAL SERVICES,GF ADULT SERVICES,12-Jun-18,218321,Waverley Care Centre Limited,909.98,Revenue,Residential Homes
DIRECT SOCIAL SERVICES,GF ADULT SERVICES,12-Jun-18,218419,Anwen Care Limited t/a Anwen Care Home,664,Revenue,Residential Homes
DIRECT SOCIAL SERVICES,GF ADULT SERVICES,12-Jun-18,218419,Baltimore Care Limited,527.38,Revenue,Residential Homes
DIRECT SOCIAL SERVICES,GF ADULT SERVICES,12-Jun-18,218419,Baltimore Care Limited,505.31,Revenue,Residential Homes
DIRECT SOCIAL SERVICES,GF ADULT SERVICES,12-Jun-18,218419,Barchester Healthcare Homes Limited T/A Bushey House Beaumont Care Home,1400,Revenue,Residential Homes
DIRECT SOCIAL SERVICES,GF ADULT SERVICES,12-Jun-18,218419,Bellavista Care (Cardiff) Limited T/A Bellavista Nursing Home Cardiff,696.38,Revenue,Residential Homes
DIRECT SOCIAL SERVICES,GF ADULT SERVICES,12-Jun-18,218419,Bellavista Care (Cardiff) Limited T/A Bellavista Nursing Home Cardiff,516.38,Revenue,Residential Homes
DIRECT SOCIAL SERVICES,GF ADULT SERVICES,12-Jun-18,218419,Broadway Care Centre Limited T/A Hazelhurst Nursing Home,2122,Revenue,Residential Homes
DIRECT SOCIAL SERVICES,GF ADULT SERVICES,12-Jun-18,218419,Broadway Care Centre Limited T/A Hazelhurst Nursing Home,516.38,Revenue,Residential Homes
DIRECT SOCIAL SERVICES,GF ADULT SERVICES,12-Jun-18,218419,David Austin t/a Silverdale,663.68,Revenue,Residential Homes
DIRECT SOCIAL SERVICES,GF ADULT SERVICES,12-Jun-18,218419,E & E Homes Limited T/A Cliffhaven Residential Home,501.05,Revenue,Residential Homes
DIRECT SOCIAL SERVICES,GF ADULT SERVICES,12-Jun-18,218419,E & E Homes Limited T/A Cliffhaven Residential Home,516.38,Revenue,Residential Homes
DIRECT SOCIAL SERVICES,GF ADULT SERVICES,12-Jun-18,218419,E & E Homes Limited T/A Cliffhaven Residential Home,503.15,Revenue,Residential Homes
DIRECT SOCIAL SERVICES,GF ADULT SERVICES,12-Jun-18,218419,E & E Homes Limited T/A Cliffhaven Residential Home,505.2,Revenue,Residential Homes
DIRECT SOCIAL SERVICES,GF ADULT SERVICES,12-Jun-18,218419,Forge Care Homes Limited t/a The Forge Care Centre,699.25,Revenue,Residential Homes
DIRECT SOCIAL SERVICES,GF ADULT SERVICES,12-Jun-18,218419,Hallmark Care Homes (Bute Town) Limited t/a Shire Hall Care Home,4820.11,Revenue,Residential Homes
DIRECT SOCIAL SERVICES,GF ADULT SERVICES,12-Jun-18,218419,Hallmark Care Homes (Bute Town) Limited t/a Shire Hall Care Home,784.67,Revenue,Residential Homes
DIRECT SOCIAL SERVICES,GF ADULT SERVICES,12-Jun-18,218419,Hallmark Care Homes (Bute Town) Limited t/a Shire Hall Care Home,1215.5,Revenue,Residential Homes
DIRECT SOCIAL SERVICES,GF ADULT SERVICES,12-Jun-18,218419,Harrison Care Enterprises Barry Limited t/a Island View,516.38,Revenue,Residential Homes
DIRECT SOCIAL SERVICES,GF ADULT SERVICES,12-Jun-18,218419,Harrison Care Enterprises Barry Limited t/a Island View,501.96,Revenue,Residential Homes
DIRECT SOCIAL SERVICES,GF ADULT SERVICES,12-Jun-18,218419,Harrison Care Enterprises Barry Limited t/a Island View,618,Revenue,Residential Homes
DIRECT SOCIAL SERVICES,GF ADULT SERVICES,12-Jun-18,218419,Harrison Care Enterprises Barry Limited t/a Island View,514.75,Revenue,Residential Homes
DIRECT SOCIAL SERVICES,GF ADULT SERVICES,12-Jun-18,218419,Harrison Care Enterprises Barry Limited t/a Island View,544.81,Revenue,Residential Homes
DIRECT SOCIAL SERVICES,GF ADULT SERVICES,12-Jun-18,218419,Harrison Care Enterprises Barry Limited t/a Island View,516.38,Revenue,Residential Homes
DIRECT SOCIAL SERVICES,GF ADULT SERVICES,12-Jun-18,218419,Harrison Care Enterprises Barry Limited t/a Island View,516.38,Revenue,Residential Homes
DIRECT SOCIAL SERVICES,GF ADULT SERVICES,12-Jun-18,218419,Harrison Care Enterprises Barry Limited t/a Island View,503.11,Revenue,Residential Homes
DIRECT SOCIAL SERVICES,GF ADULT SERVICES,12-Jun-18,218419,Harrison Care Enterprises Barry Limited t/a Island View,516.38,Revenue,Residential Homes
DIRECT SOCIAL SERVICES,GF ADULT SERVICES,12-Jun-18,218419,June Zehetmayr t/a Tower Hill Residential Home,650.88,Revenue,Residential Homes
DIRECT SOCIAL SERVICES,GF ADULT SERVICES,12-Jun-18,218419,June Zehetmayr t/a Tower Hill Residential Home,518.38,Revenue,Residential Homes
DIRECT SOCIAL SERVICES,GF ADULT SERVICES,12-Jun-18,218419,June Zehetmayr t/a Tower Hill Residential Home,516.56,Revenue,Residential Homes
DIRECT SOCIAL SERVICES,GF ADULT SERVICES,12-Jun-18,218419,Llangoedmor Properties Limited T/A Parkside Residential Home,2100,Revenue,Residential Homes
DIRECT SOCIAL SERVICES,GF ADULT SERVICES,12-Jun-18,218419,Llangoedmor Properties Limited T/A Parkside Residential Home,2100,Revenue,Residential Homes
DIRECT SOCIAL SERVICES,GF ADULT SERVICES,12-Jun-18,218419,Llangoedmor Properties Limited T/A Parkside Residential Home,650.88,Revenue,Residential Homes
DIRECT SOCIAL SERVICES,GF ADULT SERVICES,12-Jun-18,218419,Shirwan Al-Mufti & Ptn t/a Pontcanna House,600,Revenue,Residential Homes
DIRECT SOCIAL SERVICES,GF ADULT SERVICES,12-Jun-18,218419,The Manor House St Hilary Limited T/A Milsom House,700.33,Revenue,Residential Homes
DIRECT SOCIAL SERVICES,GF ADULT SERVICES,12-Jun-18,218419,Waverley Care Centre Limited,629.59,Revenue,Residential Homes
DIRECT SOCIAL SERVICES,GF ADULT SERVICES,12-Jun-18,218419,Waverley Care Centre Limited,574,Revenue,Residential Homes
DIRECT SOCIAL SERVICES,GF ADULT SERVICES,12-Jun-18,218419,Waverley Care Centre Limited,672.09,Revenue,Residential Homes
DIRECT SOCIAL SERVICES,GF ADULT SERVICES,12-Jun-18,218419,Waverley Care Centre Limited,514.18,Revenue,Residential Homes
DIRECT LEARNING AND SKILLS,SCHOOLS DELEGATED,12-Jun-18,101025,Cwmni Urdd Gobaith Cymru,2806,Revenue,Voluntary Organisations
DIRECT LEARNING AND SKILLS,SCHOOLS DELEGATED,12-Jun-18,102593,Work With Meaning,1200,Revenue,Voluntary Organisations
DIRECT ENVIRONMENT AND HOUSING,GF ENV AND VISIBLE,12-Jun-18,341066,Royal National Lifeboat Institution,12184.38,Revenue,Voluntary Organisations
DIRECT SOCIAL SERVICES,GF ADULT SERVICES,13-Jun-18,215489,1st Grade Care Limited,532.7,Revenue,agen
DIRECT SOCIAL SERVICES,GF ADULT SERVICES,13-Jun-18,215489,1st Grade Care Limited,582.4,Revenue,agen
DIRECT SOCIAL SERVICES,GF ADULT SERVICES,13-Jun-18,215489,1st Grade Care Limited,621.6,Revenue,agen
DIRECT SOCIAL SERVICES,GF ADULT SERVICES,13-Jun-18,215489,1st Grade Care Limited,680.35,Revenue,agen
DIRECT SOCIAL SERVICES,GF ADULT SERVICES,13-Jun-18,215489,1st Grade Care Limited,608.8,Revenue,agen
DIRECT SOCIAL SERVICES,GF ADULT SERVICES,13-Jun-18,215489,Annwyl Limited t/a Bluebird Care,673.32,Revenue,agen
DIRECT SOCIAL SERVICES,GF ADULT SERVICES,13-Jun-18,215489,Annwyl Limited t/a Bluebird Care,655.25,Revenue,agen
DIRECT SOCIAL SERVICES,GF ADULT SERVICES,13-Jun-18,215489,Annwyl Limited t/a Bluebird Care,732.21,Revenue,agen
DIRECT SOCIAL SERVICES,GF ADULT SERVICES,13-Jun-18,215489,Annwyl Limited t/a Bluebird Care,608.8,Revenue,agen
DIRECT SOCIAL SERVICES,GF ADULT SERVICES,13-Jun-18,215489,Annwyl Limited t/a Bluebird Care,761.08,Revenue,agen
DIRECT SOCIAL SERVICES,GF ADULT SERVICES,13-Jun-18,215489,Annwyl Limited t/a Bluebird Care,746.75,Revenue,agen
DIRECT SOCIAL SERVICES,GF ADULT SERVICES,13-Jun-18,215489,Annwyl Limited t/a Bluebird Care,835.09,Revenue,agen
DIRECT SOCIAL SERVICES,GF ADULT SERVICES,13-Jun-18,215489,Annwyl Limited t/a Bluebird Care,684.51,Revenue,agen
DIRECT SOCIAL SERVICES,GF ADULT SERVICES,13-Jun-18,215489,Cherish Cymru Limited,738.67,Revenue,agen
DIRECT SOCIAL SERVICES,GF ADULT SERVICES,13-Jun-18,215489,Cherish Cymru Limited,687.71,Revenue,agen
DIRECT SOCIAL SERVICES,GF ADULT SERVICES,13-Jun-18,215489,Cherish Cymru Limited,501.49,Revenue,agen
DIRECT SOCIAL SERVICES,GF ADULT SERVICES,13-Jun-18,215489,Cherish Cymru Limited,649.04,Revenue,agen
DIRECT SOCIAL SERVICES,GF ADULT SERVICES,13-Jun-18,215489,Cherish Cymru Limited,611.26,Revenue,agen
DIRECT SOCIAL SERVICES,GF ADULT SERVICES,13-Jun-18,215489,Cherish Cymru Limited,608.69,Revenue,agen
DIRECT SOCIAL SERVICES,GF ADULT SERVICES,13-Jun-18,215489,Cherish Cymru Limited,617.9,Revenue,agen
DIRECT SOCIAL SERVICES,GF ADULT SERVICES,13-Jun-18,215489,Cherish Cymru Limited,603.59,Revenue,agen
DIRECT SOCIAL SERVICES,GF ADULT SERVICES,13-Jun-18,215489,Cherish Cymru Limited,572.52,Revenue,agen
DIRECT SOCIAL SERVICES,GF ADULT SERVICES,13-Jun-18,215489,Cherish Cymru Limited,538.54,Revenue,agen
DIRECT SOCIAL SERVICES,GF ADULT SERVICES,13-Jun-18,215489,Cherish Cymru Limited,533.74,Revenue,agen
DIRECT SOCIAL SERVICES,GF ADULT SERVICES,13-Jun-18,215489,Hallows Care Limited T/A Hallows Care,764.11,Revenue,agen
DIRECT SOCIAL SERVICES,GF ADULT SERVICES,13-Jun-18,215489,Hallows Care Limited T/A Hallows Care,682.26,Revenue,agen
DIRECT SOCIAL SERVICES,GF ADULT SERVICES,13-Jun-18,215489,Hallows Care Limited T/A Hallows Care,524.14,Revenue,agen
DIRECT SOCIAL SERVICES,GF ADULT SERVICES,13-Jun-18,215489,Hallows Care Limited T/A Hallows Care,704.51,Revenue,agen
DIRECT SOCIAL SERVICES,GF ADULT SERVICES,13-Jun-18,215489,Hallows Care Limited T/A Hallows Care,692.85,Revenue,agen
DIRECT SOCIAL SERVICES,GF ADULT SERVICES,13-Jun-18,216179,Annwyl Limited t/a Bluebird Care,745.2,Revenue,agen
DIRECT SOCIAL SERVICES,GF ADULT SERVICES,13-Jun-18,216179,Annwyl Limited t/a Bluebird Care,851.57,Revenue,agen
DIRECT SOCIAL SERVICES,GF ADULT SERVICES,13-Jun-18,216179,Hallows Care Limited T/A Hallows Care,682.29,Revenue,agen
DIRECT SOCIAL SERVICES,GF ADULT SERVICES,13-Jun-18,217909,1st Grade Care Limited,767.05,Revenue,agen
DIRECT SOCIAL SERVICES,GF ADULT SERVICES,13-Jun-18,218419,Annwyl Limited t/a Bluebird Care,625.01,Revenue,agen
DIRECT SOCIAL SERVICES,GF ADULT SERVICES,13-Jun-18,218419,Annwyl Limited t/a Bluebird Care,714.29,Revenue,agen
DIRECT LEARNING AND SKILLS,SCHOOLS DELEGATED,13-Jun-18,101031,Harrow Business Services Limited,592.64,Revenue,Companies
DIRECT LEARNING AND SKILLS,SCHOOLS DELEGATED,13-Jun-18,101031,Superstars School Services Limited,1345.92,Revenue,Companies
DIRECT SOCIAL SERVICES,GF ADULT SERVICES,13-Jun-18,218302,Training In Mind Limited,6610.83,Revenue,Companies
DIRECT SOCIAL SERVICES,GF ADULT SERVICES,13-Jun-18,218302,Training In Mind Limited,3171,Revenue,Companies
DIRECT ENVIRONMENT AND HOUSING,GF ENV AND VISIBLE,13-Jun-18,300600,Computacenter (UK) Limited,2500.77,Revenue,Companies
DIRECT ENVIRONMENT AND HOUSING,BUILDING SERVICES,13-Jun-18,303901,Handicare Accessibility Limited,1835,Revenue,Companies
DIRECT ENVIRONMENT AND HOUSING,BUILDING SERVICES,13-Jun-18,303901,Handicare Accessibility Limited,1955,Revenue,Companies
DIRECT ENVIRONMENT AND HOUSING,BUILDING SERVICES,13-Jun-18,303930,Burner Efficiency Services Limited,560.27,Revenue,Companies
DIRECT ENVIRONMENT AND HOUSING,BUILDING SERVICES,13-Jun-18,303930,Moorland Environmental Limited,1780,Revenue,Companies
DIRECT ENVIRONMENT AND HOUSING,BUILDING SERVICES,13-Jun-18,303931,G.P.H.I.T (Integrated Services) Limited,1080,Revenue,Companies
DIRECT ENVIRONMENT AND HOUSING,BUILDING SERVICES,13-Jun-18,303931,Taylor Decorating Limited,1265,Revenue,Companies
DIRECT ENVIRONMENT AND HOUSING,BUILDING SERVICES,13-Jun-18,304103,AKW Medi-Care Limited,610.82,Revenue,Companies
DIRECT ENVIRONMENT AND HOUSING,BUILDING SERVICES,13-Jun-18,305715,G.P.H.I.T (Integrated Services) Limited,1200,Revenue,Companies
DIRECT ENVIRONMENT AND HOUSING,BUILDING SERVICES,13-Jun-18,305724,Taylor Decorating Limited,2040,Revenue,Companies
DIRECT ENVIRONMENT AND HOUSING,VEHICLES,13-Jun-18,319010,S & K Haulage Glamorgan Limited,666,Revenue,Companies
DIRECT ENVIRONMENT AND HOUSING,GF PARKS AND GROUNDS,13-Jun-18,333030,Ace Site Services (UK) Limited,620,Revenue,Companies
DIRECT ENVIRONMENT AND HOUSING,GF PARKS AND GROUNDS,13-Jun-18,333102,J & D Water Consultants Limited,3360,Revenue,Companies
DIRECT ENVIRONMENT AND HOUSING,GF ENV AND VISIBLE,13-Jun-18,341500,Cromwell Polythene Limited,16872.96,Revenue,Companies
DIRECT ENVIRONMENT AND HOUSING,REGENERATION & PLANNING,13-Jun-18,354717,Golley Slater Group Limited,529.5,Revenue,Companies
DIRECT ENVIRONMENT AND HOUSING,REGENERATION & PLANNING,13-Jun-18,359457,Walk The Plank Limited,11833.33,Revenue,Companies
DIRECT ENVIRONMENT AND HOUSING,HOUSING,13-Jun-18,407400,Glamorgan Gem Limited,500,Revenue,Companies
DIRECT CAPITAL VISIBLE AND HOUSING SERVICES,AR CAPITAL ENGINEER,13-Jun-18,831216,Dyer & Butler Limited,66496.86,Capital,Companies
DIRECT CAPITAL VISIBLE AND HOUSING SERVICES,AR CAPITAL ENGINEER,13-Jun-18,831216,Peter Brett Associates LLP,14953.1,Capital,Companies
DIRECT CAPITAL DEVELOPMENT,CAPITAL ECO DEV,13-Jun-18,834231,Cooke and Arkwright Limited,500,Capital,Companies
DIRECT CAPITAL DEVELOPMENT,CAPITAL PRIV HSG,13-Jun-18,845003,Arnold Building & Carpentry Limited,12000,Capital,Companies
DIRECT LEARNING AND SKILLS,CATERING,13-Jun-18,150690,St Cyres Comprehensive School,1982.91,Revenue,Other Local Authorites
DIRECT ENVIRONMENT AND HOUSING,BUILDING SERVICES,13-Jun-18,303930,Michael Bryl & Ptn T/A CW Facilities Management,2852.15,Revenue,Partnerships
DIRECT LEARNING AND SKILLS,SCHOOLS DELEGATED,13-Jun-18,101005,PSC - Amanda Lane,513,Revenue,Personal Service Companies
DIRECT ENVIRONMENT AND HOUSING,GF HOUSING SERVICES,13-Jun-18,405001,Salvatore Cannatella,600,Revenue,Professional Services
DIRECT ENVIRONMENT AND HOUSING,GF HOUSING SERVICES,13-Jun-18,405100,Lyndon Mustoe,578.6,Revenue,Professional Services
DIRECT LEARNING AND SKILLS,SCHOOLS DELEGATED,13-Jun-18,101047,New Directions (Education) Limited,650,Revenue,recy
DIRECT LEARNING AND SKILLS,SCHOOLS DELEGATED,13-Jun-18,101145,Celtic Teachers Limited,1272.73,Revenue,recy
DIRECT LEARNING AND SKILLS,SCHOOLS NON DELEGATED,13-Jun-18,103065,New Directions (Education) Limited,657.5,Revenue,recy
DIRECT SOCIAL SERVICES,GF ADULT SERVICES,13-Jun-18,215489,April Complete Care Solutions Limited,651.21,Revenue,recy
DIRECT SOCIAL SERVICES,GF ADULT SERVICES,13-Jun-18,215489,April Complete Care Solutions Limited,609.43,Revenue,recy
DIRECT SOCIAL SERVICES,GF ADULT SERVICES,13-Jun-18,216179,April Complete Care Solutions Limited,703.04,Revenue,recy
DIRECT SOCIAL SERVICES,GF ADULT SERVICES,13-Jun-18,216179,April Complete Care Solutions Limited,1017.54,Revenue,recy
DIRECT SOCIAL SERVICES,GF ADULT SERVICES,13-Jun-18,217909,April Complete Care Solutions Limited,900.36,Revenue,recy
DIRECT ENVIRONMENT AND HOUSING,HOUSING,13-Jun-18,407118,James Andrews Recruitment Solutions Limited,1175,Revenue,recy
DIRECT MANAGING DIRECTOR AND RESOURCES,GF GRANTS,13-Jun-18,465201,Cowbridge Tennis Club,3939.6,Revenue,Voluntary Organisations
DIRECT MANAGING DIRECTOR AND RESOURCES,GF GRANTS,13-Jun-18,465201,Gibby Green Fingers,3000,Revenue,Voluntary Organisations
DIRECT SOCIAL SERVICES,GF ADULT SERVICES,14-Jun-18,215489,Care In Wales Limited T/A Care in the Vale,777.34,Revenue,agen
DIRECT SOCIAL SERVICES,GF ADULT SERVICES,14-Jun-18,215489,Care In Wales Limited T/A Care in the Vale,763.04,Revenue,agen
DIRECT SOCIAL SERVICES,GF ADULT SERVICES,14-Jun-18,215489,Care In Wales Limited T/A Care in the Vale,522.58,Revenue,agen
DIRECT SOCIAL SERVICES,GF ADULT SERVICES,14-Jun-18,215489,Care In Wales Limited T/A Care in the Vale,776.41,Revenue,agen
DIRECT SOCIAL SERVICES,GF ADULT SERVICES,14-Jun-18,215489,Care In Wales Limited T/A Care in the Vale,683.26,Revenue,agen
DIRECT SOCIAL SERVICES,GF ADULT SERVICES,14-Jun-18,215489,Care In Wales Limited T/A Care in the Vale,576.76,Revenue,agen
DIRECT SOCIAL SERVICES,GF ADULT SERVICES,14-Jun-18,215489,Care In Wales Limited T/A Care in the Vale,743.81,Revenue,agen
DIRECT SOCIAL SERVICES,GF ADULT SERVICES,14-Jun-18,215489,Care In Wales Limited T/A Care in the Vale,607.95,Revenue,agen
DIRECT SOCIAL SERVICES,GF ADULT SERVICES,14-Jun-18,215489,Care In Wales Limited T/A Care in the Vale,655.59,Revenue,agen
DIRECT SOCIAL SERVICES,GF ADULT SERVICES,14-Jun-18,215489,Care In Wales Limited T/A Care in the Vale,836.84,Revenue,agen
DIRECT SOCIAL SERVICES,GF ADULT SERVICES,14-Jun-18,215489,Care In Wales Limited T/A Care in the Vale,706.12,Revenue,agen
DIRECT SOCIAL SERVICES,GF ADULT SERVICES,14-Jun-18,215489,Care In Wales Limited T/A Care in the Vale,730.93,Revenue,agen
DIRECT SOCIAL SERVICES,GF ADULT SERVICES,14-Jun-18,215489,Care In Wales Limited T/A Care in the Vale,715.42,Revenue,agen
DIRECT SOCIAL SERVICES,GF ADULT SERVICES,14-Jun-18,215489,Care In Wales Limited T/A Care in the Vale,724.65,Revenue,agen
DIRECT SOCIAL SERVICES,GF ADULT SERVICES,14-Jun-18,215489,Care In Wales Limited T/A Care in the Vale,505.05,Revenue,agen
DIRECT SOCIAL SERVICES,GF ADULT SERVICES,14-Jun-18,215489,Care In Wales Limited T/A Care in the Vale,637.71,Revenue,agen
DIRECT SOCIAL SERVICES,GF ADULT SERVICES,14-Jun-18,215489,Care In Wales Limited T/A Care in the Vale,538.31,Revenue,agen
DIRECT SOCIAL SERVICES,GF ADULT SERVICES,14-Jun-18,215489,Care In Wales Limited T/A Care in the Vale,696.19,Revenue,agen
DIRECT SOCIAL SERVICES,GF ADULT SERVICES,14-Jun-18,215489,Care In Wales Limited T/A Care in the Vale,595.62,Revenue,agen
DIRECT SOCIAL SERVICES,GF ADULT SERVICES,14-Jun-18,215489,Care In Wales Limited T/A Care in the Vale,622.72,Revenue,agen
DIRECT SOCIAL SERVICES,GF ADULT SERVICES,14-Jun-18,215489,Care In Wales Limited T/A Care in the Vale,781.05,Revenue,agen
DIRECT SOCIAL SERVICES,GF ADULT SERVICES,14-Jun-18,215489,Care In Wales Limited T/A Care in the Vale,670.84,Revenue,agen
DIRECT SOCIAL SERVICES,GF ADULT SERVICES,14-Jun-18,216179,Care In Wales Limited T/A Care in the Vale,605.44,Revenue,agen
DIRECT SOCIAL SERVICES,GF ADULT SERVICES,14-Jun-18,216179,Care In Wales Limited T/A Care in the Vale,565.67,Revenue,agen
DIRECT SOCIAL SERVICES,GF ADULT SERVICES,14-Jun-18,218419,Care In Wales Limited T/A Care in the Vale,731.25,Revenue,agen
DIRECT SOCIAL SERVICES,GF ADULT SERVICES,14-Jun-18,218419,Care In Wales Limited T/A Care in the Vale,714.31,Revenue,agen
DIRECT SOCIAL SERVICES,GF ADULT SERVICES,14-Jun-18,218419,Care In Wales Limited T/A Care in the Vale,723.53,Revenue,agen
DIRECT SOCIAL SERVICES,GF ADULT SERVICES,14-Jun-18,218419,Care In Wales Limited T/A Care in the Vale,672.26,Revenue,agen
DIRECT SOCIAL SERVICES,GF ADULT SERVICES,14-Jun-18,218419,Care In Wales Limited T/A Care in the Vale,666.69,Revenue,agen
DIRECT SOCIAL SERVICES,GF ADULT SERVICES,14-Jun-18,218419,Care In Wales Limited T/A Care in the Vale,677.98,Revenue,agen
DIRECT LEARNING AND SKILLS,STRATEGY COMMUNITY LEARNING & RESOURCES,14-Jun-18,100121,CoveyTRC Limited,990,Revenue,Companies
DIRECT LEARNING AND SKILLS,SCHOOLS DELEGATED,14-Jun-18,101075,GL Education Group Limited,1929.1,Revenue,Companies
DIRECT LEARNING AND SKILLS,SCHOOLS DELEGATED,14-Jun-18,101171,Academics Limited,806.8,Revenue,Companies
DIRECT LEARNING AND SKILLS,SCHOOLS DELEGATED,14-Jun-18,101171,Carpet Services (Cardiff) Limited t/a CS Flooring Solutions,717,Revenue,Companies
DIRECT LEARNING AND SKILLS,SCHOOLS DELEGATED,14-Jun-18,102593,Inclusive Technology Limited,686.5,Revenue,Companies
DIRECT LEARNING AND SKILLS,SCHOOLS DELEGATED,14-Jun-18,102593,eBuyer UK Limited,933.14,Revenue,Companies
DIRECT LEARNING AND SKILLS,SCHOOLS DELEGATED,14-Jun-18,102594,EDF Energy Plc,630.79,Revenue,Companies
DIRECT ENVIRONMENT AND HOUSING,REGENERATION & PLANNING,14-Jun-18,130511,The Abbey Cleaning Services Limited,586.14,Revenue,Companies
DIRECT SOCIAL SERVICES,GF ADULT SERVICES,14-Jun-18,215121,iTs Designs Limited T/A Alert It,588,Revenue,Companies
DIRECT SOCIAL SERVICES,GF ADULT SERVICES,14-Jun-18,215191,Equip4work Limited t/a OfficeFurnitureOnline.co.uk,1164,Revenue,Companies
DIRECT SOCIAL SERVICES,GF ADULT SERVICES,14-Jun-18,217909,Everycare (Cardiff) Limited,651.9,Revenue,Companies
DIRECT SOCIAL SERVICES,GF ADULT SERVICES,14-Jun-18,217909,Everycare (Cardiff) Limited,941.64,Revenue,Companies
DIRECT SOCIAL SERVICES,GF ADULT SERVICES,14-Jun-18,217909,Everycare (Cardiff) Limited,855.88,Revenue,Companies
DIRECT SOCIAL SERVICES,GF ADULT SERVICES,14-Jun-18,217909,Innovate Trust Limited,1944.2,Revenue,Companies
DIRECT SOCIAL SERVICES,GF ADULT SERVICES,14-Jun-18,217909,Merricks Private Transport Contractors Limited,506,Revenue,Companies
DIRECT ENVIRONMENT AND HOUSING,HOUSING,14-Jun-18,407106,Social Welfare Training Limited,665,Revenue,Companies
DIRECT CAPITAL VISIBLE AND HOUSING SERVICES,CAPITAL HRA,14-Jun-18,842144,Tunstall Healthcare (UK) Limited,1137.32,Capital,Companies
DIRECT CAPITAL POLICY,CAPITAL POLICY,14-Jun-18,852233,Pervasive Networks Limited,61189.27,Capital,Companies
DIRECT MANAGING DIRECTOR AND RESOURCES,GF MISCELLANEOUS POLICY,14-Jun-18,479050,St Richard Gwyn Catholic High School,722.44,Revenue,Other Local Authorites
DIRECT MANAGING DIRECTOR AND RESOURCES,GF MISCELLANEOUS POLICY,14-Jun-18,479050,Stanwell Comprehensive School,668.94,Revenue,Other Local Authorites
DIRECT SOCIAL SERVICES,GF ADULT SERVICES,14-Jun-18,217691,Samantha Wrightson,1452,Revenue,Professional Services
DIRECT ENVIRONMENT AND HOUSING,GF PARKS AND GROUNDS,14-Jun-18,333500,Jonathan Edwards & Ptn T/A Jonathan Edwards & Son,643.75,Revenue,Professional Services
DIRECT ENVIRONMENT AND HOUSING,GF PARKS AND GROUNDS,14-Jun-18,333550,Jonathan Edwards & Ptn T/A Jonathan Edwards & Son,643.75,Revenue,Professional Services
DIRECT LEARNING AND SKILLS,SCHOOLS DELEGATED,14-Jun-18,101065,Oxford University Press,2197.25,Revenue,Public Bodies
DIRECT LEARNING AND SKILLS,SCHOOLS DELEGATED,14-Jun-18,101261,New Directions (Education) Limited,562.36,Revenue,recy
DIRECT MANAGING DIRECTOR AND RESOURCES,GF HUMAN RESOURCES,14-Jun-18,140131,Randstad Solutions Limited,122266.75,Revenue,recy
DIRECT ENVIRONMENT AND HOUSING,HOUSING,14-Jun-18,407106,James Andrews Recruitment Solutions Limited,803,Revenue,recy
DIRECT MANAGING DIRECTOR AND RESOURCES,GF RESOURCES,14-Jun-18,422150,Hays Specialist Recruitment Limited,694.88,Revenue,recy
DIRECT MANAGING DIRECTOR AND RESOURCES,GF RESOURCES,14-Jun-18,422160,Anderselite Limited,850,Revenue,recy
DIRECT MANAGING DIRECTOR AND RESOURCES,GF RESOURCES,14-Jun-18,422160,Anderselite Limited,662.5,Revenue,recy
DIRECT MANAGING DIRECTOR AND RESOURCES,GF RESOURCES,14-Jun-18,422160,Hays Specialist Recruitment Limited,554.63,Revenue,recy
DIRECT SOCIAL SERVICES,GF ADULT SERVICES,14-Jun-18,215489,Willowmere Home Care Agency Limited,707.52,Revenue,Residential Homes
DIRECT SOCIAL SERVICES,GF ADULT SERVICES,14-Jun-18,215489,Willowmere Home Care Agency Limited,619.08,Revenue,Residential Homes
DIRECT SOCIAL SERVICES,GF ADULT SERVICES,14-Jun-18,215489,Willowmere Home Care Agency Limited,663.26,Revenue,Residential Homes
DIRECT SOCIAL SERVICES,GF ADULT SERVICES,14-Jun-18,215489,Willowmere Home Care Agency Limited,756.96,Revenue,Residential Homes
DIRECT SOCIAL SERVICES,GF ADULT SERVICES,14-Jun-18,215489,Willowmere Home Care Agency Limited,619.08,Revenue,Residential Homes
DIRECT SOCIAL SERVICES,GF ADULT SERVICES,14-Jun-18,215489,Willowmere Home Care Agency Limited,536.85,Revenue,Residential Homes
DIRECT SOCIAL SERVICES,GF ADULT SERVICES,14-Jun-18,215489,Willowmere Home Care Agency Limited,540.75,Revenue,Residential Homes
DIRECT SOCIAL SERVICES,GF ADULT SERVICES,14-Jun-18,215489,Willowmere Home Care Agency Limited,652.54,Revenue,Residential Homes
DIRECT SOCIAL SERVICES,GF ADULT SERVICES,14-Jun-18,215489,Willowmere Home Care Agency Limited,816.14,Revenue,Residential Homes
DIRECT SOCIAL SERVICES,GF ADULT SERVICES,14-Jun-18,215489,Willowmere Home Care Agency Limited,660.68,Revenue,Residential Homes
DIRECT SOCIAL SERVICES,GF ADULT SERVICES,14-Jun-18,215489,Willowmere Home Care Agency Limited,584.08,Revenue,Residential Homes
DIRECT SOCIAL SERVICES,GF ADULT SERVICES,14-Jun-18,215489,Willowmere Home Care Agency Limited,619.08,Revenue,Residential Homes
DIRECT SOCIAL SERVICES,GF ADULT SERVICES,14-Jun-18,215489,Willowmere Home Care Agency Limited,667.86,Revenue,Residential Homes
DIRECT SOCIAL SERVICES,GF ADULT SERVICES,14-Jun-18,215489,Willowmere Home Care Agency Limited,695.68,Revenue,Residential Homes
DIRECT SOCIAL SERVICES,GF ADULT SERVICES,14-Jun-18,215489,Willowmere Home Care Agency Limited,572.36,Revenue,Residential Homes
DIRECT SOCIAL SERVICES,GF ADULT SERVICES,14-Jun-18,217909,Freeways Trust,2992,Revenue,Voluntary Organisations
DIRECT SOCIAL SERVICES,GF ADULT SERVICES,14-Jun-18,217909,HF Trust Limited,4463.2,Revenue,Voluntary Organisations
DIRECT SOCIAL SERVICES,GF ADULT SERVICES,14-Jun-18,217909,Vision 21,624.3,Revenue,Voluntary Organisations
DIRECT SOCIAL SERVICES,GF ADULT SERVICES,14-Jun-18,217909,Vision 21,874.02,Revenue,Voluntary Organisations
DIRECT SOCIAL SERVICES,GF ADULT SERVICES,14-Jun-18,217909,Vision 21,874.02,Revenue,Voluntary Organisations
DIRECT SOCIAL SERVICES,GF ADULT SERVICES,14-Jun-18,217909,Vision 21,582.68,Revenue,Voluntary Organisations
DIRECT SOCIAL SERVICES,GF ADULT SERVICES,15-Jun-18,215489,Susan Barrett t/a All Saints Domiciliary Care Agency,744.05,Revenue,agen
DIRECT SOCIAL SERVICES,GF ADULT SERVICES,15-Jun-18,215489,Susan Barrett t/a All Saints Domiciliary Care Agency,707,Revenue,agen
DIRECT SOCIAL SERVICES,GF ADULT SERVICES,15-Jun-18,215489,Susan Barrett t/a All Saints Domiciliary Care Agency,707.88,Revenue,agen
DIRECT SOCIAL SERVICES,GF ADULT SERVICES,15-Jun-18,215489,Susan Barrett t/a All Saints Domiciliary Care Agency,668.86,Revenue,agen
DIRECT SOCIAL SERVICES,GF ADULT SERVICES,15-Jun-18,215489,Susan Barrett t/a All Saints Domiciliary Care Agency,719.81,Revenue,agen
DIRECT SOCIAL SERVICES,GF ADULT SERVICES,15-Jun-18,216179,Susan Barrett t/a All Saints Domiciliary Care Agency,514.74,Revenue,agen
DIRECT LEARNING AND SKILLS,STRATEGY COMMUNITY LEARNING & RESOURCES,15-Jun-18,100114,FFT Education Limited,8436,Revenue,Companies
DIRECT LEARNING AND SKILLS,SCHOOLS DELEGATED,15-Jun-18,101004,A & R Contract Cleaning Specialist Limited,1558.72,Revenue,Companies
DIRECT LEARNING AND SKILLS,SCHOOLS DELEGATED,15-Jun-18,101004,Superstars School Services Limited,1592.88,Revenue,Companies
DIRECT LEARNING AND SKILLS,SCHOOLS DELEGATED,15-Jun-18,101007,Business Gas Limited / Electricity,-554.59,Revenue,Companies
DIRECT LEARNING AND SKILLS,SCHOOLS DELEGATED,15-Jun-18,101007,Business Gas Limited / Electricity,-516.23,Revenue,Companies
DIRECT LEARNING AND SKILLS,SCHOOLS DELEGATED,15-Jun-18,101202,EDF Energy Plc,539.55,Revenue,Companies
DIRECT LEARNING AND SKILLS,SCHOOLS DELEGATED,15-Jun-18,101202,Lockertek Limited,1636,Revenue,Companies
DIRECT LEARNING AND SKILLS,SCHOOLS DELEGATED,15-Jun-18,102593,Business Gas Limited / Electricity,2641.73,Revenue,Companies
DIRECT LEARNING AND SKILLS,SCHOOLS DELEGATED,15-Jun-18,102593,Business Gas Limited / Electricity,572.57,Revenue,Companies
DIRECT LEARNING AND SKILLS,ACHIEVEMENT FOR ALL,15-Jun-18,102636,Associated Community Training Limited,8465,Revenue,Companies
DIRECT LEARNING AND SKILLS,GF CATERING,15-Jun-18,154401,Supacleen Limited,950,Revenue,Companies
DIRECT SOCIAL SERVICES,GF ADULT SERVICES,15-Jun-18,215011,Infographics Limited,1017.4,Revenue,Companies
DIRECT SOCIAL SERVICES,GF CHILDREN SERVICES,15-Jun-18,260060,Foster Care Associates Limited,-2160,Revenue,Companies
DIRECT SOCIAL SERVICES,GF CHILDREN SERVICES,15-Jun-18,260060,Foster Care Associates Limited,-8100,Revenue,Companies
DIRECT ENVIRONMENT AND HOUSING,BUILDING SERVICES,15-Jun-18,301100,Datastox Limited,-840,Revenue,Companies
DIRECT ENVIRONMENT AND HOUSING,BUILDING SERVICES,15-Jun-18,305716,G.P.H.I.T (Integrated Services) Limited,11236.4,Revenue,Companies
DIRECT ENVIRONMENT AND HOUSING,GF ENV AND VISIBLE,15-Jun-18,325560,Centregreat Limited,34732.92,Revenue,Companies
DIRECT ENVIRONMENT AND HOUSING,GF ENV AND VISIBLE,15-Jun-18,325644,Centregreat Limited,23332.21,Revenue,Companies
DIRECT ENVIRONMENT AND HOUSING,REGENERATION & PLANNING,15-Jun-18,349605,Print Partnership Reprographics Limited,555.99,Revenue,Companies
DIRECT ENVIRONMENT AND HOUSING,REGENERATION & PLANNING,15-Jun-18,352718,Business Gas Limited / Electricity,1002.63,Revenue,Companies
DIRECT ENVIRONMENT AND HOUSING,REGENERATION & PLANNING,15-Jun-18,352730,Hexion UK Limited,3318.12,Revenue,Companies
DIRECT ENVIRONMENT AND HOUSING,REGULATORY SHARED SERVICES,15-Jun-18,403008,Barton Hyett Associates Limited,820,Revenue,Companies
DIRECT ENVIRONMENT AND HOUSING,GF HOUSING SERVICES,15-Jun-18,405100,L Mustoe Limited,762.24,Revenue,Companies
DIRECT ENVIRONMENT AND HOUSING,HOUSING,15-Jun-18,407118,Geraint John Planning Limited,1000,Revenue,Companies
DIRECT MANAGING DIRECTOR AND RESOURCES,GF RESOURCES,15-Jun-18,422120,Windhager UK Limited,625,Revenue,Companies
DIRECT MANAGING DIRECTOR AND RESOURCES,GF CORPORATE AND CUSTOMER SERVICES,15-Jun-18,440032,Mountain Tops Limited t/a Cresta Caterers,1198.5,Revenue,Companies
DIRECT MANAGING DIRECTOR AND RESOURCES,GF CORPORATE AND CUSTOMER SERVICES,15-Jun-18,440032,Mountain Tops Limited t/a Cresta Caterers,800,Revenue,Companies
DIRECT MANAGING DIRECTOR AND RESOURCES,GF GENERAL EXPENDITURE POLICY,15-Jun-18,471900,The Copyright Licensing Agency Limited,4921.72,Revenue,Companies
DIRECT LEARNING AND SKILLS,SCHOOLS NON DELEGATED,15-Jun-18,100404,Cardiff County Council,4907.9,Revenue,Other Local Authorites
DIRECT SOCIAL SERVICES,GF BUSINESS MANAGEMENT & INOVATION,15-Jun-18,239011,Cardiff County Council,5567.95,Revenue,Other Local Authorites
DIRECT SOCIAL SERVICES,REGIONAL ADOPTION SERVICE,15-Jun-18,260500,Rhondda Cynon Taff County Borough Council,3754,Revenue,Other Local Authorites
DIRECT SOCIAL SERVICES,REGIONAL ADOPTION SERVICE,15-Jun-18,260500,Rhondda Cynon Taff County Borough Council,667.5,Revenue,Other Local Authorites
DIRECT ENVIRONMENT AND HOUSING,BUILDING SERVICES,15-Jun-18,303000,Cardiff County Council,3187.85,Revenue,Other Local Authorites
DIRECT ENVIRONMENT AND HOUSING,GF PARKS AND GROUNDS,15-Jun-18,333220,Cardiff County Council,920.39,Revenue,Other Local Authorites
DIRECT ENVIRONMENT AND HOUSING,GF ENV AND VISIBLE,15-Jun-18,341220,Cardiff County Council,8801.12,Revenue,Other Local Authorites
DIRECT ENVIRONMENT AND HOUSING,REGENERATION & PLANNING,15-Jun-18,349702,Cardiff County Council,8788.38,Revenue,Other Local Authorites
DIRECT ENVIRONMENT AND HOUSING,VISIBLE SERVICES,15-Jun-18,360002,Cardiff County Council,586.95,Revenue,Other Local Authorites
DIRECT ENVIRONMENT AND HOUSING,REGULATORY SERVICES (MILES),15-Jun-18,402005,Cardiff County Council,1532.1,Revenue,Other Local Authorites
DIRECT ENVIRONMENT AND HOUSING,HOUSING,15-Jun-18,407100,Cardiff County Council,1034.94,Revenue,Other Local Authorites
DIRECT MANAGING DIRECTOR AND RESOURCES,GF RESOURCES,15-Jun-18,420201,Cardiff County Council,3149.95,Revenue,Other Local Authorites
DIRECT MANAGING DIRECTOR AND RESOURCES,GF GENERAL EXPENDITURE POLICY,15-Jun-18,471900,Cardiff County Council,13522.31,Revenue,Other Local Authorites
DIRECT LEARNING AND SKILLS,SCHOOLS DELEGATED,15-Jun-18,101233,PSC - Amanda Lane,1218,Revenue,Personal Service Companies
DIRECT LEARNING AND SKILLS,SCHOOLS DELEGATED,15-Jun-18,101233,PSC - Amanda Lane,-1125,Revenue,Personal Service Companies
DIRECT ENVIRONMENT AND HOUSING,GF HOUSING SERVICES,15-Jun-18,405100,Lyndon Mustoe,2943.42,Revenue,Professional Services
DIRECT LEARNING AND SKILLS,SCHOOLS DELEGATED,15-Jun-18,101202,Valley Education Services Limited,1017.3,Revenue,recy
DIRECT ENVIRONMENT AND HOUSING,HOUSING,15-Jun-18,407119,Hays Specialist Recruitment Limited,1013.33,Revenue,recy
DIRECT ENVIRONMENT AND HOUSING,HOUSING,15-Jun-18,407119,Hays Specialist Recruitment Limited,949.26,Revenue,recy
DIRECT ENVIRONMENT AND HOUSING,REGENERATION & PLANNING,15-Jun-18,354037,Ingrid Walker t/a Pyramid Stained Glass,1205,Revenue,Sole Traders
DIRECT SOCIAL SERVICES,GF ADULT SERVICES,18-Jun-18,215489,Susan Barrett t/a All Saints Domiciliary Care Agency,694.1,Revenue,agen
DIRECT SOCIAL SERVICES,GF ADULT SERVICES,18-Jun-18,215489,Susan Barrett t/a All Saints Domiciliary Care Agency,662.28,Revenue,agen
DIRECT SOCIAL SERVICES,GF ADULT SERVICES,18-Jun-18,215489,Susan Barrett t/a All Saints Domiciliary Care Agency,627.96,Revenue,agen
DIRECT SOCIAL SERVICES,GF ADULT SERVICES,18-Jun-18,215489,Susan Barrett t/a All Saints Domiciliary Care Agency,588.94,Revenue,agen
DIRECT SOCIAL SERVICES,GF ADULT SERVICES,18-Jun-18,215489,Susan Barrett t/a All Saints Domiciliary Care Agency,669.86,Revenue,agen
DIRECT SOCIAL SERVICES,GF ADULT SERVICES,18-Jun-18,218419,Crossroads in the Vale (EMI) Limited,26785.2,Revenue,agen
DIRECT LEARNING AND SKILLS,SCHOOLS DELEGATED,18-Jun-18,101007,Business Gas Limited / Electricity,528.72,Revenue,Companies
DIRECT LEARNING AND SKILLS,SCHOOLS DELEGATED,18-Jun-18,101007,EDF Energy Plc,599.46,Revenue,Companies
DIRECT LEARNING AND SKILLS,SCHOOLS DELEGATED,18-Jun-18,101007,EDF Energy Plc,510.85,Revenue,Companies
DIRECT LEARNING AND SKILLS,SCHOOLS DELEGATED,18-Jun-18,101013,Glen Cleaning Company Limited,1197.15,Revenue,Companies
DIRECT LEARNING AND SKILLS,SCHOOLS DELEGATED,18-Jun-18,101013,Xerox (UK) Limited,713.55,Revenue,Companies
DIRECT LEARNING AND SKILLS,SCHOOLS DELEGATED,18-Jun-18,101025,EDF Energy Plc,817,Revenue,Companies
DIRECT LEARNING AND SKILLS,SCHOOLS DELEGATED,18-Jun-18,101030,Academics Limited,561.76,Revenue,Companies
DIRECT LEARNING AND SKILLS,SCHOOLS DELEGATED,18-Jun-18,101030,EDF Energy Plc,564.88,Revenue,Companies
DIRECT LEARNING AND SKILLS,SCHOOLS DELEGATED,18-Jun-18,101031,EDF Energy Plc,654.37,Revenue,Companies
DIRECT LEARNING AND SKILLS,SCHOOLS DELEGATED,18-Jun-18,101032,EDF Energy Plc,819.77,Revenue,Companies
DIRECT LEARNING AND SKILLS,SCHOOLS DELEGATED,18-Jun-18,101047,EDF Energy Plc,596.42,Revenue,Companies
DIRECT LEARNING AND SKILLS,SCHOOLS DELEGATED,18-Jun-18,101063,The Assessment Foundation CIC,666,Revenue,Companies
DIRECT LEARNING AND SKILLS,SCHOOLS DELEGATED,18-Jun-18,101075,EDF Energy Plc,651.42,Revenue,Companies
DIRECT LEARNING AND SKILLS,SCHOOLS DELEGATED,18-Jun-18,101137,EDF Energy Plc,601.38,Revenue,Companies
DIRECT LEARNING AND SKILLS,SCHOOLS DELEGATED,18-Jun-18,101141,Pinit Building & Civil Engineering Limited,1654,Revenue,Companies
DIRECT LEARNING AND SKILLS,SCHOOLS DELEGATED,18-Jun-18,101171,Academics Limited,806.8,Revenue,Companies
DIRECT LEARNING AND SKILLS,SCHOOLS DELEGATED,18-Jun-18,101173,EDF Energy Plc,683.12,Revenue,Companies
DIRECT LEARNING AND SKILLS,SCHOOLS DELEGATED,18-Jun-18,101195,EDF Energy Plc,1132.45,Revenue,Companies
DIRECT LEARNING AND SKILLS,SCHOOLS DELEGATED,18-Jun-18,101213,EDF Energy Plc,568.88,Revenue,Companies
DIRECT LEARNING AND SKILLS,SCHOOLS DELEGATED,18-Jun-18,101216,Baby Splash Limited,810,Revenue,Companies
DIRECT LEARNING AND SKILLS,SCHOOLS DELEGATED,18-Jun-18,101216,EDF Energy Plc,678.8,Revenue,Companies
DIRECT LEARNING AND SKILLS,SCHOOLS DELEGATED,18-Jun-18,101229,Glen Cleaning Company Limited,2433.14,Revenue,Companies
DIRECT LEARNING AND SKILLS,SCHOOLS DELEGATED,18-Jun-18,101300,EDF Energy Plc,503.61,Revenue,Companies
DIRECT LEARNING AND SKILLS,SCHOOLS DELEGATED,18-Jun-18,101306,J & D Water Consultants Limited,1420,Revenue,Companies
DIRECT LEARNING AND SKILLS,SCHOOLS DELEGATED,18-Jun-18,101306,Legacy Leisure Limited,978.75,Revenue,Companies
DIRECT LEARNING AND SKILLS,SCHOOLS DELEGATED,18-Jun-18,101306,One Team Logic Limited,643,Revenue,Companies
DIRECT LEARNING AND SKILLS,SCHOOLS DELEGATED,18-Jun-18,101306,The Assessment Foundation CIC,798,Revenue,Companies
DIRECT LEARNING AND SKILLS,SCHOOLS DELEGATED,18-Jun-18,101308,EDF Energy Plc,1085.82,Revenue,Companies
DIRECT LEARNING AND SKILLS,SCHOOLS DELEGATED,18-Jun-18,101315,EDF Energy Plc,895.5,Revenue,Companies
DIRECT LEARNING AND SKILLS,SCHOOLS DELEGATED,18-Jun-18,101317,Ministry of Furniture Limited,810,Revenue,Companies
DIRECT LEARNING AND SKILLS,SCHOOLS DELEGATED,18-Jun-18,102593,Urban Recreation Limited,770,Revenue,Companies
DIRECT LEARNING AND SKILLS,ACHIEVEMENT FOR ALL,18-Jun-18,102632,Inspired Learners Limited,640,Revenue,Companies
DIRECT LEARNING AND SKILLS,ACHIEVEMENT FOR ALL,18-Jun-18,102636,Empowering Learning Limited,1660.38,Revenue,Companies
DIRECT LEARNING AND SKILLS,ACHIEVEMENT FOR ALL,18-Jun-18,102636,Media Academy Cardiff Limited,600,Revenue,Companies
DIRECT LEARNING AND SKILLS,ACHIEVEMENT FOR ALL,18-Jun-18,102636,Springfield Supplies & Projects Limited,1259.6,Revenue,Companies
DIRECT LEARNING AND SKILLS,ACHIEVEMENT FOR ALL,18-Jun-18,102652,Smooth Starts Plus Limited,1540,Revenue,Companies
DIRECT LEARNING AND SKILLS,ACHIEVEMENT FOR ALL,18-Jun-18,102652,Smooth Starts Plus Limited,1260,Revenue,Companies
DIRECT LEARNING AND SKILLS,SCHOOLS DELEGATED,18-Jun-18,104381,Atlantes Educational Services Limited,1050,Revenue,Companies
DIRECT LEARNING AND SKILLS,SCHOOLS DELEGATED,18-Jun-18,104385,Midshire Business Systems (Northern) Limited,529.34,Revenue,Companies
DIRECT LEARNING AND SKILLS,ACHIEVEMENT FOR ALL,18-Jun-18,130210,Chubb Fire & Security Limited,715.86,Revenue,Companies
DIRECT ENVIRONMENT AND HOUSING,REGENERATION & PLANNING,18-Jun-18,130511,Business Gas Limited / Electricity,-576.13,Revenue,Companies
DIRECT MANAGING DIRECTOR AND RESOURCES,GF HUMAN RESOURCES,18-Jun-18,140117,Partnerships In Care Limited T/A Care First,732.52,Revenue,Companies
DIRECT LEARNING AND SKILLS,GF CATERING,18-Jun-18,154401,Safewear Cardiff Limited,505.5,Revenue,Companies
DIRECT SOCIAL SERVICES,GF CHILDREN SERVICES,18-Jun-18,209151,AMS Sanderson Limited T/A AMS International,592,Revenue,Companies
DIRECT SOCIAL SERVICES,GF ADULT SERVICES,18-Jun-18,212731,Corona Energy Retail 4 Limited,669.16,Revenue,Companies
DIRECT SOCIAL SERVICES,GF ADULT SERVICES,18-Jun-18,212781,Corona Energy Retail 4 Limited,1100.6,Revenue,Companies
DIRECT SOCIAL SERVICES,GF ADULT SERVICES,18-Jun-18,212791,Corona Energy Retail 4 Limited,734.37,Revenue,Companies
DIRECT SOCIAL SERVICES,GF ADULT SERVICES,18-Jun-18,215025,Diverse Excellence Cymru,4292.5,Revenue,Companies
DIRECT SOCIAL SERVICES,GF ADULT SERVICES,18-Jun-18,215803,Corona Energy Retail 4 Limited,959.9,Revenue,Companies
DIRECT SOCIAL SERVICES,GF ADULT SERVICES,18-Jun-18,216731,CJ Contract Travel Services Limited,570,Revenue,Companies
DIRECT SOCIAL SERVICES,GF ADULT SERVICES,18-Jun-18,217541,Care Management Group Limited,34357.38,Revenue,Companies
DIRECT SOCIAL SERVICES,GF ADULT SERVICES,18-Jun-18,217541,Care Management Group Limited,94599.4,Revenue,Companies
DIRECT SOCIAL SERVICES,GF ADULT SERVICES,18-Jun-18,217909,Care Management Group Limited,928,Revenue,Companies
DIRECT SOCIAL SERVICES,GF ADULT SERVICES,18-Jun-18,217909,Care Management Group Limited,3183.6,Revenue,Companies
DIRECT SOCIAL SERVICES,GF ADULT SERVICES,18-Jun-18,217909,Valeplus (Cymru) & Valeplus Extra,877.28,Revenue,Companies
DIRECT SOCIAL SERVICES,GF CHILDREN SERVICES,18-Jun-18,260140,Midway Transitional Solutions Limited,2100,Revenue,Companies
DIRECT ENVIRONMENT AND HOUSING,GF PARKS AND GROUNDS,18-Jun-18,333013,The Firewood Company (UK) Limited T/A Esa Tree Care,2100,Revenue,Companies
DIRECT ENVIRONMENT AND HOUSING,REGENERATION & PLANNING,18-Jun-18,359457,Vale of Glamorgan Broadcasting (CIC) t/a Bro Radio,1500,Revenue,Companies
DIRECT ENVIRONMENT AND HOUSING,VISIBLE SERVICES,18-Jun-18,365784,Cycle Training Wales Limited,3500,Revenue,Companies
DIRECT ENVIRONMENT AND HOUSING,VISIBLE SERVICES,18-Jun-18,365786,Easyway Minicoach Hire Limited,7029.36,Revenue,Companies
DIRECT ENVIRONMENT AND HOUSING,HOUSING,18-Jun-18,407215,Corona Energy Retail 4 Limited,965.27,Revenue,Companies
DIRECT ENVIRONMENT AND HOUSING,HOUSING,18-Jun-18,407240,Corona Energy Retail 4 Limited,628.16,Revenue,Companies
DIRECT ENVIRONMENT AND HOUSING,HOUSING,18-Jun-18,407245,Corona Energy Retail 4 Limited,572.18,Revenue,Companies
DIRECT ENVIRONMENT AND HOUSING,HOUSING,18-Jun-18,407260,Corona Energy Retail 4 Limited,706.53,Revenue,Companies
DIRECT MANAGING DIRECTOR AND RESOURCES,GF RESOURCES,18-Jun-18,420217,G4s Cash Solutions (UK) Limited,889.26,Revenue,Companies
DIRECT MANAGING DIRECTOR AND RESOURCES,GF RESOURCES,18-Jun-18,421230,Phoenix Software Limited,338000,Revenue,Companies
DIRECT MANAGING DIRECTOR AND RESOURCES,GF RESOURCES,18-Jun-18,422100,Corona Energy Retail 4 Limited,1112.13,Revenue,Companies
DIRECT CAPITAL VISIBLE AND HOUSING SERVICES,CAPITAL HRA,18-Jun-18,842146,Curtins Consulting Limited,1800,Capital,Companies
DIRECT CAPITAL VISIBLE AND HOUSING SERVICES,CAPITAL HRA,18-Jun-18,842177,JR & AG Diack Limited,1240,Capital,Companies
DIRECT CAPITAL VISIBLE AND HOUSING SERVICES,CAPITAL HRA,18-Jun-18,842181,Integral Geotechnique (Wales) Limited,930,Capital,Companies
DIRECT CAPITAL VISIBLE AND HOUSING SERVICES,CAPITAL HRA,18-Jun-18,842181,Integral Geotechnique (Wales) Limited,850,Capital,Companies
DIRECT LEARNING AND SKILLS,SCHOOLS DELEGATED,18-Jun-18,101047,Carmarthenshire County Council,12127,Revenue,Other Local Authorites
DIRECT LEARNING AND SKILLS,SCHOOLS DELEGATED,18-Jun-18,102593,St Cyres Comprehensive School,1574.02,Revenue,Other Local Authorites
DIRECT LEARNING AND SKILLS,SCHOOLS DELEGATED,18-Jun-18,102593,St Cyres Comprehensive School,3738.74,Revenue,Other Local Authorites
DIRECT LEARNING AND SKILLS,SCHOOLS DELEGATED,18-Jun-18,102593,St Cyres Comprehensive School,52083.5,Revenue,Other Local Authorites
DIRECT LEARNING AND SKILLS,SCHOOLS DELEGATED,18-Jun-18,102593,St Cyres Comprehensive School,2622,Revenue,Other Local Authorites
DIRECT LEARNING AND SKILLS,ACHIEVEMENT FOR ALL,18-Jun-18,102652,University of South Wales,725,Revenue,Other Local Authorites
DIRECT ENVIRONMENT AND HOUSING,REGULATORY SHARED SERVICES,18-Jun-18,403211,Bridgend County Borough Council,2317.08,Revenue,Other Local Authorites
DIRECT ENVIRONMENT AND HOUSING,REGULATORY SHARED SERVICES,18-Jun-18,403230,Cardiff County Council,1313.54,Revenue,Other Local Authorites
DIRECT ENVIRONMENT AND HOUSING,REGENERATION & PLANNING,18-Jun-18,130511,Western Power Distribution LLP,576.13,Revenue,Partnerships
DIRECT SOCIAL SERVICES,GF CHILDREN SERVICES,18-Jun-18,260050,Dr Gerald McCarthy & Associates,501.12,Revenue,Partnerships
DIRECT LEARNING AND SKILLS,SCHOOLS DELEGATED,18-Jun-18,101047,Kevin John Webber,924.12,Revenue,Professional Services
DIRECT SOCIAL SERVICES,GF CHILDREN SERVICES,18-Jun-18,260160,Einir Ellis Tomos,739.5,Revenue,Professional Services
DIRECT SOCIAL SERVICES,GF CHILDREN SERVICES,18-Jun-18,260160,Einir Ellis Tomos,1800,Revenue,Professional Services
DIRECT MANAGING DIRECTOR AND RESOURCES,GF RESOURCES,18-Jun-18,420212,Owain James,1650,Revenue,Professional Services
DIRECT MANAGING DIRECTOR AND RESOURCES,GF RESOURCES,18-Jun-18,420212,Owain James,2000,Revenue,Professional Services
DIRECT LEARNING AND SKILLS,SCHOOLS DELEGATED,18-Jun-18,102593,South Wales Association of Special School Headteachers,800,Revenue,Public Bodies
DIRECT SOCIAL SERVICES,GF CHILDREN SERVICES,18-Jun-18,260160,Bladon Primary School,1900,Revenue,Public Bodies
DIRECT ENVIRONMENT AND HOUSING,REGULATORY SHARED SERVICES,18-Jun-18,403150,Disclosure and Barring Service,1408,Revenue,Public Bodies
DIRECT LEARNING AND SKILLS,SCHOOLS DELEGATED,18-Jun-18,100805,New Directions (Education) Limited,655,Revenue,recy
DIRECT LEARNING AND SKILLS,SCHOOLS DELEGATED,18-Jun-18,101013,New Directions (Education) Limited,725,Revenue,recy
DIRECT LEARNING AND SKILLS,SCHOOLS DELEGATED,18-Jun-18,101030,Teaching Personnel Limited,719.2,Revenue,recy
DIRECT LEARNING AND SKILLS,SCHOOLS DELEGATED,18-Jun-18,101030,Teaching Personnel Limited,575.36,Revenue,recy
DIRECT LEARNING AND SKILLS,SCHOOLS DELEGATED,18-Jun-18,101030,Teaching Personnel Limited,719.2,Revenue,recy
DIRECT LEARNING AND SKILLS,SCHOOLS DELEGATED,18-Jun-18,101030,Teaching Personnel Limited,719.2,Revenue,recy
DIRECT LEARNING AND SKILLS,SCHOOLS DELEGATED,18-Jun-18,101141,Apollo Teaching Services Limited,700,Revenue,recy
DIRECT LEARNING AND SKILLS,ACHIEVEMENT FOR ALL,18-Jun-18,102604,New Directions (Education) Limited,857.47,Revenue,recy
DIRECT LEARNING AND SKILLS,SCHOOLS NON DELEGATED,18-Jun-18,103412,Apollo Teaching Services Limited,520,Revenue,recy
DIRECT LEARNING AND SKILLS,SCHOOLS NON DELEGATED,18-Jun-18,103412,Apollo Teaching Services Limited,650,Revenue,recy
DIRECT LEARNING AND SKILLS,SCHOOLS NON DELEGATED,18-Jun-18,103412,New Directions (Education) Limited,665,Revenue,recy
DIRECT SOCIAL SERVICES,GF ADULT SERVICES,18-Jun-18,215489,April Complete Care Solutions Limited,584,Revenue,recy
DIRECT SOCIAL SERVICES,GF ADULT SERVICES,18-Jun-18,215489,April Complete Care Solutions Limited,548.1,Revenue,recy
DIRECT SOCIAL SERVICES,GF ADULT SERVICES,18-Jun-18,216179,April Complete Care Solutions Limited,605.48,Revenue,recy
DIRECT SOCIAL SERVICES,GF ADULT SERVICES,18-Jun-18,216179,April Complete Care Solutions Limited,922.66,Revenue,recy
DIRECT SOCIAL SERVICES,GF ADULT SERVICES,18-Jun-18,217909,April Complete Care Solutions Limited,770.38,Revenue,recy
DIRECT ENVIRONMENT AND HOUSING,HOUSING,18-Jun-18,407119,Building Recruitment Company Limited,1138.86,Revenue,recy
DIRECT ENVIRONMENT AND HOUSING,HOUSING,18-Jun-18,407119,Hays Specialist Recruitment Limited,1270.97,Revenue,recy
DIRECT ENVIRONMENT AND HOUSING,HOUSING,18-Jun-18,407119,Hays Specialist Recruitment Limited,1270.96,Revenue,recy
DIRECT ENVIRONMENT AND HOUSING,HOUSING,18-Jun-18,407119,Hays Specialist Recruitment Limited,626.51,Revenue,recy
DIRECT SOCIAL SERVICES,GF CHILDREN SERVICES,18-Jun-18,209151,Hebron Hall Limited,624,Revenue,Residential Homes
DIRECT SOCIAL SERVICES,GF ADULT SERVICES,18-Jun-18,217909,Crosshands Care Limited,6181.32,Revenue,Residential Homes
DIRECT SOCIAL SERVICES,GF ADULT SERVICES,18-Jun-18,217909,Crosshands Care Limited,2160,Revenue,Residential Homes
DIRECT SOCIAL SERVICES,GF ADULT SERVICES,18-Jun-18,217909,Crosshands Care Limited,4808.08,Revenue,Residential Homes
DIRECT SOCIAL SERVICES,GF ADULT SERVICES,18-Jun-18,217909,Crosshands Care Limited,5014.12,Revenue,Residential Homes
DIRECT SOCIAL SERVICES,GF ADULT SERVICES,18-Jun-18,217909,Crosshands Care Limited,3360,Revenue,Residential Homes
DIRECT SOCIAL SERVICES,GF ADULT SERVICES,18-Jun-18,217909,Crosshands Care Limited,4008,Revenue,Residential Homes
DIRECT SOCIAL SERVICES,GF ADULT SERVICES,18-Jun-18,217909,Crosshands Care Limited,4514.72,Revenue,Residential Homes
DIRECT LEARNING AND SKILLS,SCHOOLS DELEGATED,18-Jun-18,101047,Nigel Martlew t/a Caring Coaches,850,Revenue,Sole Traders
DIRECT LEARNING AND SKILLS,SCHOOLS DELEGATED,18-Jun-18,101300,Owen Whittendale t/a Owens Tree & Garden Services,770,Revenue,Sole Traders
DIRECT MANAGING DIRECTOR AND RESOURCES,GF RESOURCES,18-Jun-18,422130,Elwyn J Kerslake t/a Woodland Electrical,624.5,Revenue,Sole Traders
DIRECT LEARNING AND SKILLS,ACHIEVEMENT FOR ALL,18-Jun-18,102636,Barry YMCA Hub,648,Revenue,Voluntary Organisations
DIRECT LEARNING AND SKILLS,ACHIEVEMENT FOR ALL,18-Jun-18,190055,Bethel Cylch Meithrin,1000,Revenue,Voluntary Organisations
DIRECT SOCIAL SERVICES,GF CHILDREN SERVICES,18-Jun-18,209165,The National Youth Advocacy Service,91290.81,Revenue,Voluntary Organisations
DIRECT SOCIAL SERVICES,GF ADULT SERVICES,18-Jun-18,215025,Age Concern Cardiff & Vale of Glamorgan t/a Age Connects Cardiff and the Vale,16434,Revenue,Voluntary Organisations
DIRECT SOCIAL SERVICES,GF ADULT SERVICES,18-Jun-18,215025,Age Concern Cardiff & Vale of Glamorgan t/a Age Connects Cardiff and the Vale,6732,Revenue,Voluntary Organisations
DIRECT SOCIAL SERVICES,GF ADULT SERVICES,18-Jun-18,215025,Age Concern Cardiff & Vale of Glamorgan t/a Age Connects Cardiff and the Vale,19352.25,Revenue,Voluntary Organisations
DIRECT SOCIAL SERVICES,GF CHILDREN SERVICES,18-Jun-18,260090,Barnardos Cymru,28172.06,Revenue,Voluntary Organisations
DIRECT SOCIAL SERVICES,GF CHILDREN SERVICES,18-Jun-18,260130,The Salvation Army Social Work Trust t/a Northlands Salvation Army,2090.88,Revenue,Voluntary Organisations
DIRECT SOCIAL SERVICES,GF CHILDREN SERVICES,18-Jun-18,260130,The Salvation Army Social Work Trust t/a Northlands Salvation Army,15274.8,Revenue,Voluntary Organisations
DIRECT SOCIAL SERVICES,GF ADULT SERVICES,19-Jun-18,215489,Cardiff & Vale Caring 4 U Limited T/A Caremark Cardiff & The Vale of Glamorgan,735.53,Revenue,agen
DIRECT SOCIAL SERVICES,GF ADULT SERVICES,19-Jun-18,215489,Cardiff & Vale Caring 4 U Limited T/A Caremark Cardiff & The Vale of Glamorgan,542.5,Revenue,agen
DIRECT SOCIAL SERVICES,GF ADULT SERVICES,19-Jun-18,215489,Cardiff & Vale Caring 4 U Limited T/A Caremark Cardiff & The Vale of Glamorgan,735.56,Revenue,agen
DIRECT SOCIAL SERVICES,GF ADULT SERVICES,19-Jun-18,215489,Cardiff & Vale Caring 4 U Limited T/A Caremark Cardiff & The Vale of Glamorgan,742.62,Revenue,agen
DIRECT SOCIAL SERVICES,GF ADULT SERVICES,19-Jun-18,215489,Cardiff & Vale Caring 4 U Limited T/A Caremark Cardiff & The Vale of Glamorgan,500.38,Revenue,agen
DIRECT SOCIAL SERVICES,GF ADULT SERVICES,19-Jun-18,215489,Caring Companions Limited,750.68,Revenue,agen
DIRECT SOCIAL SERVICES,GF ADULT SERVICES,19-Jun-18,215489,Caring Companions Limited,571.55,Revenue,agen
DIRECT SOCIAL SERVICES,GF ADULT SERVICES,19-Jun-18,215489,Caring Companions Limited,544.18,Revenue,agen
DIRECT SOCIAL SERVICES,GF ADULT SERVICES,19-Jun-18,215489,Caring Companions Limited,523.6,Revenue,agen
DIRECT SOCIAL SERVICES,GF ADULT SERVICES,19-Jun-18,215489,Caring Companions Limited,660.94,Revenue,agen
DIRECT SOCIAL SERVICES,GF ADULT SERVICES,19-Jun-18,215489,Caring Companions Limited,543.1,Revenue,agen
DIRECT SOCIAL SERVICES,GF ADULT SERVICES,19-Jun-18,215489,Caring Companions Limited,1090,Revenue,agen
DIRECT SOCIAL SERVICES,GF ADULT SERVICES,19-Jun-18,215489,Caring Companions Limited,545,Revenue,agen
DIRECT SOCIAL SERVICES,GF ADULT SERVICES,19-Jun-18,215489,Cherish Cymru Limited,3400,Revenue,agen
DIRECT SOCIAL SERVICES,GF ADULT SERVICES,19-Jun-18,215489,Parkrow Care Limited,600.48,Revenue,agen
DIRECT SOCIAL SERVICES,GF ADULT SERVICES,19-Jun-18,216179,Heidi Christoforato t/a Churchfields Home Care,543.59,Revenue,agen
DIRECT SOCIAL SERVICES,GF ADULT SERVICES,19-Jun-18,217909,Caring Companions Limited,627.2,Revenue,agen
DIRECT SOCIAL SERVICES,GF ADULT SERVICES,19-Jun-18,218419,Parkrow Care Limited,625.72,Revenue,agen
DIRECT LEARNING AND SKILLS,SCHOOLS DELEGATED,19-Jun-18,101006,ADT Fire and Security Plc,622.68,Revenue,Companies
DIRECT LEARNING AND SKILLS,SCHOOLS DELEGATED,19-Jun-18,101006,EDF Energy Plc,656.73,Revenue,Companies
DIRECT LEARNING AND SKILLS,SCHOOLS DELEGATED,19-Jun-18,101006,Electratest (UK) Limited,586.5,Revenue,Companies
DIRECT LEARNING AND SKILLS,SCHOOLS DELEGATED,19-Jun-18,101006,Rentokil Initial UK Limited,3130.3,Revenue,Companies
DIRECT LEARNING AND SKILLS,SCHOOLS DELEGATED,19-Jun-18,101006,The Learning Partnership (Wales) Limited,1300,Revenue,Companies
DIRECT LEARNING AND SKILLS,SCHOOLS DELEGATED,19-Jun-18,101006,WWS 1987 Limited T/A Welsh Window Systems,625,Revenue,Companies
DIRECT LEARNING AND SKILLS,SCHOOLS DELEGATED,19-Jun-18,101047,Ricoh UK Limited,1772.13,Revenue,Companies
DIRECT LEARNING AND SKILLS,SCHOOLS DELEGATED,19-Jun-18,101063,A & R Contract Cleaning Specialist Limited,2134.43,Revenue,Companies
DIRECT LEARNING AND SKILLS,SCHOOLS DELEGATED,19-Jun-18,101063,Andrell Education Limited,995,Revenue,Companies
DIRECT LEARNING AND SKILLS,SCHOOLS DELEGATED,19-Jun-18,101063,LDL Engineering Site Services Limited,1510,Revenue,Companies
DIRECT LEARNING AND SKILLS,SCHOOLS DELEGATED,19-Jun-18,101095,Rentokil Initial UK Limited,1011.11,Revenue,Companies
DIRECT LEARNING AND SKILLS,SCHOOLS DELEGATED,19-Jun-18,101095,Watts Coaches Limited,1725,Revenue,Companies
DIRECT LEARNING AND SKILLS,SCHOOLS DELEGATED,19-Jun-18,101110,Globebrow Limited t/a Manor Adventure,3108,Revenue,Companies
DIRECT LEARNING AND SKILLS,SCHOOLS DELEGATED,19-Jun-18,101300,Toshiba TEC UK Imaging Systems Limited,1264.47,Revenue,Companies
DIRECT LEARNING AND SKILLS,SCHOOLS DELEGATED,19-Jun-18,101308,Globebrow Limited t/a Manor Adventure,1050,Revenue,Companies
DIRECT LEARNING AND SKILLS,SCHOOLS DELEGATED,19-Jun-18,101315,The Assessment Foundation CIC,1116,Revenue,Companies
DIRECT LEARNING AND SKILLS,SCHOOLS DELEGATED,19-Jun-18,101315,The Learning Partnership (Wales) Limited,801.3,Revenue,Companies
DIRECT LEARNING AND SKILLS,SCHOOLS DELEGATED,19-Jun-18,102593,Academia Limited,3738.5,Revenue,Companies
DIRECT LEARNING AND SKILLS,STRATEGY COMMUNITY LEARNING & RESOURCES,19-Jun-18,130030,Edson Print (Services) Limited,1292,Revenue,Companies
DIRECT SOCIAL SERVICES,GF ADULT SERVICES,19-Jun-18,215489,Cardiff Homecare Limited,708.18,Revenue,Companies
DIRECT SOCIAL SERVICES,GF ADULT SERVICES,19-Jun-18,215489,Cardiff Homecare Limited,708.18,Revenue,Companies
DIRECT SOCIAL SERVICES,GF ADULT SERVICES,19-Jun-18,215489,Cardiff Homecare Limited,766.92,Revenue,Companies
DIRECT SOCIAL SERVICES,GF ADULT SERVICES,19-Jun-18,215489,Grangelodge Residential Home Limited t/a Grangelodge,513.66,Revenue,Companies
DIRECT SOCIAL SERVICES,GF ADULT SERVICES,19-Jun-18,215489,Grangelodge Residential Home Limited t/a Grangelodge,2332.18,Revenue,Companies
DIRECT SOCIAL SERVICES,GF ADULT SERVICES,19-Jun-18,215489,Grangelodge Residential Home Limited t/a Grangelodge,653.01,Revenue,Companies
DIRECT SOCIAL SERVICES,GF ADULT SERVICES,19-Jun-18,215489,Pobl Group Limited T/A Reach Supported Living,4768,Revenue,Companies
DIRECT SOCIAL SERVICES,GF ADULT SERVICES,19-Jun-18,215489,Pobl Group Limited T/A Reach Supported Living,773.5,Revenue,Companies
DIRECT SOCIAL SERVICES,GF ADULT SERVICES,19-Jun-18,215489,Pobl Group Limited T/A Reach Supported Living,773.5,Revenue,Companies
DIRECT SOCIAL SERVICES,GF ADULT SERVICES,19-Jun-18,215489,Pobl Group Limited T/A Reach Supported Living,773.5,Revenue,Companies
DIRECT SOCIAL SERVICES,GF ADULT SERVICES,19-Jun-18,215489,Pobl Group Limited T/A Reach Supported Living,773.5,Revenue,Companies
DIRECT SOCIAL SERVICES,GF ADULT SERVICES,19-Jun-18,215489,Pobl Group Limited T/A Reach Supported Living,773.5,Revenue,Companies
DIRECT SOCIAL SERVICES,GF ADULT SERVICES,19-Jun-18,217909,Consensus Support Services Limited t/a Ty Machen,2163.85,Revenue,Companies
DIRECT SOCIAL SERVICES,GF ADULT SERVICES,19-Jun-18,218419,Cardiff Homecare Limited,589.4,Revenue,Companies
DIRECT SOCIAL SERVICES,GF ADULT SERVICES,19-Jun-18,218419,Cardiff Homecare Limited,590.24,Revenue,Companies
DIRECT ENVIRONMENT AND HOUSING,VEHICLES,19-Jun-18,319010,Fleetwheel Limited,645,Revenue,Companies
DIRECT ENVIRONMENT AND HOUSING,GF PARKS AND GROUNDS,19-Jun-18,333003,Dwr Cymru Cyf,690.87,Revenue,Companies
DIRECT ENVIRONMENT AND HOUSING,GF PARKS AND GROUNDS,19-Jun-18,333510,Ace Site Services (UK) Limited,2600,Revenue,Companies
DIRECT ENVIRONMENT AND HOUSING,GF ENV AND VISIBLE,19-Jun-18,341120,Dwr Cymru Cyf,579.96,Revenue,Companies
DIRECT ENVIRONMENT AND HOUSING,REGENERATION & PLANNING,19-Jun-18,356020,The Abbey Cleaning Services Limited,572.01,Revenue,Companies
DIRECT MANAGING DIRECTOR AND RESOURCES,GF RESOURCES,19-Jun-18,421230,Tugbury Electrical Services Limited,985,Revenue,Companies
DIRECT MANAGING DIRECTOR AND RESOURCES,GF RESOURCES,19-Jun-18,422100,Alpine Land Surveyors Limited,3375,Revenue,Companies
DIRECT LEARNING AND SKILLS,SCHOOLS DELEGATED,19-Jun-18,101308,Yorkshire Purchasing Organisation,932.59,Revenue,Other Local Authorites
DIRECT ENVIRONMENT AND HOUSING,BUILDING SERVICES,19-Jun-18,301051,Cardiff County Council,11779,Revenue,Other Local Authorites
DIRECT CAPITAL VISIBLE AND HOUSING SERVICES,CAPITAL HIGHWAYS,19-Jun-18,831529,Welsh Government,45057.88,Capital,Public Bodies
DIRECT LEARNING AND SKILLS,SCHOOLS DELEGATED,19-Jun-18,101305,TeacherActive Limited,2970,Revenue,recy
DIRECT MANAGING DIRECTOR AND RESOURCES,GF RESOURCES,19-Jun-18,422160,Anderselite Limited,837.5,Revenue,recy
DIRECT MANAGING DIRECTOR AND RESOURCES,GF RESOURCES,19-Jun-18,422160,Hays Specialist Recruitment Limited,946.05,Revenue,recy
DIRECT SOCIAL SERVICES,GF ADULT SERVICES,19-Jun-18,215486,Springbank Care Home Limited T/A Springbank Nursing Home,2544.39,Revenue,Residential Homes
DIRECT SOCIAL SERVICES,GF ADULT SERVICES,19-Jun-18,215489,Baltimore Care Limited,516.38,Revenue,Residential Homes
DIRECT SOCIAL SERVICES,GF ADULT SERVICES,19-Jun-18,215489,Baltimore Care Limited,516.38,Revenue,Residential Homes
DIRECT SOCIAL SERVICES,GF ADULT SERVICES,19-Jun-18,215489,Baltimore Care Limited,526.38,Revenue,Residential Homes
DIRECT SOCIAL SERVICES,GF ADULT SERVICES,19-Jun-18,215489,Bellavista Care (Cardiff) Limited T/A Bellavista Nursing Home Cardiff,506.04,Revenue,Residential Homes
DIRECT SOCIAL SERVICES,GF ADULT SERVICES,19-Jun-18,215489,Bellavista Nursing Homes (Wales) Limited t/a Bellavista Care Home,645.84,Revenue,Residential Homes
DIRECT SOCIAL SERVICES,GF ADULT SERVICES,19-Jun-18,215489,Broadway Care Centre Limited T/A Hazelhurst Nursing Home,516.38,Revenue,Residential Homes
DIRECT SOCIAL SERVICES,GF ADULT SERVICES,19-Jun-18,215489,Broadway Care Centre Limited T/A Hazelhurst Nursing Home,538.41,Revenue,Residential Homes
DIRECT SOCIAL SERVICES,GF ADULT SERVICES,19-Jun-18,215489,Broadway Care Centre Limited T/A Hazelhurst Nursing Home,556.95,Revenue,Residential Homes
DIRECT SOCIAL SERVICES,GF ADULT SERVICES,19-Jun-18,215489,Duffryn Ffrwd Manor Limited,549.49,Revenue,Residential Homes
DIRECT SOCIAL SERVICES,GF ADULT SERVICES,19-Jun-18,215489,Forge Care Homes Limited t/a The Forge Care Centre,925,Revenue,Residential Homes
DIRECT SOCIAL SERVICES,GF ADULT SERVICES,19-Jun-18,215489,Forge Care Homes Limited t/a The Forge Care Centre,671.32,Revenue,Residential Homes
DIRECT SOCIAL SERVICES,GF ADULT SERVICES,19-Jun-18,215489,Glamorgan Care Limited t/a Danygraig House,11028,Revenue,Residential Homes
DIRECT SOCIAL SERVICES,GF ADULT SERVICES,19-Jun-18,215489,Glamorgan Care Limited t/a Danygraig House,666,Revenue,Residential Homes
DIRECT SOCIAL SERVICES,GF ADULT SERVICES,19-Jun-18,215489,Harrison Care Enterprises Barry Limited t/a Island View,516.38,Revenue,Residential Homes
DIRECT SOCIAL SERVICES,GF ADULT SERVICES,19-Jun-18,215489,June Zehetmayr t/a Tower Hill Residential Home,538.12,Revenue,Residential Homes
DIRECT SOCIAL SERVICES,GF ADULT SERVICES,19-Jun-18,215489,Lakeside Homes Limited T/A Lakeside House,518.82,Revenue,Residential Homes
DIRECT SOCIAL SERVICES,GF ADULT SERVICES,19-Jun-18,215489,Llangoedmor Properties Limited T/A Parkside Residential Home,516.38,Revenue,Residential Homes
DIRECT SOCIAL SERVICES,GF ADULT SERVICES,19-Jun-18,215489,Llangoedmor Properties Limited T/A Parkside Residential Home,517.8,Revenue,Residential Homes
DIRECT SOCIAL SERVICES,GF ADULT SERVICES,19-Jun-18,215489,Llangoedmor Properties Limited T/A Parkside Residential Home,502.23,Revenue,Residential Homes
DIRECT SOCIAL SERVICES,GF ADULT SERVICES,19-Jun-18,215489,Llangoedmor Properties Limited T/A Parkside Residential Home,533.5,Revenue,Residential Homes
DIRECT SOCIAL SERVICES,GF ADULT SERVICES,19-Jun-18,215489,MHA Care Group t/a Morel Court,531.09,Revenue,Residential Homes
DIRECT SOCIAL SERVICES,GF ADULT SERVICES,19-Jun-18,215489,MHA Care Group t/a Ty Gwyn Private Nursing Home,599.54,Revenue,Residential Homes
DIRECT SOCIAL SERVICES,GF ADULT SERVICES,19-Jun-18,215489,MHA Care Group t/a Ty Gwyn Private Nursing Home,552.58,Revenue,Residential Homes
DIRECT SOCIAL SERVICES,GF ADULT SERVICES,19-Jun-18,215489,Middlepatch Limited T/A College Fields Nursing Home,574.12,Revenue,Residential Homes
DIRECT SOCIAL SERVICES,GF ADULT SERVICES,19-Jun-18,215489,Middlepatch Limited T/A College Fields Nursing Home,590.99,Revenue,Residential Homes
DIRECT SOCIAL SERVICES,GF ADULT SERVICES,19-Jun-18,215489,Middlepatch Limited T/A College Fields Nursing Home,572.59,Revenue,Residential Homes
DIRECT SOCIAL SERVICES,GF ADULT SERVICES,19-Jun-18,215489,Middlepatch Limited T/A College Fields Nursing Home,576.54,Revenue,Residential Homes
DIRECT SOCIAL SERVICES,GF ADULT SERVICES,19-Jun-18,215489,Middlepatch Limited T/A College Fields Nursing Home,514.35,Revenue,Residential Homes
DIRECT SOCIAL SERVICES,GF ADULT SERVICES,19-Jun-18,215489,Middlepatch Limited T/A College Fields Nursing Home,567.84,Revenue,Residential Homes
DIRECT SOCIAL SERVICES,GF ADULT SERVICES,19-Jun-18,215489,Middlepatch Limited T/A College Fields Nursing Home,612.02,Revenue,Residential Homes
DIRECT SOCIAL SERVICES,GF ADULT SERVICES,19-Jun-18,215489,Middlepatch Limited T/A College Fields Nursing Home,512.87,Revenue,Residential Homes
DIRECT SOCIAL SERVICES,GF ADULT SERVICES,19-Jun-18,215489,Middlepatch Limited T/A College Fields Nursing Home,614.52,Revenue,Residential Homes
DIRECT SOCIAL SERVICES,GF ADULT SERVICES,19-Jun-18,215489,Middlepatch Limited T/A College Fields Nursing Home,559.95,Revenue,Residential Homes
DIRECT SOCIAL SERVICES,GF ADULT SERVICES,19-Jun-18,215489,Middlepatch Limited T/A College Fields Nursing Home,567.84,Revenue,Residential Homes
DIRECT SOCIAL SERVICES,GF ADULT SERVICES,19-Jun-18,215489,Middlepatch Limited T/A College Fields Nursing Home,589.85,Revenue,Residential Homes
DIRECT SOCIAL SERVICES,GF ADULT SERVICES,19-Jun-18,215489,Northcote Developments Limited,508.15,Revenue,Residential Homes
DIRECT SOCIAL SERVICES,GF ADULT SERVICES,19-Jun-18,215489,Northcote Developments Limited,515.73,Revenue,Residential Homes
DIRECT SOCIAL SERVICES,GF ADULT SERVICES,19-Jun-18,215489,Oakville Care Limited t/a Romilly Nursing Home,900,Revenue,Residential Homes
DIRECT SOCIAL SERVICES,GF ADULT SERVICES,19-Jun-18,215489,Springbank Care Home Limited T/A Springbank Nursing Home,567.44,Revenue,Residential Homes
DIRECT SOCIAL SERVICES,GF ADULT SERVICES,19-Jun-18,215489,Springbank Care Home Limited T/A Springbank Nursing Home,563.34,Revenue,Residential Homes
DIRECT SOCIAL SERVICES,GF ADULT SERVICES,19-Jun-18,215489,Springbank Care Home Limited T/A Springbank Nursing Home,612.02,Revenue,Residential Homes
DIRECT SOCIAL SERVICES,GF ADULT SERVICES,19-Jun-18,215489,Springbank Care Home Limited T/A Springbank Nursing Home,575.79,Revenue,Residential Homes
DIRECT SOCIAL SERVICES,GF ADULT SERVICES,19-Jun-18,215489,Springbank Care Home Limited T/A Springbank Nursing Home,4352.6,Revenue,Residential Homes
DIRECT SOCIAL SERVICES,GF ADULT SERVICES,19-Jun-18,215489,Springbank Care Home Limited T/A Springbank Nursing Home,626.5,Revenue,Residential Homes
DIRECT SOCIAL SERVICES,GF ADULT SERVICES,19-Jun-18,215489,The Manor House St Hilary Limited T/A Milsom House,642.99,Revenue,Residential Homes
DIRECT SOCIAL SERVICES,GF ADULT SERVICES,19-Jun-18,215489,The Manor House St Hilary Limited T/A Milsom House,504.17,Revenue,Residential Homes
DIRECT SOCIAL SERVICES,GF ADULT SERVICES,19-Jun-18,215489,The Manor House St Hilary Limited T/A Milsom House,1559.94,Revenue,Residential Homes
DIRECT SOCIAL SERVICES,GF ADULT SERVICES,19-Jun-18,215489,Waverley Care Centre Limited,500.74,Revenue,Residential Homes
DIRECT SOCIAL SERVICES,GF ADULT SERVICES,19-Jun-18,215489,Waverley Care Centre Limited,585.1,Revenue,Residential Homes
DIRECT SOCIAL SERVICES,GF ADULT SERVICES,19-Jun-18,215489,Waverley Care Centre Limited,675.33,Revenue,Residential Homes
DIRECT SOCIAL SERVICES,GF ADULT SERVICES,19-Jun-18,215489,Waverley Care Centre Limited,519.4,Revenue,Residential Homes
DIRECT SOCIAL SERVICES,GF ADULT SERVICES,19-Jun-18,215489,Waverley Care Centre Limited,596.49,Revenue,Residential Homes
DIRECT SOCIAL SERVICES,GF ADULT SERVICES,19-Jun-18,216179,Accomplish Group Limited t/a Cedar House,1380.73,Revenue,Residential Homes
DIRECT SOCIAL SERVICES,GF ADULT SERVICES,19-Jun-18,216179,Amethyst Healthcare Limited t/a Hillstone House,1770.23,Revenue,Residential Homes
DIRECT SOCIAL SERVICES,GF ADULT SERVICES,19-Jun-18,216179,Bellavista Nursing Homes (Wales) Limited t/a Bellavista Care Home,552.23,Revenue,Residential Homes
DIRECT SOCIAL SERVICES,GF ADULT SERVICES,19-Jun-18,216179,Care 4 U (Neath) Limited,1754.28,Revenue,Residential Homes
DIRECT SOCIAL SERVICES,GF ADULT SERVICES,19-Jun-18,216179,Crusader Medical Care Limited T/A St Saviours Nursing Home,551.35,Revenue,Residential Homes
DIRECT SOCIAL SERVICES,GF ADULT SERVICES,19-Jun-18,216179,Leonard Cheshire Disability,970.38,Revenue,Residential Homes
DIRECT SOCIAL SERVICES,GF ADULT SERVICES,19-Jun-18,216179,Middlepatch Limited T/A College Fields Nursing Home,621.55,Revenue,Residential Homes
DIRECT SOCIAL SERVICES,GF ADULT SERVICES,19-Jun-18,216179,Middlepatch Limited T/A College Fields Nursing Home,618.34,Revenue,Residential Homes
DIRECT SOCIAL SERVICES,GF ADULT SERVICES,19-Jun-18,216179,Springbank Care Home Limited T/A Springbank Nursing Home,572.38,Revenue,Residential Homes
DIRECT SOCIAL SERVICES,GF ADULT SERVICES,19-Jun-18,216179,Springbank Care Home Limited T/A Springbank Nursing Home,740,Revenue,Residential Homes
DIRECT SOCIAL SERVICES,GF ADULT SERVICES,19-Jun-18,216179,Valebrook Care Homes Limited,1851.35,Revenue,Residential Homes
DIRECT SOCIAL SERVICES,GF ADULT SERVICES,19-Jun-18,216179,Voyage 1 Limited t/a Brook Lodge,2528.8,Revenue,Residential Homes
DIRECT SOCIAL SERVICES,GF ADULT SERVICES,19-Jun-18,216179,Voyage 1 Limited t/a Falcons Rest & Poachers Cottage,1729.64,Revenue,Residential Homes
DIRECT SOCIAL SERVICES,GF ADULT SERVICES,19-Jun-18,217909,Accomplish Group Limited,1821.48,Revenue,Residential Homes
DIRECT SOCIAL SERVICES,GF ADULT SERVICES,19-Jun-18,217909,Accomplish Group Limited,2146.47,Revenue,Residential Homes
DIRECT SOCIAL SERVICES,GF ADULT SERVICES,19-Jun-18,217909,Accomplish Group Limited t/a Cedar House,1582.7,Revenue,Residential Homes
DIRECT SOCIAL SERVICES,GF ADULT SERVICES,19-Jun-18,217909,Amethyst Healthcare Limited t/a Hillstone House,1680.86,Revenue,Residential Homes
DIRECT SOCIAL SERVICES,GF ADULT SERVICES,19-Jun-18,217909,Amethyst Healthcare Limited t/a Hillstone House,1462.13,Revenue,Residential Homes
DIRECT SOCIAL SERVICES,GF ADULT SERVICES,19-Jun-18,217909,Glasallt Fawr Camphill Centre,995.72,Revenue,Residential Homes
DIRECT SOCIAL SERVICES,GF ADULT SERVICES,19-Jun-18,217909,Glasallt Fawr Camphill Centre,1544.9,Revenue,Residential Homes
DIRECT SOCIAL SERVICES,GF ADULT SERVICES,19-Jun-18,217909,Heatherleigh Care Limited t/a 106 Splott Road,1563.71,Revenue,Residential Homes
DIRECT SOCIAL SERVICES,GF ADULT SERVICES,19-Jun-18,217909,Heatherleigh Care Limited t/a 106 Splott Road,1223.14,Revenue,Residential Homes
DIRECT SOCIAL SERVICES,GF ADULT SERVICES,19-Jun-18,217909,Llysywaun Limited t/a Bayview Lodge Nursing Home,1724.9,Revenue,Residential Homes
DIRECT SOCIAL SERVICES,GF ADULT SERVICES,19-Jun-18,217909,Ocean Community Services Limited t/a Westminster Court Care Home,1116.27,Revenue,Residential Homes
DIRECT SOCIAL SERVICES,GF ADULT SERVICES,19-Jun-18,217909,The Cedars Care Services Limited T/A Ashgrove Care Home,2112.35,Revenue,Residential Homes
DIRECT SOCIAL SERVICES,GF ADULT SERVICES,19-Jun-18,217909,The Cedars Care Services Limited T/A Ashgrove Care Home,995.35,Revenue,Residential Homes
DIRECT SOCIAL SERVICES,GF ADULT SERVICES,19-Jun-18,217909,The Cedars Care Services Limited T/A Oaklands,1030.35,Revenue,Residential Homes
DIRECT SOCIAL SERVICES,GF ADULT SERVICES,19-Jun-18,217909,The Cedars Care Services Limited t/a Sycamore House,2026.35,Revenue,Residential Homes
DIRECT SOCIAL SERVICES,GF ADULT SERVICES,19-Jun-18,217909,The Cedars Care Services Limited t/a Sycamore House,1809.35,Revenue,Residential Homes
DIRECT SOCIAL SERVICES,GF ADULT SERVICES,19-Jun-18,217909,The Cedars Care Services Limited t/a The Cedars,1576.06,Revenue,Residential Homes
DIRECT SOCIAL SERVICES,GF ADULT SERVICES,19-Jun-18,217909,The Cedars Care Services Limited t/a The Cedars,1365.05,Revenue,Residential Homes
DIRECT SOCIAL SERVICES,GF ADULT SERVICES,19-Jun-18,217909,The Cedars Care Services Limited t/a The Hollies,1864.35,Revenue,Residential Homes
DIRECT SOCIAL SERVICES,GF ADULT SERVICES,19-Jun-18,217909,Vale Phoenix Limited,1079.73,Revenue,Residential Homes
DIRECT SOCIAL SERVICES,GF ADULT SERVICES,19-Jun-18,217909,Vale Phoenix Limited,1116.94,Revenue,Residential Homes
DIRECT SOCIAL SERVICES,GF ADULT SERVICES,19-Jun-18,217909,Valebrook Care Homes Limited,1654.39,Revenue,Residential Homes
DIRECT SOCIAL SERVICES,GF ADULT SERVICES,19-Jun-18,217909,Valebrook Care Homes Limited,1999.5,Revenue,Residential Homes
DIRECT SOCIAL SERVICES,GF ADULT SERVICES,19-Jun-18,217909,Valebrook Care Homes Limited,1420.24,Revenue,Residential Homes
DIRECT SOCIAL SERVICES,GF ADULT SERVICES,19-Jun-18,217909,Valebrook Care Homes Limited,1767.35,Revenue,Residential Homes
DIRECT SOCIAL SERVICES,GF ADULT SERVICES,19-Jun-18,217909,Valebrook Care Homes Limited,1861.95,Revenue,Residential Homes
DIRECT SOCIAL SERVICES,GF ADULT SERVICES,19-Jun-18,217909,Valebrook Care Homes Limited,1390.24,Revenue,Residential Homes
DIRECT SOCIAL SERVICES,GF ADULT SERVICES,19-Jun-18,218321,Adriana Limited T/A The Priory Nursing Home,536,Revenue,Residential Homes
DIRECT SOCIAL SERVICES,GF ADULT SERVICES,19-Jun-18,218321,Hafod Care Association Limited,635.5,Revenue,Residential Homes
DIRECT SOCIAL SERVICES,GF ADULT SERVICES,19-Jun-18,218321,Harrison Care Enterprises Barry Limited t/a Island View,520.91,Revenue,Residential Homes
DIRECT SOCIAL SERVICES,GF ADULT SERVICES,19-Jun-18,218321,Isman & Kinze Nessa T/A Haven House,516.38,Revenue,Residential Homes
DIRECT SOCIAL SERVICES,GF ADULT SERVICES,19-Jun-18,218321,J and P Residential Homes Limited T/A Monkstone House,600,Revenue,Residential Homes
DIRECT SOCIAL SERVICES,GF ADULT SERVICES,19-Jun-18,218321,Northcote Developments Limited,559,Revenue,Residential Homes
DIRECT SOCIAL SERVICES,GF ADULT SERVICES,19-Jun-18,218321,Sanda Mitchel & Ptn t/a Canola House Residential Home,578,Revenue,Residential Homes
DIRECT SOCIAL SERVICES,GF ADULT SERVICES,19-Jun-18,218321,Waverley Care Centre Limited,909.98,Revenue,Residential Homes
DIRECT SOCIAL SERVICES,GF ADULT SERVICES,19-Jun-18,218419,Anwen Care Limited t/a Anwen Care Home,664,Revenue,Residential Homes
DIRECT SOCIAL SERVICES,GF ADULT SERVICES,19-Jun-18,218419,Baltimore Care Limited,527.38,Revenue,Residential Homes
DIRECT SOCIAL SERVICES,GF ADULT SERVICES,19-Jun-18,218419,Baltimore Care Limited,505.31,Revenue,Residential Homes
DIRECT SOCIAL SERVICES,GF ADULT SERVICES,19-Jun-18,218419,Bellavista Care (Cardiff) Limited T/A Bellavista Nursing Home Cardiff,696.38,Revenue,Residential Homes
DIRECT SOCIAL SERVICES,GF ADULT SERVICES,19-Jun-18,218419,Bellavista Care (Cardiff) Limited T/A Bellavista Nursing Home Cardiff,516.38,Revenue,Residential Homes
DIRECT SOCIAL SERVICES,GF ADULT SERVICES,19-Jun-18,218419,Broadway Care Centre Limited T/A Hazelhurst Nursing Home,516.38,Revenue,Residential Homes
DIRECT SOCIAL SERVICES,GF ADULT SERVICES,19-Jun-18,218419,David Austin t/a Silverdale,663.68,Revenue,Residential Homes
DIRECT SOCIAL SERVICES,GF ADULT SERVICES,19-Jun-18,218419,E & E Homes Limited T/A Cliffhaven Residential Home,501.05,Revenue,Residential Homes
DIRECT SOCIAL SERVICES,GF ADULT SERVICES,19-Jun-18,218419,E & E Homes Limited T/A Cliffhaven Residential Home,516.38,Revenue,Residential Homes
DIRECT SOCIAL SERVICES,GF ADULT SERVICES,19-Jun-18,218419,E & E Homes Limited T/A Cliffhaven Residential Home,503.15,Revenue,Residential Homes
DIRECT SOCIAL SERVICES,GF ADULT SERVICES,19-Jun-18,218419,E & E Homes Limited T/A Cliffhaven Residential Home,505.2,Revenue,Residential Homes
DIRECT SOCIAL SERVICES,GF ADULT SERVICES,19-Jun-18,218419,Forge Care Homes Limited t/a The Forge Care Centre,699.25,Revenue,Residential Homes
DIRECT SOCIAL SERVICES,GF ADULT SERVICES,19-Jun-18,218419,Hallmark Care Homes (Bute Town) Limited t/a Shire Hall Care Home,784.67,Revenue,Residential Homes
DIRECT SOCIAL SERVICES,GF ADULT SERVICES,19-Jun-18,218419,Hallmark Care Homes (Bute Town) Limited t/a Shire Hall Care Home,1215.5,Revenue,Residential Homes
DIRECT SOCIAL SERVICES,GF ADULT SERVICES,19-Jun-18,218419,Harrison Care Enterprises Barry Limited t/a Island View,516.38,Revenue,Residential Homes
DIRECT SOCIAL SERVICES,GF ADULT SERVICES,19-Jun-18,218419,Harrison Care Enterprises Barry Limited t/a Island View,501.96,Revenue,Residential Homes
DIRECT SOCIAL SERVICES,GF ADULT SERVICES,19-Jun-18,218419,Harrison Care Enterprises Barry Limited t/a Island View,618,Revenue,Residential Homes
DIRECT SOCIAL SERVICES,GF ADULT SERVICES,19-Jun-18,218419,Harrison Care Enterprises Barry Limited t/a Island View,514.75,Revenue,Residential Homes
DIRECT SOCIAL SERVICES,GF ADULT SERVICES,19-Jun-18,218419,Harrison Care Enterprises Barry Limited t/a Island View,544.81,Revenue,Residential Homes
DIRECT SOCIAL SERVICES,GF ADULT SERVICES,19-Jun-18,218419,Harrison Care Enterprises Barry Limited t/a Island View,516.38,Revenue,Residential Homes
DIRECT SOCIAL SERVICES,GF ADULT SERVICES,19-Jun-18,218419,Harrison Care Enterprises Barry Limited t/a Island View,516.38,Revenue,Residential Homes
DIRECT SOCIAL SERVICES,GF ADULT SERVICES,19-Jun-18,218419,Harrison Care Enterprises Barry Limited t/a Island View,503.11,Revenue,Residential Homes
DIRECT SOCIAL SERVICES,GF ADULT SERVICES,19-Jun-18,218419,Harrison Care Enterprises Barry Limited t/a Island View,516.38,Revenue,Residential Homes
DIRECT SOCIAL SERVICES,GF ADULT SERVICES,19-Jun-18,218419,June Zehetmayr t/a Tower Hill Residential Home,650.88,Revenue,Residential Homes
DIRECT SOCIAL SERVICES,GF ADULT SERVICES,19-Jun-18,218419,June Zehetmayr t/a Tower Hill Residential Home,518.38,Revenue,Residential Homes
DIRECT SOCIAL SERVICES,GF ADULT SERVICES,19-Jun-18,218419,June Zehetmayr t/a Tower Hill Residential Home,516.56,Revenue,Residential Homes
DIRECT SOCIAL SERVICES,GF ADULT SERVICES,19-Jun-18,218419,Llangoedmor Properties Limited T/A Parkside Residential Home,650.88,Revenue,Residential Homes
DIRECT SOCIAL SERVICES,GF ADULT SERVICES,19-Jun-18,218419,Shirwan Al-Mufti & Ptn t/a Pontcanna House,600,Revenue,Residential Homes
DIRECT SOCIAL SERVICES,GF ADULT SERVICES,19-Jun-18,218419,The Manor House St Hilary Limited T/A Milsom House,700.33,Revenue,Residential Homes
DIRECT SOCIAL SERVICES,GF ADULT SERVICES,19-Jun-18,218419,Waverley Care Centre Limited,629.59,Revenue,Residential Homes
DIRECT SOCIAL SERVICES,GF ADULT SERVICES,19-Jun-18,218419,Waverley Care Centre Limited,574,Revenue,Residential Homes
DIRECT SOCIAL SERVICES,GF ADULT SERVICES,19-Jun-18,218419,Waverley Care Centre Limited,672.09,Revenue,Residential Homes
DIRECT SOCIAL SERVICES,GF ADULT SERVICES,19-Jun-18,218419,Waverley Care Centre Limited,514.18,Revenue,Residential Homes
DIRECT LEARNING AND SKILLS,SCHOOLS DELEGATED,19-Jun-18,101110,Shakespeare Schools Foundation,959,Revenue,Voluntary Organisations
DIRECT SOCIAL SERVICES,GF ADULT SERVICES,20-Jun-18,215489,1st Grade Care Limited,532.7,Revenue,agen
DIRECT SOCIAL SERVICES,GF ADULT SERVICES,20-Jun-18,215489,1st Grade Care Limited,582.4,Revenue,agen
DIRECT SOCIAL SERVICES,GF ADULT SERVICES,20-Jun-18,215489,1st Grade Care Limited,621.6,Revenue,agen
DIRECT SOCIAL SERVICES,GF ADULT SERVICES,20-Jun-18,215489,1st Grade Care Limited,597.15,Revenue,agen
DIRECT SOCIAL SERVICES,GF ADULT SERVICES,20-Jun-18,215489,1st Grade Care Limited,532.7,Revenue,agen
DIRECT SOCIAL SERVICES,GF ADULT SERVICES,20-Jun-18,215489,All Care (South Wales) Limited,555.02,Revenue,agen
DIRECT SOCIAL SERVICES,GF ADULT SERVICES,20-Jun-18,215489,All Care (South Wales) Limited,618.94,Revenue,agen
DIRECT SOCIAL SERVICES,GF ADULT SERVICES,20-Jun-18,215489,All Care (South Wales) Limited,658.84,Revenue,agen
DIRECT SOCIAL SERVICES,GF ADULT SERVICES,20-Jun-18,215489,Annwyl Limited t/a Bluebird Care,673.32,Revenue,agen
DIRECT SOCIAL SERVICES,GF ADULT SERVICES,20-Jun-18,215489,Annwyl Limited t/a Bluebird Care,655.25,Revenue,agen
DIRECT SOCIAL SERVICES,GF ADULT SERVICES,20-Jun-18,215489,Annwyl Limited t/a Bluebird Care,732.21,Revenue,agen
DIRECT SOCIAL SERVICES,GF ADULT SERVICES,20-Jun-18,215489,Annwyl Limited t/a Bluebird Care,608.8,Revenue,agen
DIRECT SOCIAL SERVICES,GF ADULT SERVICES,20-Jun-18,215489,Hallows Care Limited T/A Hallows Care,690.95,Revenue,agen
DIRECT SOCIAL SERVICES,GF ADULT SERVICES,20-Jun-18,215489,Hallows Care Limited T/A Hallows Care,597.76,Revenue,agen
DIRECT SOCIAL SERVICES,GF ADULT SERVICES,20-Jun-18,215489,Hallows Care Limited T/A Hallows Care,564.98,Revenue,agen
DIRECT SOCIAL SERVICES,GF ADULT SERVICES,20-Jun-18,215489,Hallows Care Limited T/A Hallows Care,618.29,Revenue,agen
DIRECT SOCIAL SERVICES,GF ADULT SERVICES,20-Jun-18,215489,Hallows Care Limited T/A Hallows Care,608.35,Revenue,agen
DIRECT SOCIAL SERVICES,GF ADULT SERVICES,20-Jun-18,215489,Nestor Primecare Services Limited t/a Allied Healthcare,621.34,Revenue,agen
DIRECT SOCIAL SERVICES,GF ADULT SERVICES,20-Jun-18,215489,Nestor Primecare Services Limited t/a Allied Healthcare,589.76,Revenue,agen
DIRECT SOCIAL SERVICES,GF ADULT SERVICES,20-Jun-18,215489,Nestor Primecare Services Limited t/a Allied Healthcare,635.09,Revenue,agen
DIRECT SOCIAL SERVICES,GF ADULT SERVICES,20-Jun-18,215489,Nestor Primecare Services Limited t/a Allied Healthcare,650.88,Revenue,agen
DIRECT SOCIAL SERVICES,GF ADULT SERVICES,20-Jun-18,215489,Nestor Primecare Services Limited t/a Allied Healthcare,621.63,Revenue,agen
DIRECT SOCIAL SERVICES,GF ADULT SERVICES,20-Jun-18,215489,Nestor Primecare Services Limited t/a Allied Healthcare,530.18,Revenue,agen
